{"text_format":"1","workbook":"xlsx","n_sheets":3,"sheets":["1. INFORMACION ACUMULADA","Proposito_programa","Tipo"],"not_rendered":{"charts":0,"images":1,"macros":1,"external_links":0,"defined_names":14,"comments":0,"pivot_tables":0},"unopened":[],"bounds":{"document_bytes":16777216,"sheet_cells":100000,"rows_first":2000,"rows_last":500,"rows_between":2000,"halvings":0,"cell_chars":16384,"cell_head_chars":4096},"cells_cut":0,"cells_raw":0,"read":"whole","date_system":"1900"}

{"sheet":"1. INFORMACION ACUMULADA","index":0,"n_rows":209,"n_cols":41,"rows_kept":209,"cut":false,"hidden":false,"merged":[[11,2,11,3],[11,8,11,12],[11,15,11,20],[10,0,10,20],[8,34,8,35],[9,34,9,35],[10,28,10,33],[10,34,10,37],[10,21,10,27],[6,36,6,39],[7,36,7,39],[8,36,8,39],[9,36,9,39],[1,0,1,38],[2,0,2,38],[4,0,4,3],[4,8,4,10],[5,0,5,3],[5,8,5,10],[5,34,5,35],[5,36,5,39],[6,0,6,3],[6,8,6,10],[6,34,6,35],[7,34,7,35]]}
[]
["VEEDURIA DISTRITAL - INFORMACIÓN GESTION CONTRACTUAL"]
["DEL 1 DE ENERO AL 31 DE DICIEMBRE DE 2022"]
[]
["1. Entidad",null,null,null,null,null,null,"2. Sector"]
["3. Presupuesto Disponible Inversión Directa PREDIS (BOGDATA)",null,null,null,23798995200,null,null,"5. Presupuesto Disponible Funcionamiento PREDIS (BOGDATA)",3365291490,null,null,null,null,null,null,null,null,null,null,null,null,null,null,null,null,null,null,null,null,null,null,null,null,null,"7. Nombre de quien diligencia el formato",null,"MAYRA CABARCAS"]
["4. Presupuesto Comprometido de Inversión Directa según PREDIS (BOGDATA)",null,null,null,23634885718,null,null,"6. Presupuesto Comprometido Funcionamiento según PREDIS (BOGDATA)",2270726514,null,null,null,null,null,null,null,null,null,null,null,null,null,null,null,null,null,null,null,null,null,null,null,null,null,"Cargo",null,"APOYO ADMINISTRATIVO",null,null,null," "]
[null,null,null,null,null,null,null,null,null,null,null,null,null,null,null,null,null,null,null,null,null,null,null,null,null,null,null,null,null,null,null,null,null,null,"Dependencia",null,"CONTRATACION"]
[null,null,null,null,null,null,null,null,null,null,null,null,null,null,null,null,null,null,null,null,null,null,null,null,null,null,null,null,null,null,null,null,null,null,"Teléfono",null,"3024119457"]
[null,null,null,null,null,null,null,null,null,null,null,null,null,null,null,null,null,null,null,null,null,null,null,null,null,null,null,null,null,null,null,null,null,null,"Correo Electrónico",null,"mayra.cabarcas@gobiernobogota.gov.co"]
["1- INFORMACION GENERAL",null,null,null,null,null,null,null,null,null,null,null,null,null,null,null,null,null,null,null,null,"2- INFORMACION FINANCIERA",null,null,null,null,null,null,"3 - PLAZOS ",null,null,null,null,null,"4. CESION",null,null,null,"5. ESTADO","6. %  Avance y/o cumplimiento"]
[1,2,3,null,4,5,6,7,8,null,null,null,null,9,10,11,null,null,null,null,null,12,13,14,15,16,17,18,19,20,21,22,23,24,25,26,27,28,29,30]
["Número Contrato","Año","Número de proceso contractual \nSECOP","Link proceso SECOP","Tipo de contrato ","Modalidad de Selección","Procedimiento o causal","Objeto","Afectación","Plan de Desarrollo Distrital","Número Programa","Equivalencia número de programa","Propósito","Número Proyecto","Número de proponentes","Número  de Identificación del contratista\n(Cédula o NIT sin puntos, comas ni caracteres especiales y sin digito de verificación)","Nombre del contratista\n  (según el caso: nombres y apellidos o Razón social y Tipo societario)","Naturaleza Jurídica","Número  de Identificación del integrante del Consorcio o U.T.\n(Cédula o NIT sin puntos, comas ni caracteres especiales y sin digito de verificación)","Nombre del Integrante del Consorcio o U.T. y Tipo societario\n (Según el caso: nombres y apellidos o razón social y tipo societario)","% Participación (indicar solo el numero del porcentaje, sin caracteres especiales)","Vigencias futuras","Valor Inicial del contrato","Valor total reducciones \n(En valor negativo)","Número de adiciones","Valor total de adiciones ","Valor Final ","Giros (Valor en pesos)","Fecha de suscripción (DD/MM/AAAA)","Fecha de inicio (DD/MM/AAAA)","Fecha de terminación (DD/MM/AAAA)","Plazo en días","Número de prórrogas","Prorroga en días","Número  de Identificación del cesionario\n(NIT sin digito de verificación)","Nombre cesionario","Fecha cesión\n(DD/MM/AAAA)","Valor cesión","Estado","% Avance y/o Cumplimiento"]
["001-2022",2022,"FDLM-001-2022","https://community.secop.gov.co/Public/Tendering/OpportunityDetail/Index?noticeUID=CO1.NTC.2554077&isFromPublicArea=True&isModal=False","Contratos de prestación de servicios profesionales y de apoyo a la gestión","Contratación directa","Prestación de servicios profesionales y de apoyo a la gestión, o para la ejecución de trabajos artísticos que sólo puedan encomendarse a determinadas personas naturales","PRESTAR LOS SERVICIOS PROFESIONALES ADMINISTRATIVOS AL FONDO DE DESARROLLO LOCAL EN EL FORTALECIMIENTO DE LAS ETAPAS DE LA GESTIÓN PÚBLICA CONTRACTUAL, EN CUMPLIMIENTO DEL PLAN DE DESARROLLO LOCAL VIGENTE.","Inversión","Un nuevo contrato social y ambiental para la Bogotá del Siglo XXI",3,{"$f":"IF(ISERROR(VLOOKUP(K14,Proposito_programa!$C$2:$E$59,2,FALSE)),\" \",VLOOKUP(K14,Proposito_programa!$C$2:$E$59,2,FALSE))","v":"Movilidad social integral"},{"$f":"IF(ISERROR(VLOOKUP(K14,Proposito_programa!$C$2:$E$59,3,FALSE)),\" \",VLOOKUP(K14,Proposito_programa!$C$2:$E$59,3,FALSE))","v":"Propósito 1: Hacer un nuevo contrato social para incrementar la inclusión social, productiva y política"},"O23011605570000002099",0,80849721,"JACK CRISTOPHER REINA RODRIGUEZ","Persona Natural","N/A","N/A","N/A",2022,42000000,null,1,4554000,{"$f":"+W14+X14+Z14","v":46554000},{"$f":"+X14+Y14+AA14","v":46554001},"2022-01-14","2022-01-17","2022-07-16","6 Meses",1,60,9147584,"JORGE CONTRERAS ROJAS","2022-04-11",null,"Terminado",{"$f":"IF(ISERROR(AB14/AA14),\"-\",(AB14/AA14))","v":1.0000000214804314}]
["002-2022",2022,"FDLM-002-2022","https://community.secop.gov.co/Public/Tendering/OpportunityDetail/Index?noticeUID=CO1.NTC.2556487&isFromPublicArea=True&isModal=False","Contratos de prestación de servicios profesionales y de apoyo a la gestión","Contratación directa","Prestación de servicios profesionales y de apoyo a la gestión, o para la ejecución de trabajos artísticos que sólo puedan encomendarse a determinadas personas naturales","PRESTACIÓN DE SERVICIOS PROFESIONALES AL FONDO DE DESARROLLO LOCAL EN EL FORTALECIMIENTO DE LAS ETAPAS DE LA GESTIÓN PÚBLICA CONTRACTUAL, EN CUMPLIMIENTO DEL PLAN DE DESARROLLO LOCAL VIGENTE.","Inversión","Un nuevo contrato social y ambiental para la Bogotá del Siglo XXI",3,{"$f":"IF(ISERROR(VLOOKUP(K15,Proposito_programa!$C$2:$E$59,2,FALSE)),\" \",VLOOKUP(K15,Proposito_programa!$C$2:$E$59,2,FALSE))","v":"Movilidad social integral"},{"$f":"IF(ISERROR(VLOOKUP(K15,Proposito_programa!$C$2:$E$59,3,FALSE)),\" \",VLOOKUP(K15,Proposito_programa!$C$2:$E$59,3,FALSE))","v":"Propósito 1: Hacer un nuevo contrato social para incrementar la inclusión social, productiva y política"},"O23011605570000002099",0,1018406496,"MARGARITA RICO PINTO","Persona Natural","N/A","N/A","N/A",2022,42000000,null,1,15000000,57000000,57000001,"2022-01-14","2022-01-18","2022-10-17","9 Meses",1,90,1032400188,"DANIEL RAFFAN RODRIGUEZ RAMIREZ","2022-04-11",null,"Terminado",1.0000000175438597]
["003-2022",2022,"FDLM-003-2022","https://community.secop.gov.co/Public/Tendering/OpportunityDetail/Index?noticeUID=CO1.NTC.2563705&isFromPublicArea=True&isModal=False","Contratos de prestación de servicios profesionales y de apoyo a la gestión","Contratación directa","Prestación de servicios profesionales y de apoyo a la gestión, o para la ejecución de trabajos artísticos que sólo puedan encomendarse a determinadas personas naturales","PRESTACIÓN DE SERVICIOS PROFESIONALES AL FONDO DE DESARROLLO LOCAL EN EL FORTALECIMIENTO DE LAS ETAPAS DE LA GESTIÓN PÚBLICA CONTRACTUAL, EN CUMPLIMIENTO DEL PLAN DE DESARROLLO LOCAL VIGENTE.","Inversión","Un nuevo contrato social y ambiental para la Bogotá del Siglo XXI",3,{"$f":"IF(ISERROR(VLOOKUP(K16,Proposito_programa!$C$2:$E$59,2,FALSE)),\" \",VLOOKUP(K16,Proposito_programa!$C$2:$E$59,2,FALSE))","v":"Movilidad social integral"},{"$f":"IF(ISERROR(VLOOKUP(K16,Proposito_programa!$C$2:$E$59,3,FALSE)),\" \",VLOOKUP(K16,Proposito_programa!$C$2:$E$59,3,FALSE))","v":"Propósito 1: Hacer un nuevo contrato social para incrementar la inclusión social, productiva y política"},"O23011605570000002099",0,52883374,"DIANA CAROLINA SÁNCHEZ CASTILLO","Persona Natural","N/A","N/A","N/A",2022,49500000,null,1,10000000,59500000,59500001,"2022-01-14","2022-01-17","2022-10-16","9 meses ",1,60,null,null,null,null,"Terminado",1.0000000168067227]
["004-2022",2022,"FDLM-004-2022","https://community.secop.gov.co/Public/Tendering/OpportunityDetail/Index?noticeUID=CO1.NTC.2555131&isFromPublicArea=True&isModal=False","Contratos de prestación de servicios profesionales y de apoyo a la gestión","Contratación directa","Prestación de servicios profesionales y de apoyo a la gestión, o para la ejecución de trabajos artísticos que sólo puedan encomendarse a determinadas personas naturales","PRESTACIÓN DE SERVICIOS PROFESIONALES AL FONDO DE DESARROLLO LOCAL EN EL FORTALECIMIENTO DE LAS ETAPAS DE LA GESTIÓN PÚBLICA CONTRACTUAL, EN CUMPLIMIENTO DEL PLAN DE DESARROLLO LOCAL VIGENTE.","Inversión","Un nuevo contrato social y ambiental para la Bogotá del Siglo XXI",3,{"$f":"IF(ISERROR(VLOOKUP(K17,Proposito_programa!$C$2:$E$59,2,FALSE)),\" \",VLOOKUP(K17,Proposito_programa!$C$2:$E$59,2,FALSE))","v":"Movilidad social integral"},{"$f":"IF(ISERROR(VLOOKUP(K17,Proposito_programa!$C$2:$E$59,3,FALSE)),\" \",VLOOKUP(K17,Proposito_programa!$C$2:$E$59,3,FALSE))","v":"Propósito 1: Hacer un nuevo contrato social para incrementar la inclusión social, productiva y política"},"O23011605570000002099",0,7368660,"ALFONSO LUIS MONTES OTERO","Persona Natural","N/A","N/A","N/A",2022,49500000,null,1,15000000,64500000,64500001,"2022-01-14","2022-01-17","2022-10-16","9 Meses",1,90,null,null,null,null,"Terminado",1.000000015503876]
["005-2022",2022,"FDLM-005-2022","https://community.secop.gov.co/Public/Tendering/OpportunityDetail/Index?noticeUID=CO1.NTC.2564070&isFromPublicArea=True&isModal=False","Contratos de prestación de servicios profesionales y de apoyo a la gestión","Contratación directa","Prestación de servicios profesionales y de apoyo a la gestión, o para la ejecución de trabajos artísticos que sólo puedan encomendarse a determinadas personas naturales","PRESTACIÓN DE SERVICIOS PROFESIONALES AL FONDO DE DESARROLLO LOCAL EN EL FORTALECIMIENTO DE LAS ETAPAS DE LA GESTIÓN PÚBLICA CONTRACTUAL, EN CUMPLIMIENTO DEL PLAN DE DESARROLLO LOCAL VIGENTE.","Inversión","Un nuevo contrato social y ambiental para la Bogotá del Siglo XXI",3,{"$f":"IF(ISERROR(VLOOKUP(K18,Proposito_programa!$C$2:$E$59,2,FALSE)),\" \",VLOOKUP(K18,Proposito_programa!$C$2:$E$59,2,FALSE))","v":"Movilidad social integral"},{"$f":"IF(ISERROR(VLOOKUP(K18,Proposito_programa!$C$2:$E$59,3,FALSE)),\" \",VLOOKUP(K18,Proposito_programa!$C$2:$E$59,3,FALSE))","v":"Propósito 1: Hacer un nuevo contrato social para incrementar la inclusión social, productiva y política"},"O23011605570000002099",0,1030523881,"HECTOR DUARTE MENDEZ","Persona Natural","N/A","N/A","N/A",2022,49500000,null,1,15000000,64500000,64500001,"2022-01-14","2022-01-17","2022-10-16","9 Meses",1,90,80218395,"FABIO LOTE PORTILLA ","2022-07-01",null,"Terminado",1.000000015503876]
["006-2022",2022,"FDLM-006-2022","https://community.secop.gov.co/Public/Tendering/OpportunityDetail/Index?noticeUID=CO1.NTC.2556731&isFromPublicArea=True&isModal=False","Contratos de prestación de servicios profesionales y de apoyo a la gestión","Contratación directa","Prestación de servicios profesionales y de apoyo a la gestión, o para la ejecución de trabajos artísticos que sólo puedan encomendarse a determinadas personas naturales","APOYAR PROFESIONALMENTE AL ÁREA DE GESTIÓN DEL DESARROLLO DE LA ALCALDIA LOCAL DE LOS MARTIRES, EN LA EJECUCIÓN ADMINISTRATIVA Y FINANCIERA, PARA EL CUMPLIMIENTO DEL PLAN DE DESARROLLO LOCAL VIGENTE.","Inversión","Un nuevo contrato social y ambiental para la Bogotá del Siglo XXI",3,{"$f":"IF(ISERROR(VLOOKUP(K19,Proposito_programa!$C$2:$E$59,2,FALSE)),\" \",VLOOKUP(K19,Proposito_programa!$C$2:$E$59,2,FALSE))","v":"Movilidad social integral"},{"$f":"IF(ISERROR(VLOOKUP(K19,Proposito_programa!$C$2:$E$59,3,FALSE)),\" \",VLOOKUP(K19,Proposito_programa!$C$2:$E$59,3,FALSE))","v":"Propósito 1: Hacer un nuevo contrato social para incrementar la inclusión social, productiva y política"},"O23011605570000002099",0,37844642,"LUZ ANGELA PINTO POSADA","Persona Natural","N/A","N/A","N/A",2022,49500000,null,1,15000000,64500000,64500001,"2022-01-14","2022-01-17","2022-10-16","9 Meses",1,90,null,null,null,null,"Terminado",1.000000015503876]
["007-2022",2022,"FDLM-007-2022","https://community.secop.gov.co/Public/Tendering/OpportunityDetail/Index?noticeUID=CO1.NTC.2563457&isFromPublicArea=True&isModal=False","Contratos de prestación de servicios profesionales y de apoyo a la gestión","Contratación directa","Prestación de servicios profesionales y de apoyo a la gestión, o para la ejecución de trabajos artísticos que sólo puedan encomendarse a determinadas personas naturales","EL CONTRATISTA SE OBLIGA CON EL FONDO DE DESARROLLO LOCAL DE LOS MÁRTIRES A PRESTAR SUS SERVICIOS PROFESIONALES CON EL FIN DE REALIZAR CATEGORIZACIÓN Y DIAGNOSTICO EN LOS TEMAS DE SEGURIDAD CIUDADANA, CONVIVENCIA Y PREVENCIÓN DE CONFLICTIVIDADES, VIOLENCIAS Y DELITOS EN LA LOCALIDAD.","Inversión","Un nuevo contrato social y ambiental para la Bogotá del Siglo XXI",3,{"$f":"IF(ISERROR(VLOOKUP(K20,Proposito_programa!$C$2:$E$59,2,FALSE)),\" \",VLOOKUP(K20,Proposito_programa!$C$2:$E$59,2,FALSE))","v":"Movilidad social integral"},{"$f":"IF(ISERROR(VLOOKUP(K20,Proposito_programa!$C$2:$E$59,3,FALSE)),\" \",VLOOKUP(K20,Proposito_programa!$C$2:$E$59,3,FALSE))","v":"Propósito 1: Hacer un nuevo contrato social para incrementar la inclusión social, productiva y política"},"O23011603430000002083",0,1019066590,"AMELIA PATRÓN JIMÉNEZ","Persona Natural","N/A","N/A","N/A",2022,45643500,null,1,15000000,60643500,60643501,"2022-01-14","2022-01-18","2022-10-17","9 Meses",1,90,null,null,null,null,"Terminado",1.0000000164898135]
["008-2022",2022,"FDLM-008-2022","https://community.secop.gov.co/Public/Tendering/OpportunityDetail/Index?noticeUID=CO1.NTC.2563396&isFromPublicArea=True&isModal=False","Contratos de prestación de servicios profesionales y de apoyo a la gestión","Contratación directa","Prestación de servicios profesionales y de apoyo a la gestión, o para la ejecución de trabajos artísticos que sólo puedan encomendarse a determinadas personas naturales","Prestar sus servicios como personal de apoyo en la conducción de los vehículos livianos o pesados de propiedad del Fondo de Desarrollo Local de Los Mártires.","Inversión","Un nuevo contrato social y ambiental para la Bogotá del Siglo XXI",3,{"$f":"IF(ISERROR(VLOOKUP(K21,Proposito_programa!$C$2:$E$59,2,FALSE)),\" \",VLOOKUP(K21,Proposito_programa!$C$2:$E$59,2,FALSE))","v":"Movilidad social integral"},{"$f":"IF(ISERROR(VLOOKUP(K21,Proposito_programa!$C$2:$E$59,3,FALSE)),\" \",VLOOKUP(K21,Proposito_programa!$C$2:$E$59,3,FALSE))","v":"Propósito 1: Hacer un nuevo contrato social para incrementar la inclusión social, productiva y política"},"O23011605570000002099",0,79581451,"EDISSON PIZA YEPES","Persona Natural","N/A","N/A","N/A",2022,40950000,null,1,21900000,62850000,62850001,"2022-01-14","2022-01-18","2022-10-17","9 Meses",1,60,null,null,null,null,"Terminado",1.000000015910899]
["009-2022",2022,"FDLM-009-2022","https://community.secop.gov.co/Public/Tendering/OpportunityDetail/Index?noticeUID=CO1.NTC.2564019&isFromPublicArea=True&isModal=False","Contratos de prestación de servicios profesionales y de apoyo a la gestión","Contratación directa","Prestación de servicios profesionales y de apoyo a la gestión, o para la ejecución de trabajos artísticos que sólo puedan encomendarse a determinadas personas naturales","Prestar servicios profesionales en los proyectos que tienen por objeto la construcción, rehabilitación y mantenimiento de la infraestructura vial y espacio público de la localidad de los mártires. DE ACUERDO CON LO CONTEMPLADO EN EL(LOS) PROYECTO(S) 2097 --- MOVILIDAD SEGURA Y SOSTENIBLE","Inversión","Un nuevo contrato social y ambiental para la Bogotá del Siglo XXI",3,{"$f":"IF(ISERROR(VLOOKUP(K22,Proposito_programa!$C$2:$E$59,2,FALSE)),\" \",VLOOKUP(K22,Proposito_programa!$C$2:$E$59,2,FALSE))","v":"Movilidad social integral"},{"$f":"IF(ISERROR(VLOOKUP(K22,Proposito_programa!$C$2:$E$59,3,FALSE)),\" \",VLOOKUP(K22,Proposito_programa!$C$2:$E$59,3,FALSE))","v":"Propósito 1: Hacer un nuevo contrato social para incrementar la inclusión social, productiva y política"},"O23011604490000002097",0,1023962415,"MARTHA LILIANA CENDALES PUENTES","Persona Natural","N/A","N/A","N/A",2022,22356000,null,1,19580000,41936000,41936001,"2022-01-14","2022-01-18","2022-10-17","9 Meses",1,89,null,null,null,null,"Terminado",1.0000000238458604]
["010-2022",2022,"FDLM-010-2022","https://community.secop.gov.co/Public/Tendering/OpportunityDetail/Index?noticeUID=CO1.NTC.2563721&isFromPublicArea=True&isModal=False","Contratos de prestación de servicios profesionales y de apoyo a la gestión","Contratación directa","Prestación de servicios profesionales y de apoyo a la gestión, o para la ejecución de trabajos artísticos que sólo puedan encomendarse a determinadas personas naturales","Prestar servicios profesionales en los proyectos que tienen por objeto la construcción, rehabilitación y mantenimiento de la infraestructura vial y espacio público de la localidad de los mártires. DE ACUERDO CON LO CONTEMPLADO EN EL(LOS) PROYECTO(S) 2097 MOVILIDAD SEGURA Y SOSTENIBLE","Inversión","Un nuevo contrato social y ambiental para la Bogotá del Siglo XXI",3,{"$f":"IF(ISERROR(VLOOKUP(K23,Proposito_programa!$C$2:$E$59,2,FALSE)),\" \",VLOOKUP(K23,Proposito_programa!$C$2:$E$59,2,FALSE))","v":"Movilidad social integral"},{"$f":"IF(ISERROR(VLOOKUP(K23,Proposito_programa!$C$2:$E$59,3,FALSE)),\" \",VLOOKUP(K23,Proposito_programa!$C$2:$E$59,3,FALSE))","v":"Propósito 1: Hacer un nuevo contrato social para incrementar la inclusión social, productiva y política"},"O23011604490000002097",0,79785438,"JAIME HERNAN VILLALBA VARGAS","Persona Natural","N/A","N/A","N/A",2022,54000000,null,1,19580000,73580000,73580001,"2022-01-14","2022-01-18","2022-10-17","9 Meses",1,89,null,null,null,null,"Terminado",1.0000000135906497]
["011-2022",2022,"FDLM-011-2022.(67813)","https://community.secop.gov.co/Public/Tendering/OpportunityDetail/Index?noticeUID=CO1.NTC.2603722&isFromPublicArea=True&isModal=False","Contratos de prestación de servicios profesionales y de apoyo a la gestión","Contratación directa","Prestación de servicios profesionales y de apoyo a la gestión, o para la ejecución de trabajos artísticos que sólo puedan encomendarse a determinadas personas naturales","PRESTAR LOS SERVICIOS PROFESIONALES DE ABOGADO, PARA APOYAR LA GESTIÓN DEL DESPACHO DEL ALCALDE DE LA LOCALIDAD DE LOS MARTIRES, EN LA IMPLEMENTACIÓN DEL PLAN DE DESARROLLO LOCAL VIGENTE.","Inversión","Un nuevo contrato social y ambiental para la Bogotá del Siglo XXI",3,{"$f":"IF(ISERROR(VLOOKUP(K24,Proposito_programa!$C$2:$E$59,2,FALSE)),\" \",VLOOKUP(K24,Proposito_programa!$C$2:$E$59,2,FALSE))","v":"Movilidad social integral"},{"$f":"IF(ISERROR(VLOOKUP(K24,Proposito_programa!$C$2:$E$59,3,FALSE)),\" \",VLOOKUP(K24,Proposito_programa!$C$2:$E$59,3,FALSE))","v":"Propósito 1: Hacer un nuevo contrato social para incrementar la inclusión social, productiva y política"},"O23011605570000002099",0,1140872699,"ALBERTO MARIO OROZCO RAVELO","Persona Natural","N/A","N/A","N/A",2022,74800000,null,1,15000000,89800000,89800001,"2022-01-19","2022-01-19","2022-12-18","11 Meses",1,90,null,null,null,null,"En ejecución",1.0000000111358576]
["013-2022",2022,"FDLM-013-2022 (67798)","https://community.secop.gov.co/Public/Tendering/OpportunityDetail/Index?noticeUID=CO1.NTC.2587831&isFromPublicArea=True&isModal=False","Contratos de prestación de servicios profesionales y de apoyo a la gestión","Contratación directa","Prestación de servicios profesionales y de apoyo a la gestión, o para la ejecución de trabajos artísticos que sólo puedan encomendarse a determinadas personas naturales","PRESTAR SUS SERVICIOS PROFESIONALES ESPECIALIZADOS PARA FORTALECER TÉCNICAMENTE EL ÁREA DE GESTIÓN DEL DESARROLLO LOCAL DE LA LOCALIDAD DE LOS MÁRTIRES, EN CUMPLIMIENTO DEL PLAN DE DESARROLLO LOCAL VIGENTE","Inversión","Un nuevo contrato social y ambiental para la Bogotá del Siglo XXI",3,{"$f":"IF(ISERROR(VLOOKUP(K25,Proposito_programa!$C$2:$E$59,2,FALSE)),\" \",VLOOKUP(K25,Proposito_programa!$C$2:$E$59,2,FALSE))","v":"Movilidad social integral"},{"$f":"IF(ISERROR(VLOOKUP(K25,Proposito_programa!$C$2:$E$59,3,FALSE)),\" \",VLOOKUP(K25,Proposito_programa!$C$2:$E$59,3,FALSE))","v":"Propósito 1: Hacer un nuevo contrato social para incrementar la inclusión social, productiva y política"},"O23011605570000002099",0,1140845417,"HANS DIETER VAN STRAHLEN BARTEL","Persona Natural","N/A","N/A","N/A",2022,93500000,null,1,12000000,105500000,105500001,"2022-01-17","2022-01-19","2022-12-18","11 Meses",1,60,null,null,null,null,"Terminado",1.000000009478673]
["014-2022",2022,"FDLM-014-2022 (67703)","https://community.secop.gov.co/Public/Tendering/OpportunityDetail/Index?noticeUID=CO1.NTC.2588311&isFromPublicArea=True&isModal=False","Contratos de prestación de servicios profesionales y de apoyo a la gestión","Contratación directa","Prestación de servicios profesionales y de apoyo a la gestión, o para la ejecución de trabajos artísticos que sólo puedan encomendarse a determinadas personas naturales","PRESTAR LOS SERVICIOS PROFESIONALES ADMINISTRATIVOS AL FONDO DE DESARROLLO LOCAL EN EL FORTALECIMIENTO DE LAS ETAPAS DE LA GESTIÓN PÚBLICA CONTRACTUAL, EN CUMPLIMIENTO DEL PLAN DE DESARROLLO LOCAL VIGENTE.","Inversión","Un nuevo contrato social y ambiental para la Bogotá del Siglo XXI",3,{"$f":"IF(ISERROR(VLOOKUP(K26,Proposito_programa!$C$2:$E$59,2,FALSE)),\" \",VLOOKUP(K26,Proposito_programa!$C$2:$E$59,2,FALSE))","v":"Movilidad social integral"},{"$f":"IF(ISERROR(VLOOKUP(K26,Proposito_programa!$C$2:$E$59,3,FALSE)),\" \",VLOOKUP(K26,Proposito_programa!$C$2:$E$59,3,FALSE))","v":"Propósito 1: Hacer un nuevo contrato social para incrementar la inclusión social, productiva y política"},"O23011605570000002099",0,53006011,"DIANA CAROLINA CÁRDENAS CRUZ","Persona Natural","N/A","N/A","N/A",2022,42300000,null,1,9300000,51600000,51600001,"2022-01-17","2022-01-19","2022-10-18","9 Meses",1,90,null,null,null,null,"Terminado",1.0000000193798451]
["015-2022",2022,"FDLM-015-2022 (70196)","https://community.secop.gov.co/Public/Tendering/OpportunityDetail/Index?noticeUID=CO1.NTC.2588901&isFromPublicArea=True&isModal=False","Contratos de prestación de servicios profesionales y de apoyo a la gestión","Contratación directa","Prestación de servicios profesionales y de apoyo a la gestión, o para la ejecución de trabajos artísticos que sólo puedan encomendarse a determinadas personas naturales","PRESTAR LOS SERVICIOS DE APOYO ADMINISTRATIVO PARA LA IMPLEMENTACIÓN DE ACUERDOS QUE PROMUEVAN LA CONVIVENCIA ARMÓNICA ENTRE LA CIUDADANÍA Y LOS VENDEDORES INFORMALES Y ESTACIONARIOS, ORIENTADOS A LA SOLUCIÓN DE LOS CONFLICTOS DEL ESPACIO PÚBLICO IDENTIFICADOS POR LAS ALCALDÍAS LOCALES, ASÍ COMO EL APOYO AL ÁREA DE GESTIÓN POLICIVA Y JURÍDICA DE LA ALCALDÍA LOCAL DE LOS MÁRTIRES.","Inversión","Un nuevo contrato social y ambiental para la Bogotá del Siglo XXI",3,{"$f":"IF(ISERROR(VLOOKUP(K27,Proposito_programa!$C$2:$E$59,2,FALSE)),\" \",VLOOKUP(K27,Proposito_programa!$C$2:$E$59,2,FALSE))","v":"Movilidad social integral"},{"$f":"IF(ISERROR(VLOOKUP(K27,Proposito_programa!$C$2:$E$59,3,FALSE)),\" \",VLOOKUP(K27,Proposito_programa!$C$2:$E$59,3,FALSE))","v":"Propósito 1: Hacer un nuevo contrato social para incrementar la inclusión social, productiva y política"},"O23011603450000002080",0,52786083,"ANA ANGÉLICA CHAPARRO VARÓN","Persona Natural","N/A","N/A","N/A",2022,23400000,null,1,6490000,29890000,29890001,"2022-01-17","2022-01-20","2022-10-19","9 Meses",1,60,null,null,null,null,"Terminado",1.0000000334560053]
["016-2022",2022,"FDLM-016-2022 (68387).","https://community.secop.gov.co/Public/Tendering/OpportunityDetail/Index?noticeUID=CO1.NTC.2598750&isFromPublicArea=True&isModal=False","Contratos de prestación de servicios profesionales y de apoyo a la gestión","Contratación directa","Prestación de servicios profesionales y de apoyo a la gestión, o para la ejecución de trabajos artísticos que sólo puedan encomendarse a determinadas personas naturales","Liderar y garantizar la implementación y seguimiento de los procesos y procedimientos del servicio social.","Inversión","Un nuevo contrato social y ambiental para la Bogotá del Siglo XXI",3,{"$f":"IF(ISERROR(VLOOKUP(K28,Proposito_programa!$C$2:$E$59,2,FALSE)),\" \",VLOOKUP(K28,Proposito_programa!$C$2:$E$59,2,FALSE))","v":"Movilidad social integral"},{"$f":"IF(ISERROR(VLOOKUP(K28,Proposito_programa!$C$2:$E$59,3,FALSE)),\" \",VLOOKUP(K28,Proposito_programa!$C$2:$E$59,3,FALSE))","v":"Propósito 1: Hacer un nuevo contrato social para incrementar la inclusión social, productiva y política"},"O23011601010000002068",0,1032385912,"CINDY JULIETH NIÑO SABOGAL","Persona Natural","N/A","N/A","N/A",2022,51232500,null,1,1170109,52402609,52402610,"2022-01-18","2022-01-28","2022-10-27","9 Meses",1,60,null,null,null,null,"Terminado",1.0000000190830194]
["017-2022",2022,"FDLM-017-2022 (68328)","https://community.secop.gov.co/Public/Tendering/OpportunityDetail/Index?noticeUID=CO1.NTC.2588922&isFromPublicArea=True&isModal=False","Contratos de prestación de servicios profesionales y de apoyo a la gestión","Contratación directa","Prestación de servicios profesionales y de apoyo a la gestión, o para la ejecución de trabajos artísticos que sólo puedan encomendarse a determinadas personas naturales","Prestar los servicios profesionales para la operación, prestación, seguimiento y cumplimiento de los procedimientos administrativos, operativos y programáticos del servicio social apoyo económico tipo C, que contribuyan a la garantía de los derechos de la población mayor en el marco de la política pública social para el envejecimiento y la vejez en el distrito capital a cargo de la alcaldía local.","Inversión","Un nuevo contrato social y ambiental para la Bogotá del Siglo XXI",3,{"$f":"IF(ISERROR(VLOOKUP(K29,Proposito_programa!$C$2:$E$59,2,FALSE)),\" \",VLOOKUP(K29,Proposito_programa!$C$2:$E$59,2,FALSE))","v":"Movilidad social integral"},{"$f":"IF(ISERROR(VLOOKUP(K29,Proposito_programa!$C$2:$E$59,3,FALSE)),\" \",VLOOKUP(K29,Proposito_programa!$C$2:$E$59,3,FALSE))","v":"Propósito 1: Hacer un nuevo contrato social para incrementar la inclusión social, productiva y política"},"O23011601010000002068",0,1072654515,"ALEJANDRA JARAMILLO GONZÁLEZ","Persona Natural","N/A","N/A","N/A",2022,41917500,null,1,9300000,51217500,51217501,"2022-01-17","2022-01-19","2022-10-18","9 Meses",1,90,52100652,"NANCY ESTELLA QUEVEDO JARA","2022-07-29",null,"Terminado",1.0000000195245766]
["018-2022",2022,"FDLM-018-2022 (68328).","https://community.secop.gov.co/Public/Tendering/OpportunityDetail/Index?noticeUID=CO1.NTC.2621347&isFromPublicArea=True&isModal=False","Contratos de prestación de servicios profesionales y de apoyo a la gestión","Contratación directa","Prestación de servicios profesionales y de apoyo a la gestión, o para la ejecución de trabajos artísticos que sólo puedan encomendarse a determinadas personas naturales","Prestar los servicios profesionales para la operación, prestación, seguimiento y cumplimiento de los procedimientos administrativos, operativos y programáticos del servicio social apoyo económico tipo C, que contribuyan a la garantía de los derechos de la población mayor en el marco de la política pública social para el envejecimiento y la vejez en el distrito capital a cargo de la alcaldía local.","Inversión","Un nuevo contrato social y ambiental para la Bogotá del Siglo XXI",3,{"$f":"IF(ISERROR(VLOOKUP(K30,Proposito_programa!$C$2:$E$59,2,FALSE)),\" \",VLOOKUP(K30,Proposito_programa!$C$2:$E$59,2,FALSE))","v":"Movilidad social integral"},{"$f":"IF(ISERROR(VLOOKUP(K30,Proposito_programa!$C$2:$E$59,3,FALSE)),\" \",VLOOKUP(K30,Proposito_programa!$C$2:$E$59,3,FALSE))","v":"Propósito 1: Hacer un nuevo contrato social para incrementar la inclusión social, productiva y política"},"O23011601010000002068",0,1014260640,"VALENTINA MAYO CASTRO","Persona Natural","N/A","N/A","N/A",2022,41917500,null,1,18133333,60050833,60050834,"2022-01-19","2022-01-20","2022-10-19","9 Meses",1,60,null,null,null,null,"Terminado",1.0000000166525584]
["019-2022",2022,"FDLM-019-2022 (68328)","https://community.secop.gov.co/Public/Tendering/OpportunityDetail/Index?noticeUID=CO1.NTC.2588879&isFromPublicArea=True&isModal=False","Contratos de prestación de servicios profesionales y de apoyo a la gestión","Contratación directa","Prestación de servicios profesionales y de apoyo a la gestión, o para la ejecución de trabajos artísticos que sólo puedan encomendarse a determinadas personas naturales","Prestar los servicios profesionales para la operación, prestación, seguimiento y cumplimiento de los procedimientos administrativos, operativos y programáticos del servicio social apoyo económico tipo C, que contribuyan a la garantía de los derechos de la población mayor en el marco de la política pública social para el envejecimiento y la vejez en el distrito capital a cargo de la alcaldía local.","Inversión","Un nuevo contrato social y ambiental para la Bogotá del Siglo XXI",3,{"$f":"IF(ISERROR(VLOOKUP(K31,Proposito_programa!$C$2:$E$59,2,FALSE)),\" \",VLOOKUP(K31,Proposito_programa!$C$2:$E$59,2,FALSE))","v":"Movilidad social integral"},{"$f":"IF(ISERROR(VLOOKUP(K31,Proposito_programa!$C$2:$E$59,3,FALSE)),\" \",VLOOKUP(K31,Proposito_programa!$C$2:$E$59,3,FALSE))","v":"Propósito 1: Hacer un nuevo contrato social para incrementar la inclusión social, productiva y política"},"O23011601010000002068",0,52198702,"LEDI ANYELI CASTRILLON MARTINEZ","Persona Natural","N/A","N/A","N/A",2022,41917500,null,1,13566666,55484166,55484167,"2022-01-17","2022-01-19","2022-10-18","9 Meses",1,60,null,null,null,null,"Terminado",1.0000000180231601]
["020-2022",2022,"FDLM-020-2022 (70050)","https://community.secop.gov.co/Public/Tendering/OpportunityDetail/Index?noticeUID=CO1.NTC.2596815&isFromPublicArea=True&isModal=False","Contratos de prestación de servicios profesionales y de apoyo a la gestión","Contratación directa","Prestación de servicios profesionales y de apoyo a la gestión, o para la ejecución de trabajos artísticos que sólo puedan encomendarse a determinadas personas naturales","APOYAR AL EQUIPO DE PRENSA Y COMUNICACIONES DE LA ALCALDÍA LOCAL EN LA REALIZACIÓN Y PUBLICACIÓN DE CONTENIDOS DE REDES SOCIALES Y CANALES DE DIVULGACIÓN DIGITAL.","Inversión","Un nuevo contrato social y ambiental para la Bogotá del Siglo XXI",3,{"$f":"IF(ISERROR(VLOOKUP(K32,Proposito_programa!$C$2:$E$59,2,FALSE)),\" \",VLOOKUP(K32,Proposito_programa!$C$2:$E$59,2,FALSE))","v":"Movilidad social integral"},{"$f":"IF(ISERROR(VLOOKUP(K32,Proposito_programa!$C$2:$E$59,3,FALSE)),\" \",VLOOKUP(K32,Proposito_programa!$C$2:$E$59,3,FALSE))","v":"Propósito 1: Hacer un nuevo contrato social para incrementar la inclusión social, productiva y política"},"O23011605570000002099",0,1015450203,"JUAN SEBASTIAN VITERI CHAVEZ","Persona Natural","N/A","N/A","N/A",2022,42300000,null,1,5000000,47300000,47300001,"2022-01-18","2022-01-20","2022-10-19","9 Meses",1,60,79897842,"JULIO CESAR GALEON ORTIZ","2022-06-01",null,"Terminado",1.0000000211416491]
["021-2022",2022,"FDLM-021-2022 (69736)","https://community.secop.gov.co/Public/Tendering/OpportunityDetail/Index?noticeUID=CO1.NTC.2589626&isFromPublicArea=True&isModal=False","Contratos de prestación de servicios profesionales y de apoyo a la gestión","Contratación directa","Prestación de servicios profesionales y de apoyo a la gestión, o para la ejecución de trabajos artísticos que sólo puedan encomendarse a determinadas personas naturales","PRESTAR SUS SERVICIOS PROFESIONALES PARA LIDERAR Y HACER SEGUIMIENTO A LOS PLANES Y ESTRATEGIAS DE COMUNICACIONES INTERNAS Y EXTERNAS PARA LA DIVULGACIÓN DE LOS PROGRAMAS, PROYECTOS Y ACTIVIDADES DE LA ALCALDÍA LOCAL.","Inversión","Un nuevo contrato social y ambiental para la Bogotá del Siglo XXI",3,{"$f":"IF(ISERROR(VLOOKUP(K33,Proposito_programa!$C$2:$E$59,2,FALSE)),\" \",VLOOKUP(K33,Proposito_programa!$C$2:$E$59,2,FALSE))","v":"Movilidad social integral"},{"$f":"IF(ISERROR(VLOOKUP(K33,Proposito_programa!$C$2:$E$59,3,FALSE)),\" \",VLOOKUP(K33,Proposito_programa!$C$2:$E$59,3,FALSE))","v":"Propósito 1: Hacer un nuevo contrato social para incrementar la inclusión social, productiva y política"},"O23011605570000002099",0,1015433078,"NATALIA STEPHANY DURAN CAMARGO","Persona Natural","N/A","N/A","N/A",2022,45000000,null,1,6300000,51300000,51300001,"2022-01-17","2022-01-19","2022-10-18","9 Meses",1,90,null,null,null,null,"Terminado",1.0000000194931773]
["022-2022",2022,"FDLM-022-2022 (67826)","https://community.secop.gov.co/Public/Tendering/OpportunityDetail/Index?noticeUID=CO1.NTC.2617490&isFromPublicArea=True&isModal=False ","Contratos de prestación de servicios profesionales y de apoyo a la gestión","Contratación directa","Prestación de servicios profesionales y de apoyo a la gestión, o para la ejecución de trabajos artísticos que sólo puedan encomendarse a determinadas personas naturales","APOYAR ADMINISTRATIVA Y ASISTENCIALMENTE AL DESPACHO DEL ALCALDE LOCAL DE LOS MARTIRES","Inversión","Un nuevo contrato social y ambiental para la Bogotá del Siglo XXI",3,{"$f":"IF(ISERROR(VLOOKUP(K34,Proposito_programa!$C$2:$E$59,2,FALSE)),\" \",VLOOKUP(K34,Proposito_programa!$C$2:$E$59,2,FALSE))","v":"Movilidad social integral"},{"$f":"IF(ISERROR(VLOOKUP(K34,Proposito_programa!$C$2:$E$59,3,FALSE)),\" \",VLOOKUP(K34,Proposito_programa!$C$2:$E$59,3,FALSE))","v":"Propósito 1: Hacer un nuevo contrato social para incrementar la inclusión social, productiva y política"},"O23011605570000002099",0,53168170,"MARIA ANGELICA DEL PILAR ANGULO PAEZ","Persona Natural","N/A","N/A","N/A",2022,29700000,null,1,6300000,36000000,36000001,"2022-01-19","2022-01-20","2022-10-19","9 meses",1,90,null,null,null,null,"Terminado",1.0000000277777779]
["023-2022",2022,"FDLM-023-2022 (67815)","https://community.secop.gov.co/Public/Tendering/OpportunityDetail/Index?noticeUID=CO1.NTC.2618209&isFromPublicArea=True&isModal=False ","Contratos de prestación de servicios profesionales y de apoyo a la gestión","Contratación directa","Prestación de servicios profesionales y de apoyo a la gestión, o para la ejecución de trabajos artísticos que sólo puedan encomendarse a determinadas personas naturales","PRESTAR SUS SERVICIOS PROFESIONALES PARA APOYAR AL ALCALDE LOCAL EN LA PROMOCIÓN, ACOMPAÑAMIENTO, COORDINACIÓN Y ATENCIÓN DE LAS INSTANCIAS DE COORDINACIÓN INTERINSTITUCIONALES Y LAS INSTANCIAS DE PARTICIPACIÓN LOCALES, ASÍ COMO LOS PROCESO COMUNITARIOS EN LA LOCALIDAD, EN CUMPLIMIENTO DEL PLAN DE DESARROLLO LOCAL VIGENTE","Inversión","Un nuevo contrato social y ambiental para la Bogotá del Siglo XXI",3,{"$f":"IF(ISERROR(VLOOKUP(K35,Proposito_programa!$C$2:$E$59,2,FALSE)),\" \",VLOOKUP(K35,Proposito_programa!$C$2:$E$59,2,FALSE))","v":"Movilidad social integral"},{"$f":"IF(ISERROR(VLOOKUP(K35,Proposito_programa!$C$2:$E$59,3,FALSE)),\" \",VLOOKUP(K35,Proposito_programa!$C$2:$E$59,3,FALSE))","v":"Propósito 1: Hacer un nuevo contrato social para incrementar la inclusión social, productiva y política"},"O23011605570000002099",0,79980371,"JUAN CARLOS TOLOSA BUITRAGO","Persona Natural","N/A","N/A","N/A",2022,54000000,null,1,6044400,60044400,60044401,"2022-01-19","2022-01-20","2022-10-19","9 meses",1,60,null,null,null,null,"Terminado",1.0000000166543423]
["024-2022",2022,"FDLM-024-2022 (68209)","https://community.secop.gov.co/Public/Tendering/OpportunityDetail/Index?noticeUID=CO1.NTC.2621397&isFromPublicArea=True&isModal=False ","Contratos de prestación de servicios profesionales y de apoyo a la gestión","Contratación directa","Prestación de servicios profesionales y de apoyo a la gestión, o para la ejecución de trabajos artísticos que sólo puedan encomendarse a determinadas personas naturales","Prestar sus servicios como personal de apoyo en la conducción de los vehículos livianos o pesados de propiedad del Fondo de Desarrollo Local de Los Mártires.","Inversión","Un nuevo contrato social y ambiental para la Bogotá del Siglo XXI",3,{"$f":"IF(ISERROR(VLOOKUP(K36,Proposito_programa!$C$2:$E$59,2,FALSE)),\" \",VLOOKUP(K36,Proposito_programa!$C$2:$E$59,2,FALSE))","v":"Movilidad social integral"},{"$f":"IF(ISERROR(VLOOKUP(K36,Proposito_programa!$C$2:$E$59,3,FALSE)),\" \",VLOOKUP(K36,Proposito_programa!$C$2:$E$59,3,FALSE))","v":"Propósito 1: Hacer un nuevo contrato social para incrementar la inclusión social, productiva y política"},"O23011605570000002099",0,19406345,"JOSE FABIO TORRES VIGOYA","Persona Natural","N/A","N/A","N/A",2022,22356000,null,1,14600000,36956000,36956001,"2022-01-19","2022-01-20","2022-10-19","9 meses",1,60,null,null,null,null,"Terminado",1.0000000270592055]
["025-2022",2022,"FDLM-025-2022 (67758)","https://community.secop.gov.co/Public/Tendering/OpportunityDetail/Index?noticeUID=CO1.NTC.2620873&isFromPublicArea=True&isModal=False ","Contratos de prestación de servicios profesionales y de apoyo a la gestión","Contratación directa","Prestación de servicios profesionales y de apoyo a la gestión, o para la ejecución de trabajos artísticos que sólo puedan encomendarse a determinadas personas naturales","PRESTAR SUS SERVICIOS PROFESIONALES PARA APOYAR A LOS RESPONSABLES E INTEGRANTES DE LOS PROCESOS EN LA IMPLEMENTACIÓN DE HERRAMIENTAS DEL ÁREA DE GESTIÓN DEL DESARROLLO, SIGUIENDO LOS LINEAMIENTOS METODOLÓGICOS ESTABLECIDOS POR EL FDLM, EN CUMPLIMIENTO DEL PLAN DE DESARROLLO LOCAL VIGENTE.","Inversión","Un nuevo contrato social y ambiental para la Bogotá del Siglo XXI",3,{"$f":"IF(ISERROR(VLOOKUP(K37,Proposito_programa!$C$2:$E$59,2,FALSE)),\" \",VLOOKUP(K37,Proposito_programa!$C$2:$E$59,2,FALSE))","v":"Movilidad social integral"},{"$f":"IF(ISERROR(VLOOKUP(K37,Proposito_programa!$C$2:$E$59,3,FALSE)),\" \",VLOOKUP(K37,Proposito_programa!$C$2:$E$59,3,FALSE))","v":"Propósito 1: Hacer un nuevo contrato social para incrementar la inclusión social, productiva y política"},"O23011605570000002099",0,1065632755,"JOHNNY ANTONIO CHINCHILLA RANGEL","Persona Natural","N/A","N/A","N/A",2022,49500000,null,1,14600000,64100000,64100001,"2022-01-19","2022-01-20","2022-10-19","9 meses",1,60,null,null,null,null,"Terminado",1.0000000156006241]
["026-2022",2022,"FDLM-026-2022 (67758)","https://community.secop.gov.co/Public/Tendering/OpportunityDetail/Index?noticeUID=CO1.NTC.2618888&isFromPublicArea=True&isModal=False ","Contratos de prestación de servicios profesionales y de apoyo a la gestión","Contratación directa","Prestación de servicios profesionales y de apoyo a la gestión, o para la ejecución de trabajos artísticos que sólo puedan encomendarse a determinadas personas naturales","PRESTAR SUS SERVICIOS PROFESIONALES PARA APOYAR A LOS RESPONSABLES E INTEGRANTES DE LOS PROCESOS EN LA IMPLEMENTACIÓN DE HERRAMIENTAS DEL ÁREA DE GESTIÓN DEL DESARROLLO, SIGUIENDO LOS LINEAMIENTOS METODOLÓGICOS ESTABLECIDOS POR EL FDLM, EN CUMPLIMIENTO DEL PLAN DE DESARROLLO LOCAL VIGENTE.","Inversión","Un nuevo contrato social y ambiental para la Bogotá del Siglo XXI",3,{"$f":"IF(ISERROR(VLOOKUP(K38,Proposito_programa!$C$2:$E$59,2,FALSE)),\" \",VLOOKUP(K38,Proposito_programa!$C$2:$E$59,2,FALSE))","v":"Movilidad social integral"},{"$f":"IF(ISERROR(VLOOKUP(K38,Proposito_programa!$C$2:$E$59,3,FALSE)),\" \",VLOOKUP(K38,Proposito_programa!$C$2:$E$59,3,FALSE))","v":"Propósito 1: Hacer un nuevo contrato social para incrementar la inclusión social, productiva y política"},"O23011605570000002099",0,1013591512,"SERGIO NARAYAN JIUSEPPE ARMANDO BERNAL RUIZ","Persona Natural","N/A","N/A","N/A",2022,49500000,null,1,6153333,55653333,55653334,"2022-01-19","2022-01-20","2022-10-19","9 meses",1,60,null,null,null,null,"Terminado",1.0000000179683757]
["027-2022",2022,"FDLM-027-2022 (67758)","https://community.secop.gov.co/Public/Tendering/OpportunityDetail/Index?noticeUID=CO1.NTC.2621082&isFromPublicArea=True&isModal=False ","Contratos de prestación de servicios profesionales y de apoyo a la gestión","Contratación directa","Prestación de servicios profesionales y de apoyo a la gestión, o para la ejecución de trabajos artísticos que sólo puedan encomendarse a determinadas personas naturales","PRESTAR SUS SERVICIOS PROFESIONALES PARA APOYAR A LOS RESPONSABLES E INTEGRANTES DE LOS PROCESOS EN LA IMPLEMENTACIÓN DE HERRAMIENTAS DEL ÁREA DE GESTIÓN DEL DESARROLLO, SIGUIENDO LOS LINEAMIENTOS METODOLÓGICOS ESTABLECIDOS POR EL FDLM, EN CUMPLIMIENTO DEL PLAN DE DESARROLLO LOCAL VIGENTE.","Inversión","Un nuevo contrato social y ambiental para la Bogotá del Siglo XXI",3,{"$f":"IF(ISERROR(VLOOKUP(K39,Proposito_programa!$C$2:$E$59,2,FALSE)),\" \",VLOOKUP(K39,Proposito_programa!$C$2:$E$59,2,FALSE))","v":"Movilidad social integral"},{"$f":"IF(ISERROR(VLOOKUP(K39,Proposito_programa!$C$2:$E$59,3,FALSE)),\" \",VLOOKUP(K39,Proposito_programa!$C$2:$E$59,3,FALSE))","v":"Propósito 1: Hacer un nuevo contrato social para incrementar la inclusión social, productiva y política"},"O23011605570000002099",0,1094933233,"STEFANNY ALONSO MUÑOZ","Persona Natural","N/A","N/A","N/A",2022,49500000,null,1,11954250,61454250,61454251,"2022-01-19","2022-01-21","2022-10-20","9 meses",1,60,null,null,null,null,"Terminado",1.0000000162722675]
["028-2022",2022,"FDLM-028-2022","https://community.secop.gov.co/Public/Tendering/OpportunityDetail/Index?noticeUID=CO1.NTC.2621905&isFromPublicArea=True&isModal=False\n","Contratos de prestación de servicios profesionales y de apoyo a la gestión","Contratación directa","Prestación de servicios profesionales y de apoyo a la gestión, o para la ejecución de trabajos artísticos que sólo puedan encomendarse a determinadas personas naturales","PRESTAR SUS SERVICIOS PROFESIONALES PARA APOYAR A LOS RESPONSABLES E INTEGRANTES DE LOS PROCESOS EN LA IMPLEMENTACIÓN DE HERRAMIENTAS DEL ÁREA DE GESTIÓN DEL DESARROLLO, SIGUIENDO LOS LINEAMIENTOS METODOLÓGICOS ESTABLECIDOS POR EL FDLM, EN CUMPLIMIENTO DEL PLAN DE DESARROLLO LOCAL VIGENTE.","Inversión","Un nuevo contrato social y ambiental para la Bogotá del Siglo XXI",3,{"$f":"IF(ISERROR(VLOOKUP(K40,Proposito_programa!$C$2:$E$59,2,FALSE)),\" \",VLOOKUP(K40,Proposito_programa!$C$2:$E$59,2,FALSE))","v":"Movilidad social integral"},{"$f":"IF(ISERROR(VLOOKUP(K40,Proposito_programa!$C$2:$E$59,3,FALSE)),\" \",VLOOKUP(K40,Proposito_programa!$C$2:$E$59,3,FALSE))","v":"Propósito 1: Hacer un nuevo contrato social para incrementar la inclusión social, productiva y política"},"O23011605570000002099",0,1129518741,"ANDREA CAROLINA CARDENAS CAYÓN","Persona Natural","N/A","N/A","N/A",2022,49500000,null,1,11178000,60678000,60678001,"2022-01-19","2022-01-21","2022-10-20","9 Meses",1,60,null,null,null,null,"Terminado",1.0000000164804377]
["029-2022",2022,"FDLM-029-2022 (67818)","https://community.secop.gov.co/Public/Tendering/OpportunityDetail/Index?noticeUID=CO1.NTC.2616542&isFromPublicArea=True&isModal=False","Contratos de prestación de servicios profesionales y de apoyo a la gestión","Contratación directa","Prestación de servicios profesionales y de apoyo a la gestión, o para la ejecución de trabajos artísticos que sólo puedan encomendarse a determinadas personas naturales","Prestar servicios Profesionales Especializados para gestión de los asuntos concernientes con la seguridad ciudadana, convivencia y prevención de conflictos, violencias y delitos en la localidad de Los Mártires, de conformidad con el marco normativo aplicable en la materia.","Inversión","Un nuevo contrato social y ambiental para la Bogotá del Siglo XXI",3,{"$f":"IF(ISERROR(VLOOKUP(K41,Proposito_programa!$C$2:$E$59,2,FALSE)),\" \",VLOOKUP(K41,Proposito_programa!$C$2:$E$59,2,FALSE))","v":"Movilidad social integral"},{"$f":"IF(ISERROR(VLOOKUP(K41,Proposito_programa!$C$2:$E$59,3,FALSE)),\" \",VLOOKUP(K41,Proposito_programa!$C$2:$E$59,3,FALSE))","v":"Propósito 1: Hacer un nuevo contrato social para incrementar la inclusión social, productiva y política"},"O23011605570000002099",0,80075984,"HERNANDO ESPELETA MAIGUEL","Persona Natural","N/A","N/A","N/A",2022,77660000,null,null,null,77660000,77660000,"2022-01-19","2022-01-20","2022-12-19","11 Meses",null,null,null,null,null,null,"En ejecución",1]
["030-2022",2022,"FDLM-030-2022","https://community.secop.gov.co/Public/Tendering/OpportunityDetail/Index?noticeUID=CO1.NTC.2621083&isFromPublicArea=True&isModal=False","Contratos de prestación de servicios profesionales y de apoyo a la gestión","Contratación directa","Prestación de servicios profesionales y de apoyo a la gestión, o para la ejecución de trabajos artísticos que sólo puedan encomendarse a determinadas personas naturales","PRESTAR SERVICIOS PROFESIONALES ESPECIALIZADOS AL ÁREA POLICIVA DE LA ALCALDÍA LOCAL DE LOS MÁRTIRES, PARA ADELANTAR TRÁMITES, PROCEDIMIENTOS Y LINEAMIENTOS EN MATERIA JURÍDICA QUE PERMITAN GARANTIZAR EL CUMPLIMIENTO DE LAS METAS ESTABLECIDAS EN EL PLAN DE DESARROLLO LOCAL VIGENTE","Inversión","Un nuevo contrato social y ambiental para la Bogotá del Siglo XXI",3,{"$f":"IF(ISERROR(VLOOKUP(K42,Proposito_programa!$C$2:$E$59,2,FALSE)),\" \",VLOOKUP(K42,Proposito_programa!$C$2:$E$59,2,FALSE))","v":"Movilidad social integral"},{"$f":"IF(ISERROR(VLOOKUP(K42,Proposito_programa!$C$2:$E$59,3,FALSE)),\" \",VLOOKUP(K42,Proposito_programa!$C$2:$E$59,3,FALSE))","v":"Propósito 1: Hacer un nuevo contrato social para incrementar la inclusión social, productiva y política"},"O23011605570000002099",0,1032418847,"DIEGO FERNANDO PULIDO CHICA","Persona Natural","N/A","N/A","N/A",2022,89100000,null,null,null,89100000,89100000,"2022-01-19","2022-01-20","2022-12-19","11 Meses",null,null,null,null,null,null,"Terminado",1]
["032-2022",2022,"FDLM-032-2022","https://community.secop.gov.co/Public/Tendering/OpportunityDetail/Index?noticeUID=CO1.NTC.2621363&isFromPublicArea=True&isModal=False","Contratos de prestación de servicios profesionales y de apoyo a la gestión","Contratación directa","Prestación de servicios profesionales y de apoyo a la gestión, o para la ejecución de trabajos artísticos que sólo puedan encomendarse a determinadas personas naturales","EL CONTRATISTA SE OBLIGA CON EL FONDO DE DESARROLLO LOCAL DE LOS MÁRTIRES A PRESTAR SUS SERVICIOS DE APOYO A LA GESTIÓN DE ARTICULACIÓN EN LOS TEMAS DE SEGURIDAD CIUDADANA, CONVIVENCIA Y PREVENCIÓN DE CONFLICTIVIDADES, VIOLENCIAS Y DELITOS EN LA LOCALIDAD.","Inversión","Un nuevo contrato social y ambiental para la Bogotá del Siglo XXI",3,{"$f":"IF(ISERROR(VLOOKUP(K43,Proposito_programa!$C$2:$E$59,2,FALSE)),\" \",VLOOKUP(K43,Proposito_programa!$C$2:$E$59,2,FALSE))","v":"Movilidad social integral"},{"$f":"IF(ISERROR(VLOOKUP(K43,Proposito_programa!$C$2:$E$59,3,FALSE)),\" \",VLOOKUP(K43,Proposito_programa!$C$2:$E$59,3,FALSE))","v":"Propósito 1: Hacer un nuevo contrato social para incrementar la inclusión social, productiva y política"},"O23011603430000002083",0,19396517,"HECTOR ALFONSO DELGADO RODRIGUEZ","Persona Natural","N/A","N/A","N/A",2022,27000000,null,1,14200000,{"$f":"+W43+X43+Z43","v":41200000},27000000,"2022-01-19","2022-01-24","2022-10-23","9 meses",1,60,null,null,null,null,"En ejecución",0.65533980582524276]
["033-2022",2022,"FDLM-033-2022 (67821)","https://community.secop.gov.co/Public/Tendering/OpportunityDetail/Index?noticeUID=CO1.NTC.2619729&isFromPublicArea=True&isModal=False","Contratos de prestación de servicios profesionales y de apoyo a la gestión","Contratación directa","Prestación de servicios profesionales y de apoyo a la gestión, o para la ejecución de trabajos artísticos que sólo puedan encomendarse a determinadas personas naturales","PRESTAR LOS SERVICIOS PROFESIONALES COMO APOYO AL ÁREA DE GESTIÓN DEL DESARROLLO, PARA EL FORTALECIMIENTO PRESUPUESTAL Y CONTABLE, EN EL CUMPLIMIENTO DEL PLAN DE DESARROLLO LOCAL VIGENTE","Inversión","Un nuevo contrato social y ambiental para la Bogotá del Siglo XXI",3,{"$f":"IF(ISERROR(VLOOKUP(K44,Proposito_programa!$C$2:$E$59,2,FALSE)),\" \",VLOOKUP(K44,Proposito_programa!$C$2:$E$59,2,FALSE))","v":"Movilidad social integral"},{"$f":"IF(ISERROR(VLOOKUP(K44,Proposito_programa!$C$2:$E$59,3,FALSE)),\" \",VLOOKUP(K44,Proposito_programa!$C$2:$E$59,3,FALSE))","v":"Propósito 1: Hacer un nuevo contrato social para incrementar la inclusión social, productiva y política"},"O23011605570000002099",0,52060589,"EDITH CAROLINA CASTELLANOS MARTINEZ","Persona Natural","N/A","N/A","N/A",2022,45000000,null,1,5878800,50878800,45000000,"2022-01-19","2022-01-21","2022-10-20","9 Meses",1,60,null,null,null,null,"En ejecución",0.88445482204768977]
["034-2022",2022,"FDLM-034-2022 (68204) ","https://community.secop.gov.co/Public/Tendering/OpportunityDetail/Index?noticeUID=CO1.NTC.2630570&isFromPublicArea=True&isModal=False","Contratos de prestación de servicios profesionales y de apoyo a la gestión","Contratación directa","Prestación de servicios profesionales y de apoyo a la gestión, o para la ejecución de trabajos artísticos que sólo puedan encomendarse a determinadas personas naturales","APOYAR EN LAS TAREAS OPERATIVAS DE CARÁCTER ARCHIVISTICO DESARROLLADAS EN LA ALCALDIA LOCAL PARA GARANTIZAR LA APLICACIÓN CORRECTA DE LOS PROCEDIMIENTOS TECNICOS.","Inversión","Un nuevo contrato social y ambiental para la Bogotá del Siglo XXI",3,{"$f":"IF(ISERROR(VLOOKUP(K45,Proposito_programa!$C$2:$E$59,2,FALSE)),\" \",VLOOKUP(K45,Proposito_programa!$C$2:$E$59,2,FALSE))","v":"Movilidad social integral"},{"$f":"IF(ISERROR(VLOOKUP(K45,Proposito_programa!$C$2:$E$59,3,FALSE)),\" \",VLOOKUP(K45,Proposito_programa!$C$2:$E$59,3,FALSE))","v":"Propósito 1: Hacer un nuevo contrato social para incrementar la inclusión social, productiva y política"},"O23011605570000002099",0,51689390,"CARMEN MARIA NIPERUZA FLOREZ","Persona Natural","N/A","N/A","N/A",2022,30739500,null,1,13016667,43756167,{"$f":"+X45+Y45+AA45","v":43756168},"2022-01-20","2022-01-21","2022-10-20","9 Meses",1,90,null,null,null,null,"Terminado",1.0000000228539214]
["035-2022",2022,"FDLM-035-2022 (68335)","https://community.secop.gov.co/Public/Tendering/OpportunityDetail/Index?noticeUID=CO1.NTC.2726464&isFromPublicArea=True&isModal=False","Contratos de prestación de servicios profesionales y de apoyo a la gestión","Contratación directa","Prestación de servicios profesionales y de apoyo a la gestión, o para la ejecución de trabajos artísticos que sólo puedan encomendarse a determinadas personas naturales","PRESTAR LOS SERVICIOS PROFESIONALES COMO APOYO AL ÁREA DE GESTIÓN DEL DESARROLLO, PARA EL FORTALECIMIENTO PRESUPUESTAL Y CONTABLE, EN EL CUMPLIMIENTO DEL PLAN DE DESARROLLO LOCAL VIGENTE.","Inversión","Un nuevo contrato social y ambiental para la Bogotá del Siglo XXI",3,{"$f":"IF(ISERROR(VLOOKUP(K46,Proposito_programa!$C$2:$E$59,2,FALSE)),\" \",VLOOKUP(K46,Proposito_programa!$C$2:$E$59,2,FALSE))","v":"Movilidad social integral"},{"$f":"IF(ISERROR(VLOOKUP(K46,Proposito_programa!$C$2:$E$59,3,FALSE)),\" \",VLOOKUP(K46,Proposito_programa!$C$2:$E$59,3,FALSE))","v":"Propósito 1: Hacer un nuevo contrato social para incrementar la inclusión social, productiva y política"},"O23011605570000002099",0,1013603935,"CATHERINE DÍAZ LOZANO","Persona Natural","N/A","N/A","N/A",2022,27120000,null,1,13560000,40680000,40680001,"2022-01-20","2022-01-21","2022-10-20","9 Meses",null,null,null,null,null,null,"Terminado",{"$f":"IF(ISERROR(AB46/AA46),\"-\",(AB46/AA46))","v":1.0000000245821041}]
["036-2022",2022,"FDLM-036-2022 (68207)","https://community.secop.gov.co/Public/Tendering/OpportunityDetail/Index?noticeUID=CO1.NTC.2671071&isFromPublicArea=True&isModal=False","Contratos de prestación de servicios profesionales y de apoyo a la gestión","Contratación directa","Prestación de servicios profesionales y de apoyo a la gestión, o para la ejecución de trabajos artísticos que sólo puedan encomendarse a determinadas personas naturales","PRESTAR LOS SERVICIOS DE APOYO A GESTIÓN EN LAS DIFERENTES LABORES ADMINISTRATIVAS QUE SURJAN DE LAS ACTIVIDADES DE LA JUNTA ADMINISTRADORA LOCAL DE LOS MÁRTIRES.","Inversión","Un nuevo contrato social y ambiental para la Bogotá del Siglo XXI",3,{"$f":"IF(ISERROR(VLOOKUP(K47,Proposito_programa!$C$2:$E$59,2,FALSE)),\" \",VLOOKUP(K47,Proposito_programa!$C$2:$E$59,2,FALSE))","v":"Movilidad social integral"},{"$f":"IF(ISERROR(VLOOKUP(K47,Proposito_programa!$C$2:$E$59,3,FALSE)),\" \",VLOOKUP(K47,Proposito_programa!$C$2:$E$59,3,FALSE))","v":"Propósito 1: Hacer un nuevo contrato social para incrementar la inclusión social, productiva y política"},"O23011605570000002099",0,51880973,"ARIS SEDITH CABARCAS MARTINEZ","Persona Natural","N/A","N/A","N/A",2022,21424500,null,1,13016667,34441167,34441168,"2022-01-24","2022-01-26","2022-10-25","9 Meses",1,60,null,null,null,null,"Terminado",1.0000000290350208]
["037-2022",2022,"FDLM-037-2022 (67758) ","https://community.secop.gov.co/Public/Tendering/OpportunityDetail/Index?noticeUID=CO1.NTC.2792643&isFromPublicArea=True&isModal=False","Contratos de prestación de servicios profesionales y de apoyo a la gestión","Contratación directa","Prestación de servicios profesionales y de apoyo a la gestión, o para la ejecución de trabajos artísticos que sólo puedan encomendarse a determinadas personas naturales","PRESTAR SUS SERVICIOS PROFESIONALES PARA APOYAR A LOS RESPONSABLES E INTEGRANTES DE LOS PROCESOS EN LA IMPLEMENTACIÓN DE HERRAMIENTAS DEL ÁREA DE GESTIÓN DEL DESARROLLO, SIGUIENDO LOS LINEAMIENTOS METODOLÓGICOS ESTABLECIDOS POR EL FDLM, EN CUMPLIMIENTO DEL PLAN DE DESARROLLO LOCAL VIGENTE.","Inversión","Un nuevo contrato social y ambiental para la Bogotá del Siglo XXI",3,{"$f":"IF(ISERROR(VLOOKUP(K48,Proposito_programa!$C$2:$E$59,2,FALSE)),\" \",VLOOKUP(K48,Proposito_programa!$C$2:$E$59,2,FALSE))","v":"Movilidad social integral"},{"$f":"IF(ISERROR(VLOOKUP(K48,Proposito_programa!$C$2:$E$59,3,FALSE)),\" \",VLOOKUP(K48,Proposito_programa!$C$2:$E$59,3,FALSE))","v":"Propósito 1: Hacer un nuevo contrato social para incrementar la inclusión social, productiva y política"},"O23011605570000002099",0,37013312,"MARIA CECILIA VALLEJO ROSERO","Persona Natural","N/A","N/A","N/A",2022,49500000,null,1,12833333,62333333,62333334,"2022-01-28","2022-02-01","2022-10-31","9 Meses",1,60,null,null,null,null,"Terminado",1.0000000160427809]
["038-2022",2022,"FDLM-038-2022 (68209)","https://community.secop.gov.co/Public/Tendering/OpportunityDetail/Index?noticeUID=CO1.NTC.2671431&isFromPublicArea=True&isModal=False","Contratos de prestación de servicios profesionales y de apoyo a la gestión","Contratación directa","Prestación de servicios profesionales y de apoyo a la gestión, o para la ejecución de trabajos artísticos que sólo puedan encomendarse a determinadas personas naturales","Prestar sus servicios como personal de apoyo en la conducción de los vehículos livianos o pesados de propiedad del Fondo de Desarrollo Local de Los Mártires.","Inversión","Un nuevo contrato social y ambiental para la Bogotá del Siglo XXI",3,{"$f":"IF(ISERROR(VLOOKUP(K49,Proposito_programa!$C$2:$E$59,2,FALSE)),\" \",VLOOKUP(K49,Proposito_programa!$C$2:$E$59,2,FALSE))","v":"Movilidad social integral"},{"$f":"IF(ISERROR(VLOOKUP(K49,Proposito_programa!$C$2:$E$59,3,FALSE)),\" \",VLOOKUP(K49,Proposito_programa!$C$2:$E$59,3,FALSE))","v":"Propósito 1: Hacer un nuevo contrato social para incrementar la inclusión social, productiva y política"},"O23011605570000002099",0,1032356526,"JOSÉ ORLANDO RUIZ GARCÍA","Persona Natural","N/A","N/A","N/A",2022,22356000,null,1,12833333,35189333,35189334,"2022-01-24","2022-01-27","2022-10-26","9 Meses",1,60,null,null,null,null,"Terminado",1.0000000284177026]
["039-2022",2022,"FDLM-039-2022 (68338)","https://community.secop.gov.co/Public/Tendering/OpportunityDetail/Index?noticeUID=CO1.NTC.2672110&isFromPublicArea=True&isModal=False","Contratos de prestación de servicios profesionales y de apoyo a la gestión","Contratación directa","Prestación de servicios profesionales y de apoyo a la gestión, o para la ejecución de trabajos artísticos que sólo puedan encomendarse a determinadas personas naturales","APOYAR Y DAR SOPORTE TÉCNICO AL ADMINISTRADOR Y USUARIO FINAL DE LA RED DE SISTEMAS Y TECNOLOGÍA E INFORMACIÓN DE LA ALCALDÍA LOCAL.","Inversión","Un nuevo contrato social y ambiental para la Bogotá del Siglo XXI",3,{"$f":"IF(ISERROR(VLOOKUP(K50,Proposito_programa!$C$2:$E$59,2,FALSE)),\" \",VLOOKUP(K50,Proposito_programa!$C$2:$E$59,2,FALSE))","v":"Movilidad social integral"},{"$f":"IF(ISERROR(VLOOKUP(K50,Proposito_programa!$C$2:$E$59,3,FALSE)),\" \",VLOOKUP(K50,Proposito_programa!$C$2:$E$59,3,FALSE))","v":"Propósito 1: Hacer un nuevo contrato social para incrementar la inclusión social, productiva y política"},"O23011605570000002099",0,79301171,"GUIDO JESUS VITERI HERRERA","Persona Natural","N/A","N/A","N/A",2022,20010000,null,null,null,20010000,20010000,"2022-01-24","2022-01-26","2022-07-25","6 Meses",null,null,null,null,null,null,"Terminado",1]
["040-2022",2022,"FDLM-040-2022 (68208)","https://community.secop.gov.co/Public/Tendering/OpportunityDetail/Index?noticeUID=CO1.NTC.2677413&isFromPublicArea=True&isModal=False","Contratos de prestación de servicios profesionales y de apoyo a la gestión","Contratación directa","Prestación de servicios profesionales y de apoyo a la gestión, o para la ejecución de trabajos artísticos que sólo puedan encomendarse a determinadas personas naturales","Apoyar la formulación, ejecución, seguimiento y mejora continua de las herramientas que conforman la Gestión Ambiental Institucional de la Alcaldía Local","Inversión","Un nuevo contrato social y ambiental para la Bogotá del Siglo XXI",3,{"$f":"IF(ISERROR(VLOOKUP(K51,Proposito_programa!$C$2:$E$59,2,FALSE)),\" \",VLOOKUP(K51,Proposito_programa!$C$2:$E$59,2,FALSE))","v":"Movilidad social integral"},{"$f":"IF(ISERROR(VLOOKUP(K51,Proposito_programa!$C$2:$E$59,3,FALSE)),\" \",VLOOKUP(K51,Proposito_programa!$C$2:$E$59,3,FALSE))","v":"Propósito 1: Hacer un nuevo contrato social para incrementar la inclusión social, productiva y política"},"O23011605570000002099",0,1026560952,"EMMANUEL DE JESÚS CALDERÓN RAMÍREZ","Persona Natural","N/A","N/A","N/A",2022,41917500,null,1,6700000,48617500,48617501,"2022-01-24","2022-02-11","2022-11-10","9 Meses",1,60,null,null,null,null,"Terminado",1.0000000205687252]
["041-2022",2022,"FDLM-041-2022 (68212)","https://community.secop.gov.co/Public/Tendering/OpportunityDetail/Index?noticeUID=CO1.NTC.2674233&isFromPublicArea=True&isModal=False","Contratos de prestación de servicios profesionales y de apoyo a la gestión","Contratación directa","Prestación de servicios profesionales y de apoyo a la gestión, o para la ejecución de trabajos artísticos que sólo puedan encomendarse a determinadas personas naturales","PRESTAR LOS SERVICIOS DE APOYO LOGÍSTICO EN LAS DIFERENTES TAREAS DE BODEGAJE, TRASLADOS, MONTAJES Y DEMÁS ACTIVIDADES RELACIONADAS A CARGO DE LA ALCALDÍA LOCAL DE LOS MÁRTIRES.","Inversión","Un nuevo contrato social y ambiental para la Bogotá del Siglo XXI",3,{"$f":"IF(ISERROR(VLOOKUP(K52,Proposito_programa!$C$2:$E$59,2,FALSE)),\" \",VLOOKUP(K52,Proposito_programa!$C$2:$E$59,2,FALSE))","v":"Movilidad social integral"},{"$f":"IF(ISERROR(VLOOKUP(K52,Proposito_programa!$C$2:$E$59,3,FALSE)),\" \",VLOOKUP(K52,Proposito_programa!$C$2:$E$59,3,FALSE))","v":"Propósito 1: Hacer un nuevo contrato social para incrementar la inclusión social, productiva y política"},"O23011605570000002099",0,1019088888,"HANS SNEIDER CABARCAS TOROS\n","Persona Natural","N/A","N/A","N/A",2022,20493000,null,null,null,20493000,20493000,"2022-01-24","2022-01-28","2022-10-27","9 Meses",null,null,null,null,null,null,"Terminado",1]
["042-2022",2022,"FDLM-042-2022 (70058)","https://community.secop.gov.co/Public/Tendering/OpportunityDetail/Index?noticeUID=CO1.NTC.2726743&isFromPublicArea=True&isModal=False","Contratos de prestación de servicios profesionales y de apoyo a la gestión","Contratación directa","Prestación de servicios profesionales y de apoyo a la gestión, o para la ejecución de trabajos artísticos que sólo puedan encomendarse a determinadas personas naturales","Prestar los servicios profesionales que garanticen la realización de las etapas precontractual, contractual y postcontractual del proyecto 2093, vigencia fiscal 2022, y consecuentemente coadyuven al cumplimiento de las metas del Plan de Desarrollo Local asociadas a dicho proyecto de inversión, y apoyar las labores de supervisión y liquidación de contratos suscritos con cargo al mismo proyecto","Inversión","Un nuevo contrato social y ambiental para la Bogotá del Siglo XXI",3,{"$f":"IF(ISERROR(VLOOKUP(K53,Proposito_programa!$C$2:$E$59,2,FALSE)),\" \",VLOOKUP(K53,Proposito_programa!$C$2:$E$59,2,FALSE))","v":"Movilidad social integral"},{"$f":"IF(ISERROR(VLOOKUP(K53,Proposito_programa!$C$2:$E$59,3,FALSE)),\" \",VLOOKUP(K53,Proposito_programa!$C$2:$E$59,3,FALSE))","v":"Propósito 1: Hacer un nuevo contrato social para incrementar la inclusión social, productiva y política"},"O23011601240000002093",0,1026572572,"JUAN CARLOS SANCHEZ SOLANO ","Persona Natural","N/A","N/A","N/A",2022,40000000,null,1,11666666,51666666,51666667,"2022-01-26","2022-01-28","2022-09-27","9 Meses",1,60,null,null,null,null,"Terminado",1.0000000193548391]
["043-2022",2022,"FDLM-043-2022 (70182)","https://community.secop.gov.co/Public/Tendering/OpportunityDetail/Index?noticeUID=CO1.NTC.2677254&isFromPublicArea=True&isModal=False","Contratos de prestación de servicios profesionales y de apoyo a la gestión","Contratación directa","Prestación de servicios profesionales y de apoyo a la gestión, o para la ejecución de trabajos artísticos que sólo puedan encomendarse a determinadas personas naturales","PRESTAR SERVICIOS PROFESIONALES ÁREA POLICIVA DE LA ALCALDÍA LOCAL DE LOS MÁRTIRES, PARA APOYAR JURÍDICAMENTE LA EJECUCIÓN DE LAS ACCIONES REQUERIDAS PARA LA DEPURACIÓN DE LAS ACTUACIONES ADMINISTRATIVAS QUE CURSAN EN LA ALCALDÍA LOCAL, ASI COMO ADELANTAR TRÁMITES, PROCEDIMIENTOS Y LINEAMIENTOS EN MATERIA JURÍDICA QUE PERMITAN GARANTIZAR EL CUMPLIMIENTO DE LAS METAS ESTABLECIDAS EN EL PLAN DE DESARROLLO LOCAL VIGENTE.","Inversión","Un nuevo contrato social y ambiental para la Bogotá del Siglo XXI",3,{"$f":"IF(ISERROR(VLOOKUP(K54,Proposito_programa!$C$2:$E$59,2,FALSE)),\" \",VLOOKUP(K54,Proposito_programa!$C$2:$E$59,2,FALSE))","v":"Movilidad social integral"},{"$f":"IF(ISERROR(VLOOKUP(K54,Proposito_programa!$C$2:$E$59,3,FALSE)),\" \",VLOOKUP(K54,Proposito_programa!$C$2:$E$59,3,FALSE))","v":"Propósito 1: Hacer un nuevo contrato social para incrementar la inclusión social, productiva y política"},"O23011605570000002099",0,1026274713,"RICARDO ERNESTO SANCHEZ MENESES ","Persona Natural","N/A","N/A","N/A",2022,45000000,null,null,null,45000000,45000000,"2022-01-24","2022-01-26","2022-10-25","9 Meses",null,null,null,null,null,null,"Terminado",1]
["044-2022",2022,"FDLM-044-2022 (68337)","https://community.secop.gov.co/Public/Tendering/OpportunityDetail/Index?noticeUID=CO1.NTC.2677882&isFromPublicArea=True&isModal=False","Contratos de prestación de servicios profesionales y de apoyo a la gestión","Contratación directa","Prestación de servicios profesionales y de apoyo a la gestión, o para la ejecución de trabajos artísticos que sólo puedan encomendarse a determinadas personas naturales","EL CONTRATISTA SE OBLIGA CON EL FONDO DE DESARROLLO LOCAL DE LOS MÁRTIRES A PRESTAR SUS SERVICIOS DE APOYO A LA GESTIÓN TERRITORIAL EN LOS TEMAS DE SEGURIDAD Y CONVIVENCIA CIUDADANA; EN EL MARCO DEL PROYECTO 2083 MOVILIZACIONES Y AGLOMERACIONES.","Inversión","Un nuevo contrato social y ambiental para la Bogotá del Siglo XXI",3,{"$f":"IF(ISERROR(VLOOKUP(K55,Proposito_programa!$C$2:$E$59,2,FALSE)),\" \",VLOOKUP(K55,Proposito_programa!$C$2:$E$59,2,FALSE))","v":"Movilidad social integral"},{"$f":"IF(ISERROR(VLOOKUP(K55,Proposito_programa!$C$2:$E$59,3,FALSE)),\" \",VLOOKUP(K55,Proposito_programa!$C$2:$E$59,3,FALSE))","v":"Propósito 1: Hacer un nuevo contrato social para incrementar la inclusión social, productiva y política"},"O23011603430000002083",0,1013618655,"FABIO ANDRES SOLORZA CORRALES","Persona Natural","N/A","N/A","N/A",2022,15600000,null,null,null,15600000,15600000,"2022-01-24","2022-02-03","2022-08-02","6 Meses",null,null,null,null,null,null,"Terminado",1]
["045-2022",2022,"FDLM-045-2022 (67810)","https://community.secop.gov.co/Public/Tendering/OpportunityDetail/Index?noticeUID=CO1.NTC.2677832&isFromPublicArea=True&isModal=False","Contratos de prestación de servicios profesionales y de apoyo a la gestión","Contratación directa","Prestación de servicios profesionales y de apoyo a la gestión, o para la ejecución de trabajos artísticos que sólo puedan encomendarse a determinadas personas naturales","PRESTAR SERVICIOS DE APOYO PARA LA ATENCIÓN, GESTIÓN Y TRÁMITE DE LOS ASUNTOS DE GESTIÓN DEL RIESGO, MANEJO DE AGLOMERACIONES, ATRACCIONES Y DISPOSITIVOS DE ENTRETENIMIENTOS A CARGO DE LA LOCALIDAD DE LOS MÁRTIRES","Inversión","Un nuevo contrato social y ambiental para la Bogotá del Siglo XXI",3,{"$f":"IF(ISERROR(VLOOKUP(K56,Proposito_programa!$C$2:$E$59,2,FALSE)),\" \",VLOOKUP(K56,Proposito_programa!$C$2:$E$59,2,FALSE))","v":"Movilidad social integral"},{"$f":"IF(ISERROR(VLOOKUP(K56,Proposito_programa!$C$2:$E$59,3,FALSE)),\" \",VLOOKUP(K56,Proposito_programa!$C$2:$E$59,3,FALSE))","v":"Propósito 1: Hacer un nuevo contrato social para incrementar la inclusión social, productiva y política"},"O23011605570000002099",0,1121914746,"GINA PAOLA ALBARRACIN FAJARDO","Persona Natural","N/A","N/A","N/A",2022,23400000,null,null,null,23400000,23400000,"2022-01-24","2022-01-26","2022-10-25","9 Meses",null,null,null,null,null,null,"Terminado",1]
["046-2022",2022,"FDLM-046-2022 (68565)","https://community.secop.gov.co/Public/Tendering/OpportunityDetail/Index?noticeUID=CO1.NTC.2723162&isFromPublicArea=True&isModal=False","Contratos de prestación de servicios profesionales y de apoyo a la gestión","Contratación directa","Prestación de servicios profesionales y de apoyo a la gestión, o para la ejecución de trabajos artísticos que sólo puedan encomendarse a determinadas personas naturales","CONTRATAR LA PRESTACIÓN DE SERVICIOS PROFESIONALES PARA LIDERAR LA EJECUCIÓN DEL PROYECTO 2077 DE PREVENCIÓN DE VIOLENCIA INTRAFAMILIAR, VIOLENCIA SEXUAL EN EL CONTEXTO FAMILIAR Y PROMOCIÓN DEL BUEN TRATO Y ENTORNO PROTECTORES PARA POBLACIONES EN SITUACIÓN DE RIESGO EN CUMPLIMIENTO DEL PLAN DE DESARROLLO LOCAL","Inversión","Un nuevo contrato social y ambiental para la Bogotá del Siglo XXI",3,{"$f":"IF(ISERROR(VLOOKUP(K57,Proposito_programa!$C$2:$E$59,2,FALSE)),\" \",VLOOKUP(K57,Proposito_programa!$C$2:$E$59,2,FALSE))","v":"Movilidad social integral"},{"$f":"IF(ISERROR(VLOOKUP(K57,Proposito_programa!$C$2:$E$59,3,FALSE)),\" \",VLOOKUP(K57,Proposito_programa!$C$2:$E$59,3,FALSE))","v":"Propósito 1: Hacer un nuevo contrato social para incrementar la inclusión social, productiva y política"},"O23011601060000002077",0,88281606,"DENIS EDUARDO BARROZO ROJAS ","Persona Natural","N/A","N/A","N/A",2022,46200000,null,null,null,46200000,46200000,"2022-01-26","2022-01-28","2022-08-27","9 Meses",null,null,1026283969,"LEIDY CAROLINA MORENO HURTADO","2022-07-01",null,"Terminado",1]
["047-2022",2022,"FDLM-047-2022 (68565)","https://community.secop.gov.co/Public/Tendering/OpportunityDetail/Index?noticeUID=CO1.NTC.2681692&isFromPublicArea=True&isModal=False","Contratos de prestación de servicios profesionales y de apoyo a la gestión","Contratación directa","Prestación de servicios profesionales y de apoyo a la gestión, o para la ejecución de trabajos artísticos que sólo puedan encomendarse a determinadas personas naturales","APOYAR JURIDICAMENTE AL FONDO DE DESARROLLO LOCAL DE LOS MARTIRES EN LA IMPLENTACION DE ACUEDOS, PLANES Y PROGRAMAS QUE PROMUEVAN LA CONVIVENCIA ARMÓNICA ENTRE LA CIUDADANÍA Y LOS VENDEDORES INFORMALES Y ESTACIONARIOS, ORIENTADOS A LA SOLUCIÓN DE LOS CONFLICTOS DEL ESPACIO PÚBLICO IDENTIFICADOS POR LAS ALCALDÍAS LOCALES, ASI COMO LAS DEMAS ACCIONES REQUERIDAS QUE PERMITAN GARANTIZAR EL CUMPLIMIENTO DE LAS METAS ESTABLECIDAS EN EL PLAN DE DESARROLLO LOCAL VIGENTE.","Inversión","Un nuevo contrato social y ambiental para la Bogotá del Siglo XXI",3,{"$f":"IF(ISERROR(VLOOKUP(K58,Proposito_programa!$C$2:$E$59,2,FALSE)),\" \",VLOOKUP(K58,Proposito_programa!$C$2:$E$59,2,FALSE))","v":"Movilidad social integral"},{"$f":"IF(ISERROR(VLOOKUP(K58,Proposito_programa!$C$2:$E$59,3,FALSE)),\" \",VLOOKUP(K58,Proposito_programa!$C$2:$E$59,3,FALSE))","v":"Propósito 1: Hacer un nuevo contrato social para incrementar la inclusión social, productiva y política"},"O23011603450000002080",0,1091666488,"DANILO ALFONSO CORONEL ROJAS","Persona Natural","N/A","N/A","N/A",2022,45000000,null,1,7969500,52969500,52969501,"2022-01-24","2022-01-28","2022-10-27","9 Meses",1,60,null,null,null,null,"Terminado",1.0000000188787888]
["048-2022",2022,"FDLM-048-2022 (67763)","https://community.secop.gov.co/Public/Tendering/OpportunityDetail/Index?noticeUID=CO1.NTC.2677250&isFromPublicArea=True&isModal=False","Contratos de prestación de servicios profesionales y de apoyo a la gestión","Contratación directa","Prestación de servicios profesionales y de apoyo a la gestión, o para la ejecución de trabajos artísticos que sólo puedan encomendarse a determinadas personas naturales","PRESTAR SUS SERVICIOS PROFESIONALES DE APOYO EN LA FORMULACIÓN, EVALUACIÓN Y SEGUIMIENTO DE LAS INSTANCIAS DE PARTICIPACIÓN LOCALES, ASÍ COMO DE LOS PROYECTOS DE INVERSIÓN Y DEMÁS ACTIVIDADES RELACIONADAS CON EL ÁREA DE GESTIÓN DEL DESARROLLO LOCAL","Inversión","Un nuevo contrato social y ambiental para la Bogotá del Siglo XXI",3,{"$f":"IF(ISERROR(VLOOKUP(K59,Proposito_programa!$C$2:$E$59,2,FALSE)),\" \",VLOOKUP(K59,Proposito_programa!$C$2:$E$59,2,FALSE))","v":"Movilidad social integral"},{"$f":"IF(ISERROR(VLOOKUP(K59,Proposito_programa!$C$2:$E$59,3,FALSE)),\" \",VLOOKUP(K59,Proposito_programa!$C$2:$E$59,3,FALSE))","v":"Propósito 1: Hacer un nuevo contrato social para incrementar la inclusión social, productiva y política"},"O23011605570000002099",0,1020779562,"ANA MARIA CRUZ TORRES","Persona Natural","N/A","N/A","N/A",2022,55800000,null,1,5157750,60957750,60957751,"2022-01-24","2022-02-01","2022-10-31","9 Meses",1,60,null,null,null,null,"Terminado",1.0000000164048051]
["049-2022",2022,"FDLM-049-2022 (68565)","https://community.secop.gov.co/Public/Tendering/OpportunityDetail/Index?noticeUID=CO1.NTC.2678882&isFromPublicArea=True&isModal=False","Contratos de prestación de servicios profesionales y de apoyo a la gestión","Contratación directa","Prestación de servicios profesionales y de apoyo a la gestión, o para la ejecución de trabajos artísticos que sólo puedan encomendarse a determinadas personas naturales","APOYAR JURIDICAMENTE AL FONDO DE DESARROLLO LOCAL DE LOS MARTIRES EN LA IMPLENTACION DE ACUEDOS, PLANES Y PROGRAMAS QUE PROMUEVAN LA CONVIVENCIA ARMÓNICA ENTRE LA CIUDADANÍA Y LOS VENDEDORES INFORMALES Y ESTACIONARIOS, ORIENTADOS A LA SOLUCIÓN DE LOS CONFLICTOS DEL ESPACIO PÚBLICO IDENTIFICADOS POR LAS ALCALDÍAS LOCALES, ASI COMO LAS DEMAS ACCIONES REQUERIDAS QUE PERMITAN GARANTIZAR EL CUMPLIMIENTO DE LAS METAS ESTABLECIDAS EN EL PLAN DE DESARROLLO LOCAL VIGENTE.","Inversión","Un nuevo contrato social y ambiental para la Bogotá del Siglo XXI",3,{"$f":"IF(ISERROR(VLOOKUP(K60,Proposito_programa!$C$2:$E$59,2,FALSE)),\" \",VLOOKUP(K60,Proposito_programa!$C$2:$E$59,2,FALSE))","v":"Movilidad social integral"},{"$f":"IF(ISERROR(VLOOKUP(K60,Proposito_programa!$C$2:$E$59,3,FALSE)),\" \",VLOOKUP(K60,Proposito_programa!$C$2:$E$59,3,FALSE))","v":"Propósito 1: Hacer un nuevo contrato social para incrementar la inclusión social, productiva y política"},"O23011603450000002080",0,1121881058,"ANDRÉS CRUZ CASTAÑEDA","Persona Natural","N/A","N/A","N/A",2022,45000000,null,1,11000000,56000000,56000001,"2022-01-24","2022-02-02","2022-11-01","9 Meses",1,60,null,null,null,null,"Terminado",1.0000000178571429]
["050-2022",2022,"FDLM-050-2022 (68565)","https://community.secop.gov.co/Public/Tendering/OpportunityDetail/Index?noticeUID=CO1.NTC.2679406&isFromPublicArea=True&isModal=False","Contratos de prestación de servicios profesionales y de apoyo a la gestión","Contratación directa","Prestación de servicios profesionales y de apoyo a la gestión, o para la ejecución de trabajos artísticos que sólo puedan encomendarse a determinadas personas naturales","APOYAR JURIDICAMENTE AL FONDO DE DESARROLLO LOCAL DE LOS MARTIRES EN LA IMPLENTACION DE ACUEDOS, PLANES Y PROGRAMAS QUE PROMUEVAN LA CONVIVENCIA ARMÓNICA ENTRE LA CIUDADANÍA Y LOS VENDEDORES INFORMALES Y ESTACIONARIOS, ORIENTADOS A LA SOLUCIÓN DE LOS CONFLICTOS DEL ESPACIO PÚBLICO IDENTIFICADOS POR LAS ALCALDÍAS LOCALES, ASI COMO LAS DEMAS ACCIONES REQUERIDAS QUE PERMITAN GARANTIZAR EL CUMPLIMIENTO DE LAS METAS ESTABLECIDAS EN EL PLAN DE DESARROLLO LOCAL VIGENTE.","Inversión","Un nuevo contrato social y ambiental para la Bogotá del Siglo XXI",3,{"$f":"IF(ISERROR(VLOOKUP(K61,Proposito_programa!$C$2:$E$59,2,FALSE)),\" \",VLOOKUP(K61,Proposito_programa!$C$2:$E$59,2,FALSE))","v":"Movilidad social integral"},{"$f":"IF(ISERROR(VLOOKUP(K61,Proposito_programa!$C$2:$E$59,3,FALSE)),\" \",VLOOKUP(K61,Proposito_programa!$C$2:$E$59,3,FALSE))","v":"Propósito 1: Hacer un nuevo contrato social para incrementar la inclusión social, productiva y política"},"O23011603450000002080",0,51921603,"AURA ALICIA INFANTE GARCIA","Persona Natural","N/A","N/A","N/A",2022,45000000,null,1,3229200,48229200,48229201,"2022-01-24","2022-01-26","2022-10-25","9 Meses",1,60,null,null,null,null,"Terminado",1.0000000207343269]
["051-2022",2022,"FDLM-051-2022 (68565)","https://community.secop.gov.co/Public/Tendering/OpportunityDetail/Index?noticeUID=CO1.NTC.2679426&isFromPublicArea=True&isModal=False","Contratos de prestación de servicios profesionales y de apoyo a la gestión","Contratación directa","Prestación de servicios profesionales y de apoyo a la gestión, o para la ejecución de trabajos artísticos que sólo puedan encomendarse a determinadas personas naturales","APOYAR JURIDICAMENTE AL FONDO DE DESARROLLO LOCAL DE LOS MARTIRES EN LA IMPLENTACION DE ACUEDOS, PLANES Y PROGRAMAS QUE PROMUEVAN LA CONVIVENCIA ARMÓNICA ENTRE LA CIUDADANÍA Y LOS VENDEDORES INFORMALES Y ESTACIONARIOS, ORIENTADOS A LA SOLUCIÓN DE LOS CONFLICTOS DEL ESPACIO PÚBLICO IDENTIFICADOS POR LAS ALCALDÍAS LOCALES, ASI COMO LAS DEMAS ACCIONES REQUERIDAS QUE PERMITAN GARANTIZAR EL CUMPLIMIENTO DE LAS METAS ESTABLECIDAS EN EL PLAN DE DESARROLLO LOCAL VIGENTE.","Inversión","Un nuevo contrato social y ambiental para la Bogotá del Siglo XXI",3,{"$f":"IF(ISERROR(VLOOKUP(K62,Proposito_programa!$C$2:$E$59,2,FALSE)),\" \",VLOOKUP(K62,Proposito_programa!$C$2:$E$59,2,FALSE))","v":"Movilidad social integral"},{"$f":"IF(ISERROR(VLOOKUP(K62,Proposito_programa!$C$2:$E$59,3,FALSE)),\" \",VLOOKUP(K62,Proposito_programa!$C$2:$E$59,3,FALSE))","v":"Propósito 1: Hacer un nuevo contrato social para incrementar la inclusión social, productiva y política"},"O23011603450000002080",0,1023910605,"LUIS ARIEL MOLINA MOTAVITA","Persona Natural","N/A","N/A","N/A",2022,45000000,null,1,7762500,52762500,52762501,"2022-01-24","2022-02-03","2022-11-02","9 Meses",1,59,52266204,"CLARA ALBINO RODRIGUEZ","2022-07-01",null,"Terminado",1.0000000189528548]
["052-2022",2022,"FDLM-052-2022 (70536)","https://community.secop.gov.co/Public/Tendering/OpportunityDetail/Index?noticeUID=CO1.NTC.2676216&isFromPublicArea=True&isModal=False","Contratos de prestación de servicios profesionales y de apoyo a la gestión","Contratación directa","Prestación de servicios profesionales y de apoyo a la gestión, o para la ejecución de trabajos artísticos que sólo puedan encomendarse a determinadas personas naturales","Prestar los servicios profesionales que garanticen la adecuada  concertación de acciones para la estructuración del proceso precontractual y contractual relativos al proyecto 2096 de la vigencia fiscal 2022,  así como el apoyo a la ejecución del contrato a través del cual se ejecute la respectiva meta plan de desarrollo y objetivos del proyecto de inversión.","Inversión","Un nuevo contrato social y ambiental para la Bogotá del Siglo XXI",3,{"$f":"IF(ISERROR(VLOOKUP(K63,Proposito_programa!$C$2:$E$59,2,FALSE)),\" \",VLOOKUP(K63,Proposito_programa!$C$2:$E$59,2,FALSE))","v":"Movilidad social integral"},{"$f":"IF(ISERROR(VLOOKUP(K63,Proposito_programa!$C$2:$E$59,3,FALSE)),\" \",VLOOKUP(K63,Proposito_programa!$C$2:$E$59,3,FALSE))","v":"Propósito 1: Hacer un nuevo contrato social para incrementar la inclusión social, productiva y política"},"O23011605550000002096",0,1023872353,"JEYSSON ANDRES GARCIA ROZO","Persona Natural","N/A","N/A","N/A",2022,40000000,null,null,null,40000000,40000000,"2022-01-24","2022-02-05","2022-10-04","8 Meses",null,null,null,null,null,null,"Terminado",1]
["053-2022",2022,"FDLM-053-2022 (67810)","https://community.secop.gov.co/Public/Tendering/OpportunityDetail/Index?noticeUID=CO1.NTC.2769708&isFromPublicArea=True&isModal=False ","Contratos de prestación de servicios profesionales y de apoyo a la gestión","Contratación directa","Prestación de servicios profesionales y de apoyo a la gestión, o para la ejecución de trabajos artísticos que sólo puedan encomendarse a determinadas personas naturales","PRESTAR SERVICIOS DE APOYO PARA LA ATENCIÓN, GESTIÓN Y TRÁMITE DE LOS ASUNTOS DE GESTIÓN DEL RIESGO, MANEJO DE AGLOMERACIONES, ATRACCIONES Y DISPOSITIVOS DE ENTRETENIMIENTOS A CARGO DE LA LOCALIDAD DE LOS MÁRTIRES","Inversión","Un nuevo contrato social y ambiental para la Bogotá del Siglo XXI",3,{"$f":"IF(ISERROR(VLOOKUP(K64,Proposito_programa!$C$2:$E$59,2,FALSE)),\" \",VLOOKUP(K64,Proposito_programa!$C$2:$E$59,2,FALSE))","v":"Movilidad social integral"},{"$f":"IF(ISERROR(VLOOKUP(K64,Proposito_programa!$C$2:$E$59,3,FALSE)),\" \",VLOOKUP(K64,Proposito_programa!$C$2:$E$59,3,FALSE))","v":"Propósito 1: Hacer un nuevo contrato social para incrementar la inclusión social, productiva y política"},"O23011605570000002099",0,80744125,"RICHARD OSPINA PERDOMO","Persona Natural","N/A","N/A","N/A",2022,23400000,null,null,null,23400000,23400000,"2022-01-28","2022-02-01","2022-10-31","9 meses",null,null,null,null,null,null,"Terminado",1]
["054-2022",2022,"FDLM-054-2022 (67810)","https://community.secop.gov.co/Public/Tendering/OpportunityDetail/Index?noticeUID=CO1.NTC.2678415&isFromPublicArea=True&isModal=False ","Contratos de prestación de servicios profesionales y de apoyo a la gestión","Contratación directa","Prestación de servicios profesionales y de apoyo a la gestión, o para la ejecución de trabajos artísticos que sólo puedan encomendarse a determinadas personas naturales","PRESTAR SERVICIOS DE APOYO PARA LA ATENCIÓN, GESTIÓN Y TRÁMITE DE LOS ASUNTOS DE GESTIÓN DEL RIESGO, MANEJO DE AGLOMERACIONES, ATRACCIONES Y DISPOSITIVOS DE ENTRETENIMIENTOS A CARGO DE LA LOCALIDAD DE LOS MÁRTIRES","Inversión","Un nuevo contrato social y ambiental para la Bogotá del Siglo XXI",3,{"$f":"IF(ISERROR(VLOOKUP(K65,Proposito_programa!$C$2:$E$59,2,FALSE)),\" \",VLOOKUP(K65,Proposito_programa!$C$2:$E$59,2,FALSE))","v":"Movilidad social integral"},{"$f":"IF(ISERROR(VLOOKUP(K65,Proposito_programa!$C$2:$E$59,3,FALSE)),\" \",VLOOKUP(K65,Proposito_programa!$C$2:$E$59,3,FALSE))","v":"Propósito 1: Hacer un nuevo contrato social para incrementar la inclusión social, productiva y política"},"O23011605570000002099",0,79611892,"JAVIER CRUZ VALVUENA","Persona Natural","N/A","N/A","N/A",2022,23400000,null,1,15000000,38400000,38400001,"2022-01-24","2022-01-26","2022-10-25","9 meses",1,90,null,null,null,null,"Terminado",1.0000000260416666]
["055-2022",2022,"FDLM-055-2022 (67810)","https://community.secop.gov.co/Public/Tendering/OpportunityDetail/Index?noticeUID=CO1.NTC.2678419&isFromPublicArea=True&isModal=False ","Contratos de prestación de servicios profesionales y de apoyo a la gestión","Contratación directa","Prestación de servicios profesionales y de apoyo a la gestión, o para la ejecución de trabajos artísticos que sólo puedan encomendarse a determinadas personas naturales","PRESTAR SERVICIOS DE APOYO PARA LA ATENCIÓN, GESTIÓN Y TRÁMITE DE LOS ASUNTOS DE GESTIÓN DEL RIESGO, MANEJO DE AGLOMERACIONES, ATRACCIONES Y DISPOSITIVOS DE ENTRETENIMIENTOS A CARGO DE LA LOCALIDAD DE LOS MÁRTIRES","Inversión","Un nuevo contrato social y ambiental para la Bogotá del Siglo XXI",3,{"$f":"IF(ISERROR(VLOOKUP(K66,Proposito_programa!$C$2:$E$59,2,FALSE)),\" \",VLOOKUP(K66,Proposito_programa!$C$2:$E$59,2,FALSE))","v":"Movilidad social integral"},{"$f":"IF(ISERROR(VLOOKUP(K66,Proposito_programa!$C$2:$E$59,3,FALSE)),\" \",VLOOKUP(K66,Proposito_programa!$C$2:$E$59,3,FALSE))","v":"Propósito 1: Hacer un nuevo contrato social para incrementar la inclusión social, productiva y política"},"O23011605570000002099",0,80927834,"PEDRO DAVID GALEANO MARTINEZ","Persona Natural","N/A","N/A","N/A",2022,23400000,null,null,null,23400000,23400000,"2022-01-24","2022-01-26","2022-10-25","9 meses",null,null,null,null,null,null,"Terminado",1]
["056-2022",2022,"FDLM-056-2022 (67810)","https://community.secop.gov.co/Public/Tendering/OpportunityDetail/Index?noticeUID=CO1.NTC.2726428&isFromPublicArea=True&isModal=False ","Contratos de prestación de servicios profesionales y de apoyo a la gestión","Contratación directa","Prestación de servicios profesionales y de apoyo a la gestión, o para la ejecución de trabajos artísticos que sólo puedan encomendarse a determinadas personas naturales","PRESTAR SERVICIOS DE APOYO PARA LA ATENCIÓN, GESTIÓN Y TRÁMITE DE LOS ASUNTOS DE GESTIÓN DEL RIESGO, MANEJO DE AGLOMERACIONES, ATRACCIONES Y DISPOSITIVOS DE ENTRETENIMIENTOS A CARGO DE LA LOCALIDAD DE LOS MÁRTIRES","Inversión","Un nuevo contrato social y ambiental para la Bogotá del Siglo XXI",3,{"$f":"IF(ISERROR(VLOOKUP(K67,Proposito_programa!$C$2:$E$59,2,FALSE)),\" \",VLOOKUP(K67,Proposito_programa!$C$2:$E$59,2,FALSE))","v":"Movilidad social integral"},{"$f":"IF(ISERROR(VLOOKUP(K67,Proposito_programa!$C$2:$E$59,3,FALSE)),\" \",VLOOKUP(K67,Proposito_programa!$C$2:$E$59,3,FALSE))","v":"Propósito 1: Hacer un nuevo contrato social para incrementar la inclusión social, productiva y política"},"O23011605570000002099",0,1023862869,"OLGA VIVIANA LOPEZ CIFUENTES","Persona Natural","N/A","N/A","N/A",2022,23400000,7800000,"2022-07-19",null,31200000,39044761,"2022-01-26","2022-01-28","2022-10-27","9 meses",null,null,null,null,null,null,"Terminado",1.2514346474358975]
["057-2022",2022,"FDLM-057-2022 (68212)","https://community.secop.gov.co/Public/Tendering/OpportunityDetail/Index?noticeUID=CO1.NTC.2791967&isFromPublicArea=True&isModal=False ","Contratos de prestación de servicios profesionales y de apoyo a la gestión","Contratación directa","Prestación de servicios profesionales y de apoyo a la gestión, o para la ejecución de trabajos artísticos que sólo puedan encomendarse a determinadas personas naturales","PRESTAR LOS SERVICIOS DE APOYO LOGÍSTICO EN LAS DIFERENTES TAREAS DE BODEGAJE, TRASLADOS, MONTAJES Y DEMÁS ACTIVIDADES RELACIONADAS A CARGO DE LA ALCALDÍA LOCAL DE LOS MÁRTIRES.","Inversión","Un nuevo contrato social y ambiental para la Bogotá del Siglo XXI",3,{"$f":"IF(ISERROR(VLOOKUP(K68,Proposito_programa!$C$2:$E$59,2,FALSE)),\" \",VLOOKUP(K68,Proposito_programa!$C$2:$E$59,2,FALSE))","v":"Movilidad social integral"},{"$f":"IF(ISERROR(VLOOKUP(K68,Proposito_programa!$C$2:$E$59,3,FALSE)),\" \",VLOOKUP(K68,Proposito_programa!$C$2:$E$59,3,FALSE))","v":"Propósito 1: Hacer un nuevo contrato social para incrementar la inclusión social, productiva y política"},"O23011605570000002099",0,1020721996,"DIEGO ERNESTO GOMEZ VELA","Persona Natural","N/A","N/A","N/A",2022,20493000,null,1,15000000,35493000,20493000,"2022-01-28","2022-02-02","2022-11-01","9 meses",1,90,80504340,"RAFAEL ANTONIO ALBA CAMARGO","2022-10-04",null,"En ejecución",0.57738145549826725]
["058-2022",2022,"FDLM-058-2022 (68337)","https://community.secop.gov.co/Public/Tendering/OpportunityDetail/Index?noticeUID=CO1.NTC.2678372&isFromPublicArea=True&isModal=False ","Contratos de prestación de servicios profesionales y de apoyo a la gestión","Contratación directa","Prestación de servicios profesionales y de apoyo a la gestión, o para la ejecución de trabajos artísticos que sólo puedan encomendarse a determinadas personas naturales","EL CONTRATISTA SE OBLIGA CON EL FONDO DE DESARROLLO LOCAL DE LOS MÁRTIRES A PRESTAR SUS SERVICIOS DE APOYO A LA GESTIÓN TERRITORIAL EN LOS TEMAS DE SEGURIDAD Y CONVIVENCIA CIUDADANA; EN EL MARCO DEL PROYECTO 2083 MOVILIZACIONES Y AGLOMERACIONES.","Inversión","Un nuevo contrato social y ambiental para la Bogotá del Siglo XXI",3,{"$f":"IF(ISERROR(VLOOKUP(K69,Proposito_programa!$C$2:$E$59,2,FALSE)),\" \",VLOOKUP(K69,Proposito_programa!$C$2:$E$59,2,FALSE))","v":"Movilidad social integral"},{"$f":"IF(ISERROR(VLOOKUP(K69,Proposito_programa!$C$2:$E$59,3,FALSE)),\" \",VLOOKUP(K69,Proposito_programa!$C$2:$E$59,3,FALSE))","v":"Propósito 1: Hacer un nuevo contrato social para incrementar la inclusión social, productiva y política"},"O23011603430000002083",0,1014291719,"JESSICA LORENA GÓMEZ PARDO","Persona Natural","N/A","N/A","N/A",2022,15600000,null,1,7800000,23400000,{"$f":"+X69+Y69+AA69","v":23400001},"2022-01-24","2022-01-26","2022-10-25","9 Meses",1,"1 mes",null,null,null,null,"Terminado",1.0000000427350428]
["059-2022",2022,"FDLM-059-2022 (68337)","https://community.secop.gov.co/Public/Tendering/OpportunityDetail/Index?noticeUID=CO1.NTC.2678434&isFromPublicArea=True&isModal=False ","Contratos de prestación de servicios profesionales y de apoyo a la gestión","Contratación directa","Prestación de servicios profesionales y de apoyo a la gestión, o para la ejecución de trabajos artísticos que sólo puedan encomendarse a determinadas personas naturales","EL CONTRATISTA SE OBLIGA CON EL FONDO DE DESARROLLO LOCAL DE LOS MÁRTIRES A PRESTAR SUS SERVICIOS DE APOYO A LA GESTIÓN TERRITORIAL EN LOS TEMAS DE SEGURIDAD Y CONVIVENCIA CIUDADANA; EN EL MARCO DEL PROYECTO 2083 MOVILIZACIONES Y AGLOMERACIONES.","Inversión","Un nuevo contrato social y ambiental para la Bogotá del Siglo XXI",3,{"$f":"IF(ISERROR(VLOOKUP(K70,Proposito_programa!$C$2:$E$59,2,FALSE)),\" \",VLOOKUP(K70,Proposito_programa!$C$2:$E$59,2,FALSE))","v":"Movilidad social integral"},{"$f":"IF(ISERROR(VLOOKUP(K70,Proposito_programa!$C$2:$E$59,3,FALSE)),\" \",VLOOKUP(K70,Proposito_programa!$C$2:$E$59,3,FALSE))","v":"Propósito 1: Hacer un nuevo contrato social para incrementar la inclusión social, productiva y política"},"O23011603430000002083",0,1095806484,"JUAN DIEGO ROSAS GARCIA","Persona Natural","N/A","N/A","N/A",2022,15600000,null,null,null,15600000,15600000,"2022-01-24","2022-01-28","2022-07-27","6 meses",null,null,null,null,null,null,"Terminado",1]
["060-2022",2022,"FDLM-060-2022 (68337","https://community.secop.gov.co/Public/Tendering/OpportunityDetail/Index?noticeUID=CO1.NTC.2684082&isFromPublicArea=True&isModal=False ","Contratos de prestación de servicios profesionales y de apoyo a la gestión","Contratación directa","Prestación de servicios profesionales y de apoyo a la gestión, o para la ejecución de trabajos artísticos que sólo puedan encomendarse a determinadas personas naturales","EL CONTRATISTA SE OBLIGA CON EL FONDO DE DESARROLLO LOCAL DE LOS MÁRTIRES A PRESTAR SUS SERVICIOS DE APOYO A LA GESTIÓN TERRITORIAL EN LOS TEMAS DE SEGURIDAD Y CONVIVENCIA CIUDADANA; EN EL MARCO DEL PROYECTO 2083 MOVILIZACIONES Y AGLOMERACIONES.","Inversión","Un nuevo contrato social y ambiental para la Bogotá del Siglo XXI",3,{"$f":"IF(ISERROR(VLOOKUP(K71,Proposito_programa!$C$2:$E$59,2,FALSE)),\" \",VLOOKUP(K71,Proposito_programa!$C$2:$E$59,2,FALSE))","v":"Movilidad social integral"},{"$f":"IF(ISERROR(VLOOKUP(K71,Proposito_programa!$C$2:$E$59,3,FALSE)),\" \",VLOOKUP(K71,Proposito_programa!$C$2:$E$59,3,FALSE))","v":"Propósito 1: Hacer un nuevo contrato social para incrementar la inclusión social, productiva y política"},"O23011603430000002083",0,1022428142,"ANDRES MATEO GOMEZ RAMOS","Persona Natural","N/A","N/A","N/A",2022,15600000,null,null,null,15600000,15600000,"2022-01-24","2022-01-26","2022-07-25","6 meses",null,null,null,null,null,null,"Terminado",1]
["061-2022",2022,"FDLM-061-2022 (70236)","https://community.secop.gov.co/Public/Tendering/OpportunityDetail/Index?noticeUID=CO1.NTC.2681726&isFromPublicArea=True&isModal=False","Contratos de prestación de servicios profesionales y de apoyo a la gestión","Contratación directa","Prestación de servicios profesionales y de apoyo a la gestión, o para la ejecución de trabajos artísticos que sólo puedan encomendarse a determinadas personas naturales","Prestar los servicios profesionales que garanticen la realización de las etapas precontractual, contractual y postcontractual del proyecto 2075, vigencia fiscal 2022, y consecuentemente coadyuven al cumplimiento de las metas del Plan de Desarrollo Local asociadas a dicho proyecto de inversión","Inversión","Un nuevo contrato social y ambiental para la Bogotá del Siglo XXI",3,{"$f":"IF(ISERROR(VLOOKUP(K72,Proposito_programa!$C$2:$E$59,2,FALSE)),\" \",VLOOKUP(K72,Proposito_programa!$C$2:$E$59,2,FALSE))","v":"Movilidad social integral"},{"$f":"IF(ISERROR(VLOOKUP(K72,Proposito_programa!$C$2:$E$59,3,FALSE)),\" \",VLOOKUP(K72,Proposito_programa!$C$2:$E$59,3,FALSE))","v":"Propósito 1: Hacer un nuevo contrato social para incrementar la inclusión social, productiva y política"},"O23011601200000002075",0,1016006137,"DAIRO ALEXANDER BUSTOS TRIANA","Persona Natural","N/A","N/A","N/A",2022,40000000,null,null,null,40000000,40000000,"2022-01-24","2022-01-26","2022-09-25","8 Meses",null,null,null,null,null,null,"Terminado",1]
["062-2022",2022,"FDLM-062-2022 (70032)","https://community.secop.gov.co/Public/Tendering/OpportunityDetail/Index?noticeUID=CO1.NTC.2712723&isFromPublicArea=True&isModal=False","Contratos de prestación de servicios profesionales y de apoyo a la gestión","Contratación directa","Prestación de servicios profesionales y de apoyo a la gestión, o para la ejecución de trabajos artísticos que sólo puedan encomendarse a determinadas personas naturales","Prestar servicios profesionales en los proyectos que tienen por objeto la construcción, rehabilitación y mantenimiento de la infraestructura vial y espacio público de la localidad de los mártires.","Inversión","Un nuevo contrato social y ambiental para la Bogotá del Siglo XXI",3,{"$f":"IF(ISERROR(VLOOKUP(K73,Proposito_programa!$C$2:$E$59,2,FALSE)),\" \",VLOOKUP(K73,Proposito_programa!$C$2:$E$59,2,FALSE))","v":"Movilidad social integral"},{"$f":"IF(ISERROR(VLOOKUP(K73,Proposito_programa!$C$2:$E$59,3,FALSE)),\" \",VLOOKUP(K73,Proposito_programa!$C$2:$E$59,3,FALSE))","v":"Propósito 1: Hacer un nuevo contrato social para incrementar la inclusión social, productiva y política"},"O23011604490000002097",0,52844049,"PILAR EUGENIA ROJAS CASTIBLANCO","Persona Natural","N/A","N/A","N/A",2022,54000000,null,1,10500000,64500000,64500001,"2022-01-24","2022-02-01","2022-10-31","9 Meses",1,60,null,null,null,null,"Terminado",1.000000015503876]
["063-2022",2022,"FDLM-063-2022 (70220)","https://community.secop.gov.co/Public/Tendering/OpportunityDetail/Index?noticeUID=CO1.NTC.2714269&isFromPublicArea=True&isModal=False","Contratos de prestación de servicios profesionales y de apoyo a la gestión","Contratación directa","Prestación de servicios profesionales y de apoyo a la gestión, o para la ejecución de trabajos artísticos que sólo puedan encomendarse a determinadas personas naturales","PRESTAR LOS SERVICIOS DE APOYO ADMINISTRATIVO PARA LA IMPLEMENTACIÓN DE ACUERDOS QUE PROMUEVAN LA CONVIVENCIA ARMÓNICA ENTRE LA CIUDADANÍA Y LOS VENDEDORES INFORMALES Y ESTACIONARIOS, ORIENTADOS A LA SOLUCIÓN DE LOS CONFLICTOS DEL ESPACIO PÚBLICO IDENTIFICADOS POR LAS ALCALDÍAS LOCALES, ASÍ COMO EL APOYO AL ÁREA DE GESTIÓN POLICIVA Y JURÍDICA DE LA ALCALDÍA LOCAL DE LOS MÁRTIRES.","Inversión","Un nuevo contrato social y ambiental para la Bogotá del Siglo XXI",3,{"$f":"IF(ISERROR(VLOOKUP(K74,Proposito_programa!$C$2:$E$59,2,FALSE)),\" \",VLOOKUP(K74,Proposito_programa!$C$2:$E$59,2,FALSE))","v":"Movilidad social integral"},{"$f":"IF(ISERROR(VLOOKUP(K74,Proposito_programa!$C$2:$E$59,3,FALSE)),\" \",VLOOKUP(K74,Proposito_programa!$C$2:$E$59,3,FALSE))","v":"Propósito 1: Hacer un nuevo contrato social para incrementar la inclusión social, productiva y política"},"O23011605570000002099",0,1026592803,"SERGIO ARTURO ROMERO CASTAÑEDA","Persona Natural","N/A","N/A","N/A",2022,23400000,null,null,null,23400000,23400000,"2022-01-24","2022-01-28","2022-10-27","9 Meses",null,null,null,null,null,null,"Terminado",1]
["064-2022",2022,"FDLM-064-2022 (68565)","https://community.secop.gov.co/Public/Tendering/OpportunityDetail/Index?noticeUID=CO1.NTC.2714834&isFromPublicArea=True&isModal=False","Contratos de prestación de servicios profesionales y de apoyo a la gestión","Contratación directa","Prestación de servicios profesionales y de apoyo a la gestión, o para la ejecución de trabajos artísticos que sólo puedan encomendarse a determinadas personas naturales","APOYAR JURIDICAMENTE AL FONDO DE DESARROLLO LOCAL DE LOS MARTIRES EN LA IMPLENTACION DE ACUEDOS, PLANES Y PROGRAMAS QUE PROMUEVAN LA CONVIVENCIA ARMÓNICA ENTRE LA CIUDADANÍA Y LOS VENDEDORES INFORMALES Y ESTACIONARIOS, ORIENTADOS A LA SOLUCIÓN DE LOS CONFLICTOS DEL ESPACIO PÚBLICO IDENTIFICADOS POR LAS ALCALDÍAS LOCALES, ASI COMO LAS DEMAS ACCIONES REQUERIDAS QUE PERMITAN GARANTIZAR EL CUMPLIMIENTO DE LAS METAS ESTABLECIDAS EN EL PLAN DE DESARROLLO LOCAL VIGENTE.","Inversión","Un nuevo contrato social y ambiental para la Bogotá del Siglo XXI",3,{"$f":"IF(ISERROR(VLOOKUP(K75,Proposito_programa!$C$2:$E$59,2,FALSE)),\" \",VLOOKUP(K75,Proposito_programa!$C$2:$E$59,2,FALSE))","v":"Movilidad social integral"},{"$f":"IF(ISERROR(VLOOKUP(K75,Proposito_programa!$C$2:$E$59,3,FALSE)),\" \",VLOOKUP(K75,Proposito_programa!$C$2:$E$59,3,FALSE))","v":"Propósito 1: Hacer un nuevo contrato social para incrementar la inclusión social, productiva y política"},"O23011603450000002080",0,46383509,"YENNY ANDREA CÁRDENAS LEÓN","Persona Natural","N/A","N/A","N/A",2022,45000000,null,1,12400000,{"$f":"+W75+X75+Z75","v":57400000},57400001,"2022-01-24","2022-01-28","2022-10-27","9 Meses",1,60,null,null,null,null,"Terminado",1.0000000174216028]
["065-2022",2022,"FDLM-065-2022 (70085)","https://community.secop.gov.co/Public/Tendering/OpportunityDetail/Index?noticeUID=CO1.NTC.2726347&isFromPublicArea=True&isModal=False","Contratos de prestación de servicios profesionales y de apoyo a la gestión","Contratación directa","Prestación de servicios profesionales y de apoyo a la gestión, o para la ejecución de trabajos artísticos que sólo puedan encomendarse a determinadas personas naturales","APOYAR TÉCNICAMENTE LA REALIZACIÓN DE ACUERDOS QUE PROMUEVAN LA CONVIVENCIA ARMÓNICA ENTRE LA CIUDADANÍA Y LOS VENDEDORES INFORMALES Y ESTACIONARIOS, ORIENTADOS A LA SOLUCIÓN DE LOS CONFLICTOS DEL ESPACIO PÚBLICO IDENTIFICADOS POR LAS ALCALDÍAS LOCALES, ASI COMO APOYAR TENICAMENTE LAS DISTINTAS ETAPAS DE LOS PROCESOS DE COMPETENCIA DE LA ALCALDÍA LOCAL Y/O INSPECCIONES DE POLICÍA PARA LA DEPURACIÓN DE ACTUACIONES ADMINISTRATIVAS Y/O QUERELLAS.","Inversión","Un nuevo contrato social y ambiental para la Bogotá del Siglo XXI",3,{"$f":"IF(ISERROR(VLOOKUP(K76,Proposito_programa!$C$2:$E$59,2,FALSE)),\" \",VLOOKUP(K76,Proposito_programa!$C$2:$E$59,2,FALSE))","v":"Movilidad social integral"},{"$f":"IF(ISERROR(VLOOKUP(K76,Proposito_programa!$C$2:$E$59,3,FALSE)),\" \",VLOOKUP(K76,Proposito_programa!$C$2:$E$59,3,FALSE))","v":"Propósito 1: Hacer un nuevo contrato social para incrementar la inclusión social, productiva y política"},"O23011603450000002080",0,19456366,"EDGAR GOYENECHE MUÑOZ","Persona Natural","N/A","N/A","N/A",2022,40950000,null,1,9833333,50783333,50783334,"2022-01-26","2022-02-01","2022-10-31","9 Meses",1,59,null,null,null,null,"Terminado",1.0000000196915]
["066-2022",2022,"FDLM- 066-2022 (67793)","https://community.secop.gov.co/Public/Tendering/OpportunityDetail/Index?noticeUID=CO1.NTC.2724995&isFromPublicArea=True&isModal=False","Contratos de prestación de servicios profesionales y de apoyo a la gestión","Contratación directa","Prestación de servicios profesionales y de apoyo a la gestión, o para la ejecución de trabajos artísticos que sólo puedan encomendarse a determinadas personas naturales","APOYAR ADMINISTRATIVA Y ASISTENCIALMENTE EN LAS ETAPAS DE LA GESTIÓN PÚBLICA CONTRACTUAL, EN CUMPLIMIENTO DEL PLAN DE DESARROLLO LOCAL VIGENTE","Inversión","Un nuevo contrato social y ambiental para la Bogotá del Siglo XXI",3,{"$f":"IF(ISERROR(VLOOKUP(K77,Proposito_programa!$C$2:$E$59,2,FALSE)),\" \",VLOOKUP(K77,Proposito_programa!$C$2:$E$59,2,FALSE))","v":"Movilidad social integral"},{"$f":"IF(ISERROR(VLOOKUP(K77,Proposito_programa!$C$2:$E$59,3,FALSE)),\" \",VLOOKUP(K77,Proposito_programa!$C$2:$E$59,3,FALSE))","v":"Propósito 1: Hacer un nuevo contrato social para incrementar la inclusión social, productiva y política"},"O23011605570000002099",0,1001897394,"MAYRA ALEJANDRA CABARCAS CARDENAS","Persona Natural","N/A","N/A","N/A",2022,28800000,null,1,10833333,39633333,28800000,"2022-01-25","2022-02-01","2022-10-31","9 Meses",1,60,null,null,null,null,"En ejecución",0.72666106582557666]
["067-2022",2022,"FDLM-067-2022 (70133)","https://community.secop.gov.co/Public/Tendering/OpportunityDetail/Index?noticeUID=CO1.NTC.2729721&isFromPublicArea=True&isModal=False","Contratos de prestación de servicios profesionales y de apoyo a la gestión","Contratación directa","Prestación de servicios profesionales y de apoyo a la gestión, o para la ejecución de trabajos artísticos que sólo puedan encomendarse a determinadas personas naturales","Apoyar el cubrimiento de las actividades, cronogramas y agenda de la alcaldía local a nivel interno y externo, así como la generación de contenidos periodísticos","Inversión","Un nuevo contrato social y ambiental para la Bogotá del Siglo XXI",3,{"$f":"IF(ISERROR(VLOOKUP(K78,Proposito_programa!$C$2:$E$59,2,FALSE)),\" \",VLOOKUP(K78,Proposito_programa!$C$2:$E$59,2,FALSE))","v":"Movilidad social integral"},{"$f":"IF(ISERROR(VLOOKUP(K78,Proposito_programa!$C$2:$E$59,3,FALSE)),\" \",VLOOKUP(K78,Proposito_programa!$C$2:$E$59,3,FALSE))","v":"Propósito 1: Hacer un nuevo contrato social para incrementar la inclusión social, productiva y política"},"O23011605570000002099",0,1020815999,"ANYEL MARIANA RUEDA CHAVES","Persona Natural","N/A","N/A","N/A",2022,40950000,null,null,null,40950000,{"$f":"+X78+Y78+AA78","v":40950000},"2022-01-26","2022-02-03","2022-11-02","9 Meses",null,null,null,null,null,null,"Terminado",{"$f":"IF(ISERROR(AB78/AA78),\"-\",(AB78/AA78))","v":1}]
["068-2022",2022,"FDLM-068-2022 (70133)","https://community.secop.gov.co/Public/Tendering/OpportunityDetail/Index?noticeUID=CO1.NTC.2726437&isFromPublicArea=True&isModal=False","Contratos de prestación de servicios profesionales y de apoyo a la gestión","Contratación directa","Prestación de servicios profesionales y de apoyo a la gestión, o para la ejecución de trabajos artísticos que sólo puedan encomendarse a determinadas personas naturales","Apoyar el cubrimiento de las actividades, cronogramas y agenda de la alcaldía local a nivel interno y externo, así como la generación de contenidos periodísticos","Inversión","Un nuevo contrato social y ambiental para la Bogotá del Siglo XXI",3,{"$f":"IF(ISERROR(VLOOKUP(K79,Proposito_programa!$C$2:$E$59,2,FALSE)),\" \",VLOOKUP(K79,Proposito_programa!$C$2:$E$59,2,FALSE))","v":"Movilidad social integral"},{"$f":"IF(ISERROR(VLOOKUP(K79,Proposito_programa!$C$2:$E$59,3,FALSE)),\" \",VLOOKUP(K79,Proposito_programa!$C$2:$E$59,3,FALSE))","v":"Propósito 1: Hacer un nuevo contrato social para incrementar la inclusión social, productiva y política"},"O23011605570000002099",0,79853593,"JOSÉ ALEJANDRO ESPEJO MEDINA","Persona Natural","N/A","N/A","N/A",2022,40950000,7800000,"2022-07-25",null,48750000,56594767,"2022-01-26","2022-01-28","2022-10-27","9 Meses",null,null,null,null,null,null,"Terminado",1.1609182974358974]
["069-2022",2022,"FDLM-069-2022 (68565)","https://community.secop.gov.co/Public/Tendering/OpportunityDetail/Index?noticeUID=CO1.NTC.2717691&isFromPublicArea=True&isModal=False","Contratos de prestación de servicios profesionales y de apoyo a la gestión","Contratación directa","Prestación de servicios profesionales y de apoyo a la gestión, o para la ejecución de trabajos artísticos que sólo puedan encomendarse a determinadas personas naturales","APOYAR JURIDICAMENTE AL FONDO DE DESARROLLO LOCAL DE LOS MARTIRES EN LA IMPLENTACION DE ACUEDOS, PLANES Y PROGRAMAS QUE PROMUEVAN LA CONVIVENCIA ARMÓNICA ENTRE LA CIUDADANÍA Y LOS VENDEDORES INFORMALES Y ESTACIONARIOS, ORIENTADOS A LA SOLUCIÓN DE LOS CONFLICTOS DEL ESPACIO PÚBLICO IDENTIFICADOS POR LAS ALCALDÍAS LOCALES, ASI COMO LAS DEMAS ACCIONES REQUERIDAS QUE PERMITAN GARANTIZAR EL CUMPLIMIENTO DE LAS METAS ESTABLECIDAS EN EL PLAN DE DESARROLLO LOCAL VIGENTE.","Inversión","Un nuevo contrato social y ambiental para la Bogotá del Siglo XXI",3,{"$f":"IF(ISERROR(VLOOKUP(K80,Proposito_programa!$C$2:$E$59,2,FALSE)),\" \",VLOOKUP(K80,Proposito_programa!$C$2:$E$59,2,FALSE))","v":"Movilidad social integral"},{"$f":"IF(ISERROR(VLOOKUP(K80,Proposito_programa!$C$2:$E$59,3,FALSE)),\" \",VLOOKUP(K80,Proposito_programa!$C$2:$E$59,3,FALSE))","v":"Propósito 1: Hacer un nuevo contrato social para incrementar la inclusión social, productiva y política"},"O23011603450000002080",0,1010220159,"KAREM DANIELLA VELASCO PARADA","Persona Natural","N/A","N/A","N/A",2022,45000000,null,1,9666667,54666667,54666668,"2022-01-25","2022-01-28","2022-10-27","9 Meses",1,59,null,null,null,null,"Terminado",1.0000000182926829]
["070-2022",2022,"FDLM-070-2022 (68333)","https://community.secop.gov.co/Public/Tendering/OpportunityDetail/Index?noticeUID=CO1.NTC.2726242&isFromPublicArea=True&isModal=False","Contratos de prestación de servicios profesionales y de apoyo a la gestión","Contratación directa","Prestación de servicios profesionales y de apoyo a la gestión, o para la ejecución de trabajos artísticos que sólo puedan encomendarse a determinadas personas naturales","Prestar los servicios como apoyo administrativo y asistencial en el área gestión del desarrollo, administrativa y finanzas, a los profesionales que desarrollan obligaciones de obras de infraestructura (malla vial, parques y estabilidad).","Inversión","Un nuevo contrato social y ambiental para la Bogotá del Siglo XXI",3,{"$f":"IF(ISERROR(VLOOKUP(K81,Proposito_programa!$C$2:$E$59,2,FALSE)),\" \",VLOOKUP(K81,Proposito_programa!$C$2:$E$59,2,FALSE))","v":"Movilidad social integral"},{"$f":"IF(ISERROR(VLOOKUP(K81,Proposito_programa!$C$2:$E$59,3,FALSE)),\" \",VLOOKUP(K81,Proposito_programa!$C$2:$E$59,3,FALSE))","v":"Propósito 1: Hacer un nuevo contrato social para incrementar la inclusión social, productiva y política"},"O23011604490000002097",0,1032490091,"PAULA ANGÉLICA JIMÉNEZ TAMARA","Persona Natural","N/A","N/A","N/A",2022,15600000,null,1,7800000,23400000,23400001,"2022-01-26","2022-01-28","2022-10-27","9 Meses",1,"1 mes",null,null,null,null,"Terminado",1.0000000427350428]
["071-2022",2022,"FDLM-071-2022 (68331)","https://community.secop.gov.co/Public/Tendering/OpportunityDetail/Index?noticeUID=CO1.NTC.2726456&isFromPublicArea=True&isModal=False","Contratos de prestación de servicios profesionales y de apoyo a la gestión","Contratación directa","Prestación de servicios profesionales y de apoyo a la gestión, o para la ejecución de trabajos artísticos que sólo puedan encomendarse a determinadas personas naturales","PRESTAR SUS SERVICIOS PROFESIONALES PARA APOYAR JURÍDICAMENTE LA EJECUCIÓN DE LAS ACCIONES REQUERIDAS PARA LA DEPURACIÓN DE LAS ACTUACIONES ADMINISTRATIVAS QUE CURSAN EN LA ALCALDÍA LOCAL DE LOS MÁRTIRES","Inversión","Un nuevo contrato social y ambiental para la Bogotá del Siglo XXI",3,{"$f":"IF(ISERROR(VLOOKUP(K82,Proposito_programa!$C$2:$E$59,2,FALSE)),\" \",VLOOKUP(K82,Proposito_programa!$C$2:$E$59,2,FALSE))","v":"Movilidad social integral"},{"$f":"IF(ISERROR(VLOOKUP(K82,Proposito_programa!$C$2:$E$59,3,FALSE)),\" \",VLOOKUP(K82,Proposito_programa!$C$2:$E$59,3,FALSE))","v":"Propósito 1: Hacer un nuevo contrato social para incrementar la inclusión social, productiva y política"},"O23011603430000002083",0,1007539578,"JUAN PABLO TORRES ALVAREZ","Persona Natural","N/A","N/A","N/A",2022,27120000,7800000,"2022-07-25",null,34920000,42764767,"2022-01-25","2022-02-01","2022-07-31","6 Meses",null,null,null,null,null,null,"Terminado",1.2246496849942725]
["072-2022",2022,"FDLM-072-2022 (68332)","https://community.secop.gov.co/Public/Tendering/OpportunityDetail/Index?noticeUID=CO1.NTC.2725639&isFromPublicArea=True&isModal=False","Contratos de prestación de servicios profesionales y de apoyo a la gestión","Contratación directa","Prestación de servicios profesionales y de apoyo a la gestión, o para la ejecución de trabajos artísticos que sólo puedan encomendarse a determinadas personas naturales","Prestar los servicios técnicos para la operación, seguimiento y cumplimiento de los procesos y procedimientos del servicio social Apoyos para la Seguridad Económica Tipo C, requeridos para el oportuno y adecuado registro, cruce y reporte de los datos en el sistema de información y registro de Beneficiarios-SIRBE, que contribuyan a la garantía de los derechos de la población mayor en el marco de la Política Pública Social para el Envejecimiento y la Vejez en el Distrito Capital a cargo de la Alcaldía.","Inversión","Un nuevo contrato social y ambiental para la Bogotá del Siglo XXI",3,{"$f":"IF(ISERROR(VLOOKUP(K83,Proposito_programa!$C$2:$E$59,2,FALSE)),\" \",VLOOKUP(K83,Proposito_programa!$C$2:$E$59,2,FALSE))","v":"Movilidad social integral"},{"$f":"IF(ISERROR(VLOOKUP(K83,Proposito_programa!$C$2:$E$59,3,FALSE)),\" \",VLOOKUP(K83,Proposito_programa!$C$2:$E$59,3,FALSE))","v":"Propósito 1: Hacer un nuevo contrato social para incrementar la inclusión social, productiva y política"},"O23011601010000002068",0,1031157993,"YEIMI PAHOLA HERRERA RUIZ","Persona Natural","N/A","N/A","N/A",2022,29808000,null,1,5633333,35441333,35441334,"2022-01-25","2022-01-28","2022-10-27","9 Meses",1,60,null,null,null,null,"Terminado",1.0000000282156429]
["073-2022",2022,"FDLM-073-2022 (67822)","https://community.secop.gov.co/Public/Tendering/OpportunityDetail/Index?noticeUID=CO1.NTC.2726069&isFromPublicArea=True&isModal=False ","Contratos de prestación de servicios profesionales y de apoyo a la gestión","Contratación directa","Prestación de servicios profesionales y de apoyo a la gestión, o para la ejecución de trabajos artísticos que sólo puedan encomendarse a determinadas personas naturales","PRESTAR LOS SERVICIOS PROFESIONALES COMO APOYO AL ÁREA DE GESTIÓN DEL DESARROLLO, PARA EL FORTALECIMIENTO PRESUPUESTAL Y CONTABLE, EN EL CUMPLIMIENTO DEL PLAN DE DESARROLLO LOCAL VIGENTE","Inversión","Un nuevo contrato social y ambiental para la Bogotá del Siglo XXI",3,{"$f":"IF(ISERROR(VLOOKUP(K84,Proposito_programa!$C$2:$E$59,2,FALSE)),\" \",VLOOKUP(K84,Proposito_programa!$C$2:$E$59,2,FALSE))","v":"Movilidad social integral"},{"$f":"IF(ISERROR(VLOOKUP(K84,Proposito_programa!$C$2:$E$59,3,FALSE)),\" \",VLOOKUP(K84,Proposito_programa!$C$2:$E$59,3,FALSE))","v":"Propósito 1: Hacer un nuevo contrato social para incrementar la inclusión social, productiva y política"},"O23011605570000002099",0,1022325511,"JHONN ALEXANDER BAHOS HERRERA","Persona Natural","N/A","N/A","N/A",2022,45000000,null,1,4478100,49478100,49478101,"2022-01-25","2022-01-28","2022-10-27","9 meses",1,60,null,null,null,null,"Terminado",1.000000020210962]
["074-2022",2022,"FDLM-074-2022 (68566)","https://community.secop.gov.co/Public/Tendering/OpportunityDetail/Index?noticeUID=CO1.NTC.2728732&isFromPublicArea=True&isModal=False ","Contratos de prestación de servicios profesionales y de apoyo a la gestión","Contratación directa","Prestación de servicios profesionales y de apoyo a la gestión, o para la ejecución de trabajos artísticos que sólo puedan encomendarse a determinadas personas naturales","Apoyar técnicamente al área de gestión del desarrollo de la Alcaldía  Local de los Mártires, en la ejecución administrativa y financiera, para el cumplimiento del plan de desarrollo local vigente.","Inversión","Un nuevo contrato social y ambiental para la Bogotá del Siglo XXI",3,{"$f":"IF(ISERROR(VLOOKUP(K85,Proposito_programa!$C$2:$E$59,2,FALSE)),\" \",VLOOKUP(K85,Proposito_programa!$C$2:$E$59,2,FALSE))","v":"Movilidad social integral"},{"$f":"IF(ISERROR(VLOOKUP(K85,Proposito_programa!$C$2:$E$59,3,FALSE)),\" \",VLOOKUP(K85,Proposito_programa!$C$2:$E$59,3,FALSE))","v":"Propósito 1: Hacer un nuevo contrato social para incrementar la inclusión social, productiva y política"},"O23011605570000002099",0,1024560480,"YURY ALEXANDRA DUQUE VALLEJO","Persona Natural","N/A","N/A","N/A",2022,35100000,null,1,12000000,47100000,47100001,"2022-01-26","2022-01-28","2022-10-27","9 meses",1,60,null,null,null,null,"Terminado",1.0000000212314224]
["075-2022",2022," FDLM-075-2022 (67825)","https://community.secop.gov.co/Public/Tendering/OpportunityDetail/Index?noticeUID=CO1.NTC.2726462&isFromPublicArea=True&isModal=False ","Contratos de prestación de servicios profesionales y de apoyo a la gestión","Contratación directa","Prestación de servicios profesionales y de apoyo a la gestión, o para la ejecución de trabajos artísticos que sólo puedan encomendarse a determinadas personas naturales","PRESTAR SERVICIOS PROFESIONALES ÁREA POLICIVA DE LA ALCALDÍA LOCAL DE LOS MARTIRES, PARA APOYAR JURIDICAMENTE LA EJECUCIÓN DE LAS ACCIONES REQUERIDAS PARA LA DEPURACIÓN DE LAS ACTUACIONES ADMINISTRATIVAS QUE CURSAN EN LA ALCALDÍA LOCAL, ASI COMO EL SEGUIMIENTO AL COBRO COACTIVO Y PERSUASIVO, INFORMES MENSUALES DE SIVICOF, MANEJO DEL SISTEMA SICO Y RESPUESTA A TUTELAS QUE LE SEAN ASIGNADOS.","Inversión","Un nuevo contrato social y ambiental para la Bogotá del Siglo XXI",3,{"$f":"IF(ISERROR(VLOOKUP(K86,Proposito_programa!$C$2:$E$59,2,FALSE)),\" \",VLOOKUP(K86,Proposito_programa!$C$2:$E$59,2,FALSE))","v":"Movilidad social integral"},{"$f":"IF(ISERROR(VLOOKUP(K86,Proposito_programa!$C$2:$E$59,3,FALSE)),\" \",VLOOKUP(K86,Proposito_programa!$C$2:$E$59,3,FALSE))","v":"Propósito 1: Hacer un nuevo contrato social para incrementar la inclusión social, productiva y política"},"O23011605570000002099",0,53115231,"LAURA JANNETH RICO BELTRAN","Persona Natural","N/A","N/A","N/A",2022,54000000,null,1,10500000,64500000,64500001,"2022-01-26","2022-01-28","2022-10-27","9 meses",1,60,null,null,null,null,"Terminado",1.000000015503876]
["076-2022",2022,"FDLM-076-2022 (68800)","https://community.secop.gov.co/Public/Tendering/OpportunityDetail/Index?noticeUID=CO1.NTC.2728095&isFromPublicArea=True&isModal=False ","Contratos de prestación de servicios profesionales y de apoyo a la gestión","Contratación directa","Prestación de servicios profesionales y de apoyo a la gestión, o para la ejecución de trabajos artísticos que sólo puedan encomendarse a determinadas personas naturales","PRESTAR LOS SERVICIOS PROFESIONALES PARA LA FORMULACIÓN PRE CONTRACTUAL  PARTICIPATIVA, APOYO A LA SUPERVISIÓN, SEGUIMIENTO, ACOMPAÑAMIENTO, ATENCIÓN Y EVALUACIÓN DE LOS PROYECTOS E INSTANCIAS DE ARTICULACIÓN INTERINSTITUCIONAL Y PARTICIPACIÓN LOCAL QUE SE REQUIERAN EN EL PROYECTO 2077 TERRITORIOS DIVERSOS Y LIBRES DE VIOLENCIA.","Inversión","Un nuevo contrato social y ambiental para la Bogotá del Siglo XXI",3,{"$f":"IF(ISERROR(VLOOKUP(K87,Proposito_programa!$C$2:$E$59,2,FALSE)),\" \",VLOOKUP(K87,Proposito_programa!$C$2:$E$59,2,FALSE))","v":"Movilidad social integral"},{"$f":"IF(ISERROR(VLOOKUP(K87,Proposito_programa!$C$2:$E$59,3,FALSE)),\" \",VLOOKUP(K87,Proposito_programa!$C$2:$E$59,3,FALSE))","v":"Propósito 1: Hacer un nuevo contrato social para incrementar la inclusión social, productiva y política"},"O23011601060000002077",0,1013643257,"MONICA STEFFANY CONSUEGRA AVENDAÑO","Persona Natural","N/A","N/A","N/A",2022,45900000,null,null,null,45900000,45900000,"2022-01-26","2022-01-28","2022-10-27","9 meses",null,null,null,null,null,null,"Terminado",1]
["077-2022",2022,"FDLM-077-2022 (68800)","https://community.secop.gov.co/Public/Tendering/OpportunityDetail/Index?noticeUID=CO1.NTC.2728352&isFromPublicArea=True&isModal=False ","Contratos de prestación de servicios profesionales y de apoyo a la gestión","Contratación directa","Prestación de servicios profesionales y de apoyo a la gestión, o para la ejecución de trabajos artísticos que sólo puedan encomendarse a determinadas personas naturales","PRESTAR LOS SERVICIOS PROFESIONALES PARA LA FORMULACIÓN PRE CONTRACTUAL  PARTICIPATIVA, APOYO A LA SUPERVISIÓN, SEGUIMIENTO, ACOMPAÑAMIENTO, ATENCIÓN Y EVALUACIÓN DE LOS PROYECTOS E INSTANCIAS DE ARTICULACIÓN INTERINSTITUCIONAL Y PARTICIPACIÓN LOCAL QUE SE REQUIERAN EN EL PROYECTO 2077 TERRITORIOS DIVERSOS Y LIBRES DE VIOLENCIA.","Inversión","Un nuevo contrato social y ambiental para la Bogotá del Siglo XXI",3,{"$f":"IF(ISERROR(VLOOKUP(K88,Proposito_programa!$C$2:$E$59,2,FALSE)),\" \",VLOOKUP(K88,Proposito_programa!$C$2:$E$59,2,FALSE))","v":"Movilidad social integral"},{"$f":"IF(ISERROR(VLOOKUP(K88,Proposito_programa!$C$2:$E$59,3,FALSE)),\" \",VLOOKUP(K88,Proposito_programa!$C$2:$E$59,3,FALSE))","v":"Propósito 1: Hacer un nuevo contrato social para incrementar la inclusión social, productiva y política"},"O23011601060000002077",0,1032383222,"JESUS MAURICIO ROA OME","Persona Natural","N/A","N/A","N/A",2022,45900000,null,null,null,45900000,45900000,"2022-01-26","2022-01-28","2022-10-27","9 meses",null,null,null,null,null,null,"Terminado",1]
["078-2022",2022,"FDLM-078-2022 (67763)","https://community.secop.gov.co/Public/Tendering/OpportunityDetail/Index?noticeUID=CO1.NTC.2770445&isFromPublicArea=True&isModal=False","Contratos de prestación de servicios profesionales y de apoyo a la gestión","Contratación directa","Prestación de servicios profesionales y de apoyo a la gestión, o para la ejecución de trabajos artísticos que sólo puedan encomendarse a determinadas personas naturales","PRESTAR SUS SERVICIOS PROFESIONALES DE APOYO EN LA FORMULACIÓN, EVALUACIÓN Y SEGUIMIENTO DE LAS INSTANCIAS DE PARTICIPACIÓN LOCALES, ASÍ COMO DE LOS PROYECTOS DE INVERSIÓN Y DEMÁS ACTIVIDADES RELACIONADAS CON EL ÁREA DE GESTIÓN DEL DESARROLLO LOCAL","Inversión","Un nuevo contrato social y ambiental para la Bogotá del Siglo XXI",3,{"$f":"IF(ISERROR(VLOOKUP(K89,Proposito_programa!$C$2:$E$59,2,FALSE)),\" \",VLOOKUP(K89,Proposito_programa!$C$2:$E$59,2,FALSE))","v":"Movilidad social integral"},{"$f":"IF(ISERROR(VLOOKUP(K89,Proposito_programa!$C$2:$E$59,3,FALSE)),\" \",VLOOKUP(K89,Proposito_programa!$C$2:$E$59,3,FALSE))","v":"Propósito 1: Hacer un nuevo contrato social para incrementar la inclusión social, productiva y política"},"O23011605570000002099",0,49606008,"IRINA LUZ GUTIERREZ CIFUENTES","Persona Natural","N/A","N/A","N/A",2022,45000000,null,1,9100000,54100000,54100001,"2022-01-27","2022-02-01","2022-10-31","9 Meses",1,60,null,null,null,null,"Terminado",1.0000000184842883]
["079-2022",2022,"FDLM-079-2022 (70208)","https://community.secop.gov.co/Public/Tendering/OpportunityDetail/Index?noticeUID=CO1.NTC.2764103&isFromPublicArea=True&isModal=False","Contratos de prestación de servicios profesionales y de apoyo a la gestión","Contratación directa","Prestación de servicios profesionales y de apoyo a la gestión, o para la ejecución de trabajos artísticos que sólo puedan encomendarse a determinadas personas naturales","Prestar servicios profesionales especializados en los proyectos que tienen por objeto la adecuación, rehabilitación y mantenimiento de la casa de la cultura de la localidad de los mártires.","Inversión","Un nuevo contrato social y ambiental para la Bogotá del Siglo XXI",3,{"$f":"IF(ISERROR(VLOOKUP(K90,Proposito_programa!$C$2:$E$59,2,FALSE)),\" \",VLOOKUP(K90,Proposito_programa!$C$2:$E$59,2,FALSE))","v":"Movilidad social integral"},{"$f":"IF(ISERROR(VLOOKUP(K90,Proposito_programa!$C$2:$E$59,3,FALSE)),\" \",VLOOKUP(K90,Proposito_programa!$C$2:$E$59,3,FALSE))","v":"Propósito 1: Hacer un nuevo contrato social para incrementar la inclusión social, productiva y política"},"O23011601210000002070",0,1030534528,"DIANA ALEXANDRA JIMÉNEZ ARIZA","Persona Natural","N/A","N/A","N/A",2022,63900000,null,1,8533333,72433333,72433334,"2022-01-26","2022-01-28","2022-10-27","9 Meses",1,60,null,null,null,null,"Terminado",1.0000000138057985]
["080-2022",2022,"FDLM-080-2022 (71233)","https://community.secop.gov.co/Public/Tendering/OpportunityDetail/Index?noticeUID=CO1.NTC.2726464&isFromPublicArea=True&isModal=False.","Contratos de prestación de servicios profesionales y de apoyo a la gestión","Contratación directa","Prestación de servicios profesionales y de apoyo a la gestión, o para la ejecución de trabajos artísticos que sólo puedan encomendarse a determinadas personas naturales","PRESTAR LOS SERVICIOS PROFESIONALES ADMINISTRATIVOS AL FONDO DE DESARROLLO LOCAL EN EL FORTALECIMIENTO DE LAS ETAPAS DE LA GESTION PUBLICA CONTRACTUAL, EN CUMPLIMIENTO DEL PLAN DE DESARROLLO LOCAL VIGENTE.","Inversión","Un nuevo contrato social y ambiental para la Bogotá del Siglo XXI",3,{"$f":"IF(ISERROR(VLOOKUP(K91,Proposito_programa!$C$2:$E$59,2,FALSE)),\" \",VLOOKUP(K91,Proposito_programa!$C$2:$E$59,2,FALSE))","v":"Movilidad social integral"},{"$f":"IF(ISERROR(VLOOKUP(K91,Proposito_programa!$C$2:$E$59,3,FALSE)),\" \",VLOOKUP(K91,Proposito_programa!$C$2:$E$59,3,FALSE))","v":"Propósito 1: Hacer un nuevo contrato social para incrementar la inclusión social, productiva y política"},"O23011605570000002099",0,1030544996,"JEIMMY ALEXANDRA RODRIGUEZ BOLIVAR","Persona Natural","N/A","N/A","N/A",2022,41600000,null,1,10500000,52100000,52100001,"2022-01-26","2022-01-27","2022-09-26","8 Meses",1,60,null,null,null,null,"Terminado",1.0000000191938581]
["081-2022",2022,"FDLM-081-2022 (58212)","https://community.secop.gov.co/Public/Tendering/OpportunityDetail/Index?noticeUID=CO1.NTC.2768861&isFromPublicArea=True&isModal=False","Contratos de prestación de servicios profesionales y de apoyo a la gestión","Contratación directa","Prestación de servicios profesionales y de apoyo a la gestión, o para la ejecución de trabajos artísticos que sólo puedan encomendarse a determinadas personas naturales","PRESTAR LOS SERVICIOS DE APOYO LOGÍSTICO EN LAS DIFERENTES TAREAS DE BODEGAJE, TRASLADOS, MONTAJES Y DEMÁS ACTIVIDADES RELACIONADAS A CARGO DE LA ALCALDÍA LOCAL DE LOS MÁRTIRES.","Inversión","Un nuevo contrato social y ambiental para la Bogotá del Siglo XXI",3,{"$f":"IF(ISERROR(VLOOKUP(K92,Proposito_programa!$C$2:$E$59,2,FALSE)),\" \",VLOOKUP(K92,Proposito_programa!$C$2:$E$59,2,FALSE))","v":"Movilidad social integral"},{"$f":"IF(ISERROR(VLOOKUP(K92,Proposito_programa!$C$2:$E$59,3,FALSE)),\" \",VLOOKUP(K92,Proposito_programa!$C$2:$E$59,3,FALSE))","v":"Propósito 1: Hacer un nuevo contrato social para incrementar la inclusión social, productiva y política"},"O23011605570000002099",0,79380362,"FERNANDO CABALLERO SILVA","Persona Natural","N/A","N/A","N/A",2022,20493000,null,null,null,20493000,20493000,"2022-01-27","2022-01-31","2022-10-30","9 Meses",null,null,null,null,null,null,"Terminado",1]
["082-2022",2022,"FDLM-082-2022 (70469)","https://community.secop.gov.co/Public/Tendering/OpportunityDetail/Index?noticeUID=CO1.NTC.2724829&isFromPublicArea=True&isModal=False","Contratos de prestación de servicios profesionales y de apoyo a la gestión","Contratación directa","Prestación de servicios profesionales y de apoyo a la gestión, o para la ejecución de trabajos artísticos que sólo puedan encomendarse a determinadas personas naturales","Prestar los servicios profesionales que garanticen la adecuada concertación de acciones para la estructuración del proceso precontractual y contractual relativos al proyecto 2084 de la vigencia fiscal 2022, así como el apoyo a la ejecución del contrato a través del cual se ejecute la respectiva meta plan de desarrollo y objetivos del proyecto de inversión.","Inversión","Un nuevo contrato social y ambiental para la Bogotá del Siglo XXI",3,{"$f":"IF(ISERROR(VLOOKUP(K93,Proposito_programa!$C$2:$E$59,2,FALSE)),\" \",VLOOKUP(K93,Proposito_programa!$C$2:$E$59,2,FALSE))","v":"Movilidad social integral"},{"$f":"IF(ISERROR(VLOOKUP(K93,Proposito_programa!$C$2:$E$59,3,FALSE)),\" \",VLOOKUP(K93,Proposito_programa!$C$2:$E$59,3,FALSE))","v":"Propósito 1: Hacer un nuevo contrato social para incrementar la inclusión social, productiva y política"},"O23011602380000002084",0,7174336,"CARLOS ALEXANDER NEIRA SÁNCHEZ","Persona Natural","N/A","N/A","N/A",2022,40000000,null,1,6955200,46955200,46955201,"2022-01-26","2022-01-28","2022-09-27","8 Meses",1,60,null,null,null,null,"Terminado",1.0000000212968958]
["083-2022",2022,"FDLM-083-2022 (71221)","https://community.secop.gov.co/Public/Tendering/OpportunityDetail/Index?noticeUID=CO1.NTC.2770668&isFromPublicArea=True&isModal=False","Contratos de prestación de servicios profesionales y de apoyo a la gestión","Contratación directa","Prestación de servicios profesionales y de apoyo a la gestión, o para la ejecución de trabajos artísticos que sólo puedan encomendarse a determinadas personas naturales","PRESTAR LOS SERVICIOS COMO PROFESIONAL AL DESPACHO DEL ALCALDE EN LA GESTIÓN PÚBLICA PRECONTRACTUAL, CONTRACTUAL Y POST CONTRACTUAL QUE SE REQUIERA EN CUMPLIMIENTO DEL PLAN DE DESARROLLO LOCAL.","Inversión","Un nuevo contrato social y ambiental para la Bogotá del Siglo XXI",3,{"$f":"IF(ISERROR(VLOOKUP(K94,Proposito_programa!$C$2:$E$59,2,FALSE)),\" \",VLOOKUP(K94,Proposito_programa!$C$2:$E$59,2,FALSE))","v":"Movilidad social integral"},{"$f":"IF(ISERROR(VLOOKUP(K94,Proposito_programa!$C$2:$E$59,3,FALSE)),\" \",VLOOKUP(K94,Proposito_programa!$C$2:$E$59,3,FALSE))","v":"Propósito 1: Hacer un nuevo contrato social para incrementar la inclusión social, productiva y política"},"O23011605570000002099",0,1140843788,"FREDY ANDRÉS PAUTT BARCELÓ","Persona Natural","N/A","N/A","N/A",2022,63000000,null,1,10500000,73500000,63000000,"2022-01-27","2022-01-29","2022-10-28","9 Meses",1,60,null,null,null,null,"En ejecución",0.8571428571428571]
["084-2022",2022,"FDLM-084-2022 (68206)","https://community.secop.gov.co/Public/Tendering/OpportunityDetail/Index?noticeUID=CO1.NTC.2773888&isFromPublicArea=True&isModal=Fa","Contratos de prestación de servicios profesionales y de apoyo a la gestión","Contratación directa","Prestación de servicios profesionales y de apoyo a la gestión, o para la ejecución de trabajos artísticos que sólo puedan encomendarse a determinadas personas naturales","PRESTAR LOS SERVICIOS DE APOYO A LOS ARCHIVOS DE GESTIÓN DE LA ENTIDAD EN LA IMPLEMENTACIÓN DE LOS PROCESOS DE CLASIFICACIÓN, ORDENACIÓN, SELECCIÓN NATURAL, FOLIACIÓN, IDENTIFICACIÓN, LEVANTAMIENTO DE INVENTARIOS, ALMACENAMIENTO Y APLICACIÓN DE PROTOCOLOS DE ELIMINACIÓN Y TRANSFERENCIAS DOCUMENTALES","Inversión","Un nuevo contrato social y ambiental para la Bogotá del Siglo XXI",3,{"$f":"IF(ISERROR(VLOOKUP(K95,Proposito_programa!$C$2:$E$59,2,FALSE)),\" \",VLOOKUP(K95,Proposito_programa!$C$2:$E$59,2,FALSE))","v":"Movilidad social integral"},{"$f":"IF(ISERROR(VLOOKUP(K95,Proposito_programa!$C$2:$E$59,3,FALSE)),\" \",VLOOKUP(K95,Proposito_programa!$C$2:$E$59,3,FALSE))","v":"Propósito 1: Hacer un nuevo contrato social para incrementar la inclusión social, productiva y política"},"O23011605570000002099",0,1032367179,"YIBETH FAISURY SALAZAR ABRIL","Persona Natural","N/A","N/A","N/A",2022,20493000,null,1,8190000,28683000,{"$f":"+X95+Y95+AA95","v":28683001},"2022-01-28","2022-02-01","2022-10-31","9 Meses",1,60,null,null,null,null,"Terminado",1.0000000348638567]
["085-2022",2022,"FDLM-085-2022 (68206)","https://community.secop.gov.co/Public/Tendering/OpportunityDetail/Index?noticeUID=CO1.NTC.2764494&isFromPublicArea=True&isModal=False","Contratos de prestación de servicios profesionales y de apoyo a la gestión","Contratación directa","Prestación de servicios profesionales y de apoyo a la gestión, o para la ejecución de trabajos artísticos que sólo puedan encomendarse a determinadas personas naturales","PRESTAR LOS SERVICIOS DE APOYO A LOS ARCHIVOS DE GESTIÓN DE LA ENTIDAD EN LA IMPLEMENTACIÓN DE LOS PROCESOS DE CLASIFICACIÓN, ORDENACIÓN, SELECCIÓN NATURAL, FOLIACIÓN, IDENTIFICACIÓN, LEVANTAMIENTO DE INVENTARIOS, ALMACENAMIENTO Y APLICACIÓN DE PROTOCOLOS DE ELIMINACIÓN Y TRANSFERENCIAS DOCUMENTALES","Inversión","Un nuevo contrato social y ambiental para la Bogotá del Siglo XXI",3,{"$f":"IF(ISERROR(VLOOKUP(K96,Proposito_programa!$C$2:$E$59,2,FALSE)),\" \",VLOOKUP(K96,Proposito_programa!$C$2:$E$59,2,FALSE))","v":"Movilidad social integral"},{"$f":"IF(ISERROR(VLOOKUP(K96,Proposito_programa!$C$2:$E$59,3,FALSE)),\" \",VLOOKUP(K96,Proposito_programa!$C$2:$E$59,3,FALSE))","v":"Propósito 1: Hacer un nuevo contrato social para incrementar la inclusión social, productiva y política"},"O23011605570000002099",0,1010233475,"CRISTIAN EDUARDO MORENO DUCUARA","Persona Natural","N/A","N/A","N/A",2022,20493000,null,1,12600000,33093000,{"$f":"+X96+Y96+AA96","v":33093001},"2022-01-27","2022-02-01","2022-10-31","9 Meses",1,60,null,null,null,null,"Terminado",1.0000000302178709]
["086-2022",2022,"FDLM-086-2022 (70087)","https://community.secop.gov.co/Public/Tendering/OpportunityDetail/Index?noticeUID=CO1.NTC.2763367&isFromPublicArea=True&isModal=False","Contratos de prestación de servicios profesionales y de apoyo a la gestión","Contratación directa","Prestación de servicios profesionales y de apoyo a la gestión, o para la ejecución de trabajos artísticos que sólo puedan encomendarse a determinadas personas naturales","PRESTAR LOS SERVICIOS PROFESIONALES PARA ADMINISTRAR LA RED DE SISTEMAS Y TECNOLOGIA E INFORMACIÓN DE LA ALCALDIA LOCAL.","Inversión","Un nuevo contrato social y ambiental para la Bogotá del Siglo XXI",3,{"$f":"IF(ISERROR(VLOOKUP(K97,Proposito_programa!$C$2:$E$59,2,FALSE)),\" \",VLOOKUP(K97,Proposito_programa!$C$2:$E$59,2,FALSE))","v":"Movilidad social integral"},{"$f":"IF(ISERROR(VLOOKUP(K97,Proposito_programa!$C$2:$E$59,3,FALSE)),\" \",VLOOKUP(K97,Proposito_programa!$C$2:$E$59,3,FALSE))","v":"Propósito 1: Hacer un nuevo contrato social para incrementar la inclusión social, productiva y política"},"O23011605570000002099",0,80166441,"LUIS MIGUEL LOPEZ RODRIGUEZ","Persona Natural","N/A","N/A","N/A",2022,45000000,null,null,null,45000000,{"$f":"+X97+Y97+AA97","v":45000000},"2022-01-27","2022-02-01","2022-10-31","9 Meses",null,null,null,null,null,null,"Terminado",1]
["087-2022",2022,"FDLM-087-2022 (70039","https://community.secop.gov.co/Public/Tendering/OpportunityDetail/Index?noticeUID=CO1.NTC.2769542&isFromPublicArea=True&isModal=False","Contratos de prestación de servicios profesionales y de apoyo a la gestión","Contratación directa","Prestación de servicios profesionales y de apoyo a la gestión, o para la ejecución de trabajos artísticos que sólo puedan encomendarse a determinadas personas naturales","PRESTAR LOS SERVICIOS PROFESIONALES PARA LA FORMULACIÓN PRE CONTRACTUAL PARTICIPATIVA, APOYO A LA SUPERVISIÓN, SEGUIMIENTO, ACOMPAÑAMIENTO, ATENCIÓN Y EVALUACIÓN DE LOS PROYECTOS E INSTANCIAS DE ARTICULACIÓN INTERINSTITUCIONAL Y PARTICIPACIÓN LOCAL QUE SE REQUIERAN EN EL PROYECTO 2077 TERRITORIOS DIVERSOS Y LIBRES DE VIOLENCIA.","Inversión","Un nuevo contrato social y ambiental para la Bogotá del Siglo XXI",3,{"$f":"IF(ISERROR(VLOOKUP(K98,Proposito_programa!$C$2:$E$59,2,FALSE)),\" \",VLOOKUP(K98,Proposito_programa!$C$2:$E$59,2,FALSE))","v":"Movilidad social integral"},{"$f":"IF(ISERROR(VLOOKUP(K98,Proposito_programa!$C$2:$E$59,3,FALSE)),\" \",VLOOKUP(K98,Proposito_programa!$C$2:$E$59,3,FALSE))","v":"Propósito 1: Hacer un nuevo contrato social para incrementar la inclusión social, productiva y política"},"O23011601060000002077",0,33206170,"INGRID TERESA PEÑA VEGA","Persona Natural","N/A","N/A","N/A",2022,40950000,null,1,7280000,48230000,40950000,"2022-01-28","2022-02-01","2022-10-31","9 Meses",1,"01 mes y 18 dias",null,null,null,null,"En ejecución",0.84905660377358494]
["088-2022",2022," FDLM-088-2022 (70413)","https://community.secop.gov.co/Public/Tendering/OpportunityDetail/Index?noticeUID=CO1.NTC.2767713&isFromPublicArea=True&isModal=False","Contratos de prestación de servicios profesionales y de apoyo a la gestión","Contratación directa","Prestación de servicios profesionales y de apoyo a la gestión, o para la ejecución de trabajos artísticos que sólo puedan encomendarse a determinadas personas naturales","Prestar los servicios profesionales que garanticen el adecuado seguimiento físico financiero a la transferencia monetaria por concepto de ingreso mínimo garantizado, en el marco del Programa Bogotá Solidaria.","Inversión","Un nuevo contrato social y ambiental para la Bogotá del Siglo XXI",3,{"$f":"IF(ISERROR(VLOOKUP(K99,Proposito_programa!$C$2:$E$59,2,FALSE)),\" \",VLOOKUP(K99,Proposito_programa!$C$2:$E$59,2,FALSE))","v":"Movilidad social integral"},{"$f":"IF(ISERROR(VLOOKUP(K99,Proposito_programa!$C$2:$E$59,3,FALSE)),\" \",VLOOKUP(K99,Proposito_programa!$C$2:$E$59,3,FALSE))","v":"Propósito 1: Hacer un nuevo contrato social para incrementar la inclusión social, productiva y política"},"O23011601010000002068",0,1065641911,"ANETH TATIANA BUENO ARIAS","Persona Natural","N/A","N/A","N/A",2022,40000000,null,1,10000000,50000000,{"$f":"+X99+Y99+AA99","v":50000001},"2022-01-27","2022-02-01","2022-09-30","8 Meses",1,60,null,null,null,null,"Terminado",1.0000000200000001]
["089-2022",2022,"FDLM-089-2022 (70424)","https://community.secop.gov.co/Public/Tendering/OpportunityDetail/Index?noticeUID=CO1.NTC.2770674&isFromPublicArea=True&isModal=False","Contratos de prestación de servicios profesionales y de apoyo a la gestión","Contratación directa","Prestación de servicios profesionales y de apoyo a la gestión, o para la ejecución de trabajos artísticos que sólo puedan encomendarse a determinadas personas naturales","Prestar los servicios profesionales que garanticen la adecuada estructuración del proceso mediante el cual se ejecute el proyecto 2042 del FDLM, en especial la relativa a la vinculación de personas a procesos de construcción de memoria, verdad, reparación integral a víctimas, paz y reconciliación.","Inversión","Un nuevo contrato social y ambiental para la Bogotá del Siglo XXI",3,{"$f":"IF(ISERROR(VLOOKUP(K100,Proposito_programa!$C$2:$E$59,2,FALSE)),\" \",VLOOKUP(K100,Proposito_programa!$C$2:$E$59,2,FALSE))","v":"Movilidad social integral"},{"$f":"IF(ISERROR(VLOOKUP(K100,Proposito_programa!$C$2:$E$59,3,FALSE)),\" \",VLOOKUP(K100,Proposito_programa!$C$2:$E$59,3,FALSE))","v":"Propósito 1: Hacer un nuevo contrato social para incrementar la inclusión social, productiva y política"},"O23011603390000002042",0,1010235916,"ALVARO JAVIER SALAZAR GIRALDO","Persona Natural","N/A","N/A","N/A",2022,40000000,null,1,14910000,54910000,54910001,"2022-01-27","2022-02-01","2022-09-30","8 Meses",1,60,null,null,null,null,"Terminado",1.0000000182116191]
["090-2022",2022,"FDLM-090-2022 (70541)","https://community.secop.gov.co/Public/Tendering/OpportunityDetail/Index?noticeUID=CO1.NTC.2766441&isFromPublicArea=True&isModal=False","Contratos de prestación de servicios profesionales y de apoyo a la gestión","Contratación directa","Prestación de servicios profesionales y de apoyo a la gestión, o para la ejecución de trabajos artísticos que sólo puedan encomendarse a determinadas personas naturales","Prestar los servicios profesionales que garanticen la adecuada concertación de acciones para la estructuración del proceso precontractual y contractual relativos al proyecto 2096 de la vigencia fiscal 2022, así como el apoyo a la ejecución del contrato a través del cual se ejecute la respectiva meta plan de desarrollo y objetivos del proyecto de inversión.","Inversión","Un nuevo contrato social y ambiental para la Bogotá del Siglo XXI",3,{"$f":"IF(ISERROR(VLOOKUP(K101,Proposito_programa!$C$2:$E$59,2,FALSE)),\" \",VLOOKUP(K101,Proposito_programa!$C$2:$E$59,2,FALSE))","v":"Movilidad social integral"},{"$f":"IF(ISERROR(VLOOKUP(K101,Proposito_programa!$C$2:$E$59,3,FALSE)),\" \",VLOOKUP(K101,Proposito_programa!$C$2:$E$59,3,FALSE))","v":"Propósito 1: Hacer un nuevo contrato social para incrementar la inclusión social, productiva y política"},"O23011605550000002096",0,1013596018,"JAIR ARMANDO MORA DIAZ","Persona Natural","N/A","N/A","N/A",2022,40000000,null,null,null,40000000,40000000,"2022-01-27","2022-02-01","2022-09-30","8 Meses",null,null,null,null,null,null,"Terminado",1]
["091-2022",2022,"FDLM- 091-2022 (70571)","https://community.secop.gov.co/Public/Tendering/OpportunityDetail/Index?noticeUID=CO1.NTC.2764193&isFromPublicArea=True&isModal=False","Contratos de prestación de servicios profesionales y de apoyo a la gestión","Contratación directa","Prestación de servicios profesionales y de apoyo a la gestión, o para la ejecución de trabajos artísticos que sólo puedan encomendarse a determinadas personas naturales","Prestar los servicios profesionales como apoyo al equipo del proyecto 2060, que garantice la adecuada estructuración del proceso precontractual y contractual relativos al proyecto 2060 de la vigencia fiscal 2022, así como el apoyo a la ejecución del contrato a través del cual se ejecute la respectiva meta plan de desarrollo y objetivos del proyecto de inversión, y del contrato en ejecución vigencia fiscal 2021.","Inversión","Un nuevo contrato social y ambiental para la Bogotá del Siglo XXI",3,{"$f":"IF(ISERROR(VLOOKUP(K102,Proposito_programa!$C$2:$E$59,2,FALSE)),\" \",VLOOKUP(K102,Proposito_programa!$C$2:$E$59,2,FALSE))","v":"Movilidad social integral"},{"$f":"IF(ISERROR(VLOOKUP(K102,Proposito_programa!$C$2:$E$59,3,FALSE)),\" \",VLOOKUP(K102,Proposito_programa!$C$2:$E$59,3,FALSE))","v":"Propósito 1: Hacer un nuevo contrato social para incrementar la inclusión social, productiva y política"},"O23011601060000002060",0,1052993997,"ANDRÉS FELIPE LARA NÚÑEZ","Persona Natural","N/A","N/A","N/A",2022,40000000,null,1,16293333,56293333,56293334,"2022-01-27","2022-02-01","2022-09-30","8 Meses",1,95,null,null,null,null,"Terminado",1.0000000177640929]
["092-2022",2022,"FDLM-092-2022 (67827)","https://community.secop.gov.co/Public/Tendering/OpportunityDetail/Index?noticeUID=CO1.NTC.2773922&isFromPublicArea=True&isModal=False\n","Contratos de prestación de servicios profesionales y de apoyo a la gestión","Contratación directa","Prestación de servicios profesionales y de apoyo a la gestión, o para la ejecución de trabajos artísticos que sólo puedan encomendarse a determinadas personas naturales","PRESTAR SERVICIOS PROFESIONALES COMO ENLACE EN TEMAS DE GESTIÓN DE RIESGO Y AGLOMERACIONES, A CARGO DE LA LOCALIDAD DE LOS MÁRTIRES DE CONFORMIDAD CON EL MARCO NORMATIVO APLICABLE PARA LA MATERIA.","Inversión","Un nuevo contrato social y ambiental para la Bogotá del Siglo XXI",3,{"$f":"IF(ISERROR(VLOOKUP(K103,Proposito_programa!$C$2:$E$59,2,FALSE)),\" \",VLOOKUP(K103,Proposito_programa!$C$2:$E$59,2,FALSE))","v":"Movilidad social integral"},{"$f":"IF(ISERROR(VLOOKUP(K103,Proposito_programa!$C$2:$E$59,3,FALSE)),\" \",VLOOKUP(K103,Proposito_programa!$C$2:$E$59,3,FALSE))","v":"Propósito 1: Hacer un nuevo contrato social para incrementar la inclusión social, productiva y política"},"O23011605570000002099",0,79967824,"VICTOR FERNANDO ENCISO CONTRERAS","Persona Natural","N/A","N/A","N/A",2022,54000000,null,1,16293333,70293333,70293334,"2022-01-28","2022-02-01","2022-10-31","9 Meses",1,95,null,null,null,null,"Terminado",1.0000000142261003]
["093-2022",2022,"FDLM-093-2022 (70474)","https://community.secop.gov.co/Public/Tendering/OpportunityDetail/Index?noticeUID=CO1.NTC.2768565&isFromPublicArea=True&isModal=False ","Contratos de prestación de servicios profesionales y de apoyo a la gestión","Contratación directa","Prestación de servicios profesionales y de apoyo a la gestión, o para la ejecución de trabajos artísticos que sólo puedan encomendarse a determinadas personas naturales","Apoyar técnicamente a los profesionales de infraestructura del grupo de Planeación Local, en el trámite de respuesta a derechos de petición, requerimientos ciudadanos y demás aspectos administrativos necesarios para gestionar de manera adecuada el proyecto 2097, de la vigencia fiscal 2022.","Inversión","Un nuevo contrato social y ambiental para la Bogotá del Siglo XXI",3,{"$f":"IF(ISERROR(VLOOKUP(K104,Proposito_programa!$C$2:$E$59,2,FALSE)),\" \",VLOOKUP(K104,Proposito_programa!$C$2:$E$59,2,FALSE))","v":"Movilidad social integral"},{"$f":"IF(ISERROR(VLOOKUP(K104,Proposito_programa!$C$2:$E$59,3,FALSE)),\" \",VLOOKUP(K104,Proposito_programa!$C$2:$E$59,3,FALSE))","v":"Propósito 1: Hacer un nuevo contrato social para incrementar la inclusión social, productiva y política"},"O23011604490000002097",0,52436360,"LUZ MERY MUNZA CASASBUENAS","Persona Natural","N/A","N/A","N/A",2022,24800000,null,1,15500000,40300000,40300001,"2022-01-27","2022-02-01","2022-09-30","8 Meses",1,94,null,null,null,null,"Terminado",1.0000000248138958]
["094-2022",2022,"FDLM-094-2022 (71256)","https://community.secop.gov.co/Public/Tendering/OpportunityDetail/Index?noticeUID=CO1.NTC.2770778&isFromPublicArea=True&isModal=False ","Contratos de prestación de servicios profesionales y de apoyo a la gestión","Contratación directa","Prestación de servicios profesionales y de apoyo a la gestión, o para la ejecución de trabajos artísticos que sólo puedan encomendarse a determinadas personas naturales","El contrato que se pretende celebrar tendrá por objeto Prestar los servicios de apoyo que garanticen la adecuada estructuración del proceso mediante el cual se ejecute el proyecto 2077 del FDLM, en especial la relativa a la formación en prevención de violencia intrafamiliar y/o violencia sexual.","Inversión","Un nuevo contrato social y ambiental para la Bogotá del Siglo XXI",3,{"$f":"IF(ISERROR(VLOOKUP(K105,Proposito_programa!$C$2:$E$59,2,FALSE)),\" \",VLOOKUP(K105,Proposito_programa!$C$2:$E$59,2,FALSE))","v":"Movilidad social integral"},{"$f":"IF(ISERROR(VLOOKUP(K105,Proposito_programa!$C$2:$E$59,3,FALSE)),\" \",VLOOKUP(K105,Proposito_programa!$C$2:$E$59,3,FALSE))","v":"Propósito 1: Hacer un nuevo contrato social para incrementar la inclusión social, productiva y política"},"O23011601060000002077",0,1022430287,"PAULA ALEJANDRA ZAMUDIO VELASQUEZ","Persona Natural","N/A","N/A","N/A",2022,25500000,null,null,null,25500000,25500000,"2022-01-28","2022-02-01","2022-09-30","8 Meses",null,null,null,null,null,null,"Terminado",1]
["095-2022",2022,"FDLM-095-2022 (70083)","https://community.secop.gov.co/Public/Tendering/OpportunityDetail/Index?noticeUID=CO1.NTC.2765040&isFromPublicArea=True&isModal=False ","Contratos de prestación de servicios profesionales y de apoyo a la gestión","Contratación directa","Prestación de servicios profesionales y de apoyo a la gestión, o para la ejecución de trabajos artísticos que sólo puedan encomendarse a determinadas personas naturales","Prestar sus Servicios Profesionales para apoyar a la Alcaldía Local de Los Mártires, en la articulación, acompañamiento y seguimiento del contrato No 184- 2021.","Inversión","Un nuevo contrato social y ambiental para la Bogotá del Siglo XXI",3,{"$f":"IF(ISERROR(VLOOKUP(K106,Proposito_programa!$C$2:$E$59,2,FALSE)),\" \",VLOOKUP(K106,Proposito_programa!$C$2:$E$59,2,FALSE))","v":"Movilidad social integral"},{"$f":"IF(ISERROR(VLOOKUP(K106,Proposito_programa!$C$2:$E$59,3,FALSE)),\" \",VLOOKUP(K106,Proposito_programa!$C$2:$E$59,3,FALSE))","v":"Propósito 1: Hacer un nuevo contrato social para incrementar la inclusión social, productiva y política"},"O23011602340000002085",0,11605534,"JOHN JADER SUÁREZ DELGADO","Persona Natural","N/A","N/A","N/A",2022,61200000,null,1,15500000,76700000,76700001,"2022-01-27","2022-02-01","2022-10-31","9 Meses",1,94,null,null,null,null,"Terminado",1.0000000130378097]
["096-2022",2022,"FDLM-096-2022 (70580)","https://community.secop.gov.co/Public/Tendering/OpportunityDetail/Index?noticeUID=CO1.NTC.2768453&isFromPublicArea=True&isModal=False","Contratos de prestación de servicios profesionales y de apoyo a la gestión","Contratación directa","Prestación de servicios profesionales y de apoyo a la gestión, o para la ejecución de trabajos artísticos que sólo puedan encomendarse a determinadas personas naturales","Prestar los servicios de apoyo técnico que garanticen la labor de coordinación del proyecto 2060, que garantice la adecuada estructuración del proceso precontractual y contractual relativos al proyecto 2060 de la vigencia fiscal 2022, así como el apoyo a la ejecución del contrato a través del cual se ejecute la respectiva meta plan de desarrollo y objetivos del proyecto de inversión, y del contrato en ejecución vigencia fiscal 2021.","Inversión","Un nuevo contrato social y ambiental para la Bogotá del Siglo XXI",3,{"$f":"IF(ISERROR(VLOOKUP(K107,Proposito_programa!$C$2:$E$59,2,FALSE)),\" \",VLOOKUP(K107,Proposito_programa!$C$2:$E$59,2,FALSE))","v":"Movilidad social integral"},{"$f":"IF(ISERROR(VLOOKUP(K107,Proposito_programa!$C$2:$E$59,3,FALSE)),\" \",VLOOKUP(K107,Proposito_programa!$C$2:$E$59,3,FALSE))","v":"Propósito 1: Hacer un nuevo contrato social para incrementar la inclusión social, productiva y política"},"O23011601060000002060",0,1020815037,"DANIELA CAÑÓN BENAVIDES","Persona Natural","N/A","N/A","N/A",2022,27900000,null,null,null,{"$f":"+W107+X107+Z107","v":27900000},27900000,"2022-01-28","2022-02-01","2022-10-31","9 Meses",null,null,null,null,null,null,"Terminado",1]
["097-2022",2022,"FDLM-097-2022 (67787)","https://community.secop.gov.co/Public/Tendering/OpportunityDetail/Index?noticeUID=CO1.NTC.2792537&isFromPublicArea=True&isModal=False","Contratos de prestación de servicios profesionales y de apoyo a la gestión","Contratación directa","Prestación de servicios profesionales y de apoyo a la gestión, o para la ejecución de trabajos artísticos que sólo puedan encomendarse a determinadas personas naturales","PRESTAR LOS SERVICIOS ASISTENCIALES DE APOYO A LAS ACTIVIDADES RELACIONADAS CON EL ÁREA DE GESTIÓN DEL DESARROLLO LOCAL DE LA LOCALIDAD DE LOS MÁRTIRES, EN CUMPLIMIENTO DEL PLAN DE DESARROLLO LOCAL VIGENTE.","Inversión","Un nuevo contrato social y ambiental para la Bogotá del Siglo XXI",3,{"$f":"IF(ISERROR(VLOOKUP(K108,Proposito_programa!$C$2:$E$59,2,FALSE)),\" \",VLOOKUP(K108,Proposito_programa!$C$2:$E$59,2,FALSE))","v":"Movilidad social integral"},{"$f":"IF(ISERROR(VLOOKUP(K108,Proposito_programa!$C$2:$E$59,3,FALSE)),\" \",VLOOKUP(K108,Proposito_programa!$C$2:$E$59,3,FALSE))","v":"Propósito 1: Hacer un nuevo contrato social para incrementar la inclusión social, productiva y política"},"O23011605570000002099",0,1121333194,"VIELKA YELITZA ROSADO OVIEDO","Persona Natural","N/A","N/A","N/A",2022,22500000,null,1,19133333,41633333,41633334,"2022-01-28","2022-02-01","2022-10-31","9 Meses",1,60,null,null,null,null,"Terminado",1.0000000240192155]
["098-2022",2022,"FDLM-098-2022 (71255)","https://community.secop.gov.co/Public/Tendering/OpportunityDetail/Index?noticeUID=CO1.NTC.2773467&isFromPublicArea=True&isModal=False","Contratos de prestación de servicios profesionales y de apoyo a la gestión","Contratación directa","Prestación de servicios profesionales y de apoyo a la gestión, o para la ejecución de trabajos artísticos que sólo puedan encomendarse a determinadas personas naturales","Prestar los servicios de apoyo administrativo que garanticen la adecuada gestión del equipo humano a cargo del proyecto 2060 de la vigencia fiscal 2022, así como el apoyo administrativo a la supervisión de los contratos suscritos con cargo a dicho proyecto para las vigencias fiscales 2021 y 2022","Inversión","Un nuevo contrato social y ambiental para la Bogotá del Siglo XXI",3,{"$f":"IF(ISERROR(VLOOKUP(K109,Proposito_programa!$C$2:$E$59,2,FALSE)),\" \",VLOOKUP(K109,Proposito_programa!$C$2:$E$59,2,FALSE))","v":"Movilidad social integral"},{"$f":"IF(ISERROR(VLOOKUP(K109,Proposito_programa!$C$2:$E$59,3,FALSE)),\" \",VLOOKUP(K109,Proposito_programa!$C$2:$E$59,3,FALSE))","v":"Propósito 1: Hacer un nuevo contrato social para incrementar la inclusión social, productiva y política"},"O23011601060000002060",0,1016113257,"RICARDO JUNIOR SÁNCHEZ VELASQUEZ","Persona Natural","N/A","N/A","N/A",2022,16800000,null,1,4554000,21354000,21354001,"2022-01-28","2022-02-01","2022-09-30","8 Meses",1,60,null,null,null,null,"Terminado",1.0000000468296337]
["099-2022",2022,"FDLM-099-2022 (71125)","https://community.secop.gov.co/Public/Tendering/OpportunityDetail/Index?noticeUID=CO1.NTC.2773313&isFromPublicArea=True&isModal=False","Contratos de prestación de servicios profesionales y de apoyo a la gestión","Contratación directa","Prestación de servicios profesionales y de apoyo a la gestión, o para la ejecución de trabajos artísticos que sólo puedan encomendarse a determinadas personas naturales","El contrato que se pretende celebrar, tendrá por objeto PRESTAR SUS SERVICIOS COMO PERSONAL DE APOYO EN LA CONDUCCIÓN DEL VEHÍCULO DE PROPIEDAD DEL FONDO DE DESARROLLO LOCAL DE LOS MÁRTIRES, ASIGNADO A DESPACHO.","Inversión","Un nuevo contrato social y ambiental para la Bogotá del Siglo XXI",3,{"$f":"IF(ISERROR(VLOOKUP(K110,Proposito_programa!$C$2:$E$59,2,FALSE)),\" \",VLOOKUP(K110,Proposito_programa!$C$2:$E$59,2,FALSE))","v":"Movilidad social integral"},{"$f":"IF(ISERROR(VLOOKUP(K110,Proposito_programa!$C$2:$E$59,3,FALSE)),\" \",VLOOKUP(K110,Proposito_programa!$C$2:$E$59,3,FALSE))","v":"Propósito 1: Hacer un nuevo contrato social para incrementar la inclusión social, productiva y política"},"O23011605570000002099",0,9140998,"JHONY ENRIQUE RAMOS ALVAREZ","Persona Natural","N/A","N/A","N/A",2022,22330000,null,1,11165000,33495000,33495001,"2022-01-28","2022-01-31","2022-12-15","7 Meses",1,"1 mes",null,null,null,null,"Terminado",{"$f":"IF(ISERROR(AB110/AA110),\"-\",(AB110/AA110))","v":1.0000000298552023}]
["100-2022",2022,"FDLM-100-2022 (71255)","https://community.secop.gov.co/Public/Tendering/OpportunityDetail/Index?noticeUID=CO1.NTC.2792156&isFromPublicArea=True&isModal=False ","Contratos de prestación de servicios profesionales y de apoyo a la gestión","Contratación directa","Prestación de servicios profesionales y de apoyo a la gestión, o para la ejecución de trabajos artísticos que sólo puedan encomendarse a determinadas personas naturales","Prestar los servicios de apoyo administrativo que garanticen la adecuada gestión del equipo humano a cargo del proyecto 2060 de la vigencia fiscal 2022, así como el apoyo administrativo a la supervisión de los contratos suscritos con cargo a dicho proyecto para las vigencias fiscales 2021 y 2022","Inversión","Un nuevo contrato social y ambiental para la Bogotá del Siglo XXI",3,{"$f":"IF(ISERROR(VLOOKUP(K111,Proposito_programa!$C$2:$E$59,2,FALSE)),\" \",VLOOKUP(K111,Proposito_programa!$C$2:$E$59,2,FALSE))","v":"Movilidad social integral"},{"$f":"IF(ISERROR(VLOOKUP(K111,Proposito_programa!$C$2:$E$59,3,FALSE)),\" \",VLOOKUP(K111,Proposito_programa!$C$2:$E$59,3,FALSE))","v":"Propósito 1: Hacer un nuevo contrato social para incrementar la inclusión social, productiva y política"},"O23011601060000002060",0,80763598,"JOSÉ LUIS BLANCO AVENDAÑO","Persona Natural","N/A","N/A","N/A",2022,16800000,null,1,6500000,23300000,23300001,"2022-01-28","2022-02-01","2022-09-30","9 Meses",1,"1 mes",null,null,null,null,"Terminado",1.000000042918455]
["101-2022",2022,"FDLM-101-2022 (70052)","https://community.secop.gov.co/Public/Tendering/OpportunityDetail/Index?noticeUID=CO1.NTC.2791500&isFromPublicArea=True&isModal=False","Contratos de prestación de servicios profesionales y de apoyo a la gestión","Contratación directa","Prestación de servicios profesionales y de apoyo a la gestión, o para la ejecución de trabajos artísticos que sólo puedan encomendarse a determinadas personas naturales","PRESTAR SUS SERVICIOS PROFESIONALES PARA EL APOYO Y SEGUIMIENTO DE LOS PROYECTOS DE INVERSIÓN DE LA ALCALDÍA DE LOS MÁRTIRES RELACIONADAS CON EL SECTOR SALUD, EN CUMPLIMIENTO DEL PLAN DE DESARROLLO LOCAL VIGENTE.","Inversión","Un nuevo contrato social y ambiental para la Bogotá del Siglo XXI",3,{"$f":"IF(ISERROR(VLOOKUP(K112,Proposito_programa!$C$2:$E$59,2,FALSE)),\" \",VLOOKUP(K112,Proposito_programa!$C$2:$E$59,2,FALSE))","v":"Movilidad social integral"},{"$f":"IF(ISERROR(VLOOKUP(K112,Proposito_programa!$C$2:$E$59,3,FALSE)),\" \",VLOOKUP(K112,Proposito_programa!$C$2:$E$59,3,FALSE))","v":"Propósito 1: Hacer un nuevo contrato social para incrementar la inclusión social, productiva y política"},"O23011601060000002065",0,12592136,"JORGE ELIECER OROZCO SALAZAR","Persona Natural","N/A","N/A","N/A",2022,73700000,null,null,null,73700000,73700000,"2022-01-28","2022-02-02","2022-09-30","9 Meses",null,null,null,null,null,null,"Terminado",1]
["102-2022",2022,"FDLM-102-2022 (70119)","https://community.secop.gov.co/Public/Tendering/OpportunityDetail/Index?noticeUID=CO1.NTC.2791711&isFromPublicArea=True&isModal=False.","Contratos de prestación de servicios profesionales y de apoyo a la gestión","Contratación directa","Prestación de servicios profesionales y de apoyo a la gestión, o para la ejecución de trabajos artísticos que sólo puedan encomendarse a determinadas personas naturales","PRESTACIÓN DE SERVICIOS DE APOYO A LA GESTIÓN EN LA EJECUCIÓN DE LABORES ADMINISTRATIVAS DEL PROYECTO DE PREVENCIÓN DE VIOLENCIA INTRAFAMILIAR EN LA LOCALIDAD DE LOS MÁRTIRES","Inversión","Un nuevo contrato social y ambiental para la Bogotá del Siglo XXI",3,{"$f":"IF(ISERROR(VLOOKUP(K113,Proposito_programa!$C$2:$E$59,2,FALSE)),\" \",VLOOKUP(K113,Proposito_programa!$C$2:$E$59,2,FALSE))","v":"Movilidad social integral"},{"$f":"IF(ISERROR(VLOOKUP(K113,Proposito_programa!$C$2:$E$59,3,FALSE)),\" \",VLOOKUP(K113,Proposito_programa!$C$2:$E$59,3,FALSE))","v":"Propósito 1: Hacer un nuevo contrato social para incrementar la inclusión social, productiva y política"},"O23011601060000002077",0,79500442,"FABIO HERNAN RODRIGUEZ VALDERRAMA","Persona Natural","N/A","N/A","N/A",2022,15300000,null,null,null,15300000,15300000,"2022-01-28","2022-02-03","2022-10-30","9 Meses",null,null,null,null,null,null,"Terminado",1]
["103-2022",2022,"FDLM-103-2022 (67763)","https://community.secop.gov.co/Public/Tendering/OpportunityDetail/Index?noticeUID=CO1.NTC.2792741&isFromPublicArea=True&isModal=False ","Contratos de prestación de servicios profesionales y de apoyo a la gestión","Contratación directa","Prestación de servicios profesionales y de apoyo a la gestión, o para la ejecución de trabajos artísticos que sólo puedan encomendarse a determinadas personas naturales","PRESTAR SUS SERVICIOS PROFESIONALES DE APOYO EN LA FORMULACIÓN, EVALUACIÓN Y SEGUIMIENTO DE LAS INSTANCIAS DE PARTICIPACIÓN LOCALES, ASÍ COMO DE LOS PROYECTOS DE INVERSIÓN Y DEMÁS ACTIVIDADES RELACIONADAS CON EL ÁREA DE GESTIÓN DEL DESARROLLO LOCAL","Inversión","Un nuevo contrato social y ambiental para la Bogotá del Siglo XXI",3,{"$f":"IF(ISERROR(VLOOKUP(K114,Proposito_programa!$C$2:$E$59,2,FALSE)),\" \",VLOOKUP(K114,Proposito_programa!$C$2:$E$59,2,FALSE))","v":"Movilidad social integral"},{"$f":"IF(ISERROR(VLOOKUP(K114,Proposito_programa!$C$2:$E$59,3,FALSE)),\" \",VLOOKUP(K114,Proposito_programa!$C$2:$E$59,3,FALSE))","v":"Propósito 1: Hacer un nuevo contrato social para incrementar la inclusión social, productiva y política"},"O23011605570000002099",0,1033759343,"HILDA ALEXANDRA MORENO MURCIA","Persona Natural","N/A","N/A","N/A",2022,45000000,null,1,6500000,51500000,51500001,"2022-01-28","2022-02-01","2022-10-31","9 Meses",null,null,null,null,null,null,"Terminado",1.0000000194174756]
["104-2022",2022,"FDLM-104-2022 (70039) ","https://community.secop.gov.co/Public/Tendering/OpportunityDetail/Index?noticeUID=CO1.NTC.2791422&isFromPublicArea=True&isModal=False","Contratos de prestación de servicios profesionales y de apoyo a la gestión","Contratación directa","Prestación de servicios profesionales y de apoyo a la gestión, o para la ejecución de trabajos artísticos que sólo puedan encomendarse a determinadas personas naturales","PRESTAR LOS SERVICIOS PROFESIONALES PARA LA FORMULACIÓN PRE CONTRACTUAL PARTICIPATIVA, APOYO A LA SUPERVISIÓN, SEGUIMIENTO, ACOMPAÑAMIENTO, ATENCIÓN Y EVALUACIÓN DE LOS PROYECTOS E INSTANCIAS DE ARTICULACIÓN INTERINSTITUCIONAL Y PARTICIPACIÓN LOCAL QUE SE REQUIERAN EN EL PROYECTO 2077 TERRITORIOS DIVERSOS Y LIBRES DE VIOLENCIA.","Inversión","Un nuevo contrato social y ambiental para la Bogotá del Siglo XXI",3,{"$f":"IF(ISERROR(VLOOKUP(K115,Proposito_programa!$C$2:$E$59,2,FALSE)),\" \",VLOOKUP(K115,Proposito_programa!$C$2:$E$59,2,FALSE))","v":"Movilidad social integral"},{"$f":"IF(ISERROR(VLOOKUP(K115,Proposito_programa!$C$2:$E$59,3,FALSE)),\" \",VLOOKUP(K115,Proposito_programa!$C$2:$E$59,3,FALSE))","v":"Propósito 1: Hacer un nuevo contrato social para incrementar la inclusión social, productiva y política"},"O23011601060000002077",0,1022936092,"IVON LILIANA ROMERO PEÑALOZA","Persona Natural","N/A","N/A","N/A",2022,40950000,null,null,null,40950000,40950000,"2022-01-28","2022-10-31","2022-10-30","9 Meses",null,null,null,null,null,null,"Terminado",1]
["105-2022",2022,"FDLM-105-2022 (70039)","https://community.secop.gov.co/Public/Tendering/OpportunityDetail/Index?noticeUID=CO1.NTC.2792199&isFromPublicArea=True&isModal=False","Contratos de prestación de servicios profesionales y de apoyo a la gestión","Contratación directa","Prestación de servicios profesionales y de apoyo a la gestión, o para la ejecución de trabajos artísticos que sólo puedan encomendarse a determinadas personas naturales","PRESTAR LOS SERVICIOS PROFESIONALES PARA LA FORMULACIÓN PRE CONTRACTUAL PARTICIPATIVA, APOYO A LA SUPERVISIÓN, SEGUIMIENTO, ACOMPAÑAMIENTO, ATENCIÓN Y EVALUACIÓN DE LOS PROYECTOS E INSTANCIAS DE ARTICULACIÓN INTERINSTITUCIONAL Y PARTICIPACIÓN LOCAL QUE SE REQUIERAN EN EL PROYECTO 2077 TERRITORIOS DIVERSOS Y LIBRES DE VIOLENCIA.","Inversión","Un nuevo contrato social y ambiental para la Bogotá del Siglo XXI",3,{"$f":"IF(ISERROR(VLOOKUP(K116,Proposito_programa!$C$2:$E$59,2,FALSE)),\" \",VLOOKUP(K116,Proposito_programa!$C$2:$E$59,2,FALSE))","v":"Movilidad social integral"},{"$f":"IF(ISERROR(VLOOKUP(K116,Proposito_programa!$C$2:$E$59,3,FALSE)),\" \",VLOOKUP(K116,Proposito_programa!$C$2:$E$59,3,FALSE))","v":"Propósito 1: Hacer un nuevo contrato social para incrementar la inclusión social, productiva y política"},"O23011601060000002077",0,1012420698,"JESSICA MARIA MARTINEZ TIERRADENTRO","Persona Natural","N/A","N/A","N/A",2022,40950000,null,1,7680000,48630000,40950000,"2022-01-28","2022-02-01","2022-10-31","9 Meses",1,"1 MES",null,null,null,null,"En ejecución",0.84207279457125228]
["106-2022",2022,"FDLM-106-2022 (71104)","https://community.secop.gov.co/Public/Tendering/OpportunityDetail/Index?noticeUID=CO1.NTC.2793351&isFromPublicArea=True&isModal=False.","Contratos de prestación de servicios profesionales y de apoyo a la gestión","Contratación directa","Prestación de servicios profesionales y de apoyo a la gestión, o para la ejecución de trabajos artísticos que sólo puedan encomendarse a determinadas personas naturales","Prestar los servicios profesionales que garanticen la adecuada concertación de acciones para la estructuración del proceso precontractual y contractual relativos al proyecto 2056 de la vigencia fiscal 2022, así como el apoyo a la ejecución del contrato a través del cual se ejecuta la respectiva meta plan de desarrollo y objetivos del proyecto de inversión.","Inversión","Un nuevo contrato social y ambiental para la Bogotá del Siglo XXI",3,{"$f":"IF(ISERROR(VLOOKUP(K117,Proposito_programa!$C$2:$E$59,2,FALSE)),\" \",VLOOKUP(K117,Proposito_programa!$C$2:$E$59,2,FALSE))","v":"Movilidad social integral"},{"$f":"IF(ISERROR(VLOOKUP(K117,Proposito_programa!$C$2:$E$59,3,FALSE)),\" \",VLOOKUP(K117,Proposito_programa!$C$2:$E$59,3,FALSE))","v":"Propósito 1: Hacer un nuevo contrato social para incrementar la inclusión social, productiva y política"},"O23011601170000002056",0,1022338424,"DIANA PILAR PARADA ESPINOSA","Persona Natural","N/A","N/A","N/A",2022,36160000,null,null,null,36160000,{"$f":"+X117+Y117+AA117","v":36160000},"2022-01-28","2022-02-03","2022-09-08","8 Meses",null,null,null,null,null,null,"Terminado",1]
["107-2022",2022,"FDLM-107-2022 (67824)","https://community.secop.gov.co/Public/Tendering/OpportunityDetail/Index?noticeUID=CO1.NTC.2795585&isFromPublicArea=True&isModal=False","Contratos de prestación de servicios profesionales y de apoyo a la gestión","Contratación directa","Prestación de servicios profesionales y de apoyo a la gestión, o para la ejecución de trabajos artísticos que sólo puedan encomendarse a determinadas personas naturales","PRESTACIÓN DE SERVICIOS PROFESIONALES ESPECIALIZADOS PARA EL SEGUIMIENTO Y APOYO JURÍDICO DE LOS REQUERIMIENTOS QUE SEAN EFECTUADOS AL DESPACHO EN LA IMPLEMENTACIÓN DEL PLAN DE DESARROLLO LOCAL VIGENTE.","Inversión","Un nuevo contrato social y ambiental para la Bogotá del Siglo XXI",3,{"$f":"IF(ISERROR(VLOOKUP(K118,Proposito_programa!$C$2:$E$59,2,FALSE)),\" \",VLOOKUP(K118,Proposito_programa!$C$2:$E$59,2,FALSE))","v":"Movilidad social integral"},{"$f":"IF(ISERROR(VLOOKUP(K118,Proposito_programa!$C$2:$E$59,3,FALSE)),\" \",VLOOKUP(K118,Proposito_programa!$C$2:$E$59,3,FALSE))","v":"Propósito 1: Hacer un nuevo contrato social para incrementar la inclusión social, productiva y política"},"O23011605570000002099",0,1010201357,"JANNER MAURICIO RIVERA VELASQUEZ","Persona Natural","N/A","N/A","N/A",2022,65700000,null,1,6500000,72200000,65700000,"2022-01-28","2022-02-01","2022-10-31","8 Meses",null,null,null,null,null,null,"En ejecución",0.90997229916897504]
["108-2022",2022,"FDLM-108-2022 (71499)","https://community.secop.gov.co/Public/Tendering/OpportunityDetail/Index?noticeUID=CO1.NTC.2796312&isFromPublicArea=True&isModal=False","Contratos de prestación de servicios profesionales y de apoyo a la gestión","Contratación directa","Prestación de servicios profesionales y de apoyo a la gestión, o para la ejecución de trabajos artísticos que sólo puedan encomendarse a determinadas personas naturales","PRESTAR SUS SERVICIOS PROFESIONALES PARA APOYAR AL ALCALDE LOCAL EN LA PROMOCIÓN, ACOMPAÑAMIENTO, COORDINACIÓN Y ATENCIÓN DE LAS INSTANCIAS DE COORDINACIÓN INTERINSTITUCIONALES Y LAS INSTANCIAS DE PARTICIPACIÓN LOCALES, ASÍ COMO LOS PROCESO COMUNITARIOS EN LA LOCALIDAD, EN CUMPLIMIENTO DEL PLAN DE DESARROLLO LOCAL VIGENTE","Inversión","Un nuevo contrato social y ambiental para la Bogotá del Siglo XXI",3,{"$f":"IF(ISERROR(VLOOKUP(K119,Proposito_programa!$C$2:$E$59,2,FALSE)),\" \",VLOOKUP(K119,Proposito_programa!$C$2:$E$59,2,FALSE))","v":"Movilidad social integral"},{"$f":"IF(ISERROR(VLOOKUP(K119,Proposito_programa!$C$2:$E$59,3,FALSE)),\" \",VLOOKUP(K119,Proposito_programa!$C$2:$E$59,3,FALSE))","v":"Propósito 1: Hacer un nuevo contrato social para incrementar la inclusión social, productiva y política"},"O23011605570000002099",0,1019077615,"MARIA ANGELICA LOZANO SANCHEZ","Persona Natural","N/A","N/A","N/A",2022,41400000,null,null,null,41400000,{"$f":"+X119+Y119+AA119","v":41400000},"2022-01-28","2022-02-01","2022-10-31","9 Meses",null,null,null,null,null,null,"Terminado",1]
["109-2022",2022,"FDLM-109-2022 (70039)","https://community.secop.gov.co/Public/Tendering/OpportunityDetail/Index?noticeUID=CO1.NTC.2796721&isFromPublicArea=True&isModal=False","Contratos de prestación de servicios profesionales y de apoyo a la gestión","Contratación directa","Prestación de servicios profesionales y de apoyo a la gestión, o para la ejecución de trabajos artísticos que sólo puedan encomendarse a determinadas personas naturales","PRESTAR LOS SERVICIOS PROFESIONALES PARA LA FORMULACIÓN PRE CONTRACTUAL PARTICIPATIVA, APOYO A LA SUPERVISIÓN, SEGUIMIENTO, ACOMPAÑAMIENTO, ATENCIÓN Y EVALUACIÓN DE LOS PROYECTOS E INSTANCIAS DE ARTICULACIÓN INTERINSTITUCIONAL Y PARTICIPACIÓN LOCAL QUE SE REQUIERAN EN EL PROYECTO 2077 TERRITORIOS DIVERSOS Y LIBRES DE VIOLENCIA.","Inversión","Un nuevo contrato social y ambiental para la Bogotá del Siglo XXI",3,{"$f":"IF(ISERROR(VLOOKUP(K120,Proposito_programa!$C$2:$E$59,2,FALSE)),\" \",VLOOKUP(K120,Proposito_programa!$C$2:$E$59,2,FALSE))","v":"Movilidad social integral"},{"$f":"IF(ISERROR(VLOOKUP(K120,Proposito_programa!$C$2:$E$59,3,FALSE)),\" \",VLOOKUP(K120,Proposito_programa!$C$2:$E$59,3,FALSE))","v":"Propósito 1: Hacer un nuevo contrato social para incrementar la inclusión social, productiva y política"},"O23011601060000002077",0,1020767187,"NATALIA ANDREA PENAGOS BERMUDEZ","Persona Natural","N/A","N/A","N/A",2022,40950000,null,1,7680000,48630000,40950000,"2022-01-28","2022-02-04","2022-11-03","9 Meses",1,"1 MES",null,null,null,null,"En ejecución",0.84207279457125228]
["110-2022",2022,"FDLM-110-2022 (70575)","https://community.secop.gov.co/Public/Tendering/OpportunityDetail/Index?noticeUID=CO1.NTC.2795793&isFromPublicArea=True&isModal=False","Contratos de prestación de servicios profesionales y de apoyo a la gestión","Contratación directa","Prestación de servicios profesionales y de apoyo a la gestión, o para la ejecución de trabajos artísticos que sólo puedan encomendarse a determinadas personas naturales","El contrato que se pretende celebrar tendrá por objeto: Prestar los servicios profesionales que garanticen la labor de coordinación del proyecto 2060, que garantice la adecuada estructuración del proceso precontractual y contractual relativos al proyecto 2060 de la vigencia fiscal 2022, así como el apoyo a la ejecución del contrato a través del cual se ejecute la respectiva meta plan de desarrollo y objetivos del proyecto de inversión, y del contrato en ejecución vigencia fiscal 2021.","Inversión","Un nuevo contrato social y ambiental para la Bogotá del Siglo XXI",3,{"$f":"IF(ISERROR(VLOOKUP(K121,Proposito_programa!$C$2:$E$59,2,FALSE)),\" \",VLOOKUP(K121,Proposito_programa!$C$2:$E$59,2,FALSE))","v":"Movilidad social integral"},{"$f":"IF(ISERROR(VLOOKUP(K121,Proposito_programa!$C$2:$E$59,3,FALSE)),\" \",VLOOKUP(K121,Proposito_programa!$C$2:$E$59,3,FALSE))","v":"Propósito 1: Hacer un nuevo contrato social para incrementar la inclusión social, productiva y política"},"O23011601060000002060",0,1047462010,"MARIA JOSE CABARCAS CARDENAS","Persona Natural","N/A","N/A","N/A",2022,52800,null,1,19500000,19552800,{"$f":"+X121+Y121+AA121","v":19552801},"2022-01-28","2022-02-02","2022-10-01","8 Meses",null,null,null,null,null,null,"Terminado",1.0000000511435703]
["111-2022",2022,"FDLM-111-2022 (71492)","https://community.secop.gov.co/Public/Tendering/OpportunityDetail/Index?noticeUID=CO1.NTC.2795297&isFromPublicArea=True&isModal=False ","Contratos de prestación de servicios profesionales y de apoyo a la gestión","Contratación directa","Prestación de servicios profesionales y de apoyo a la gestión, o para la ejecución de trabajos artísticos que sólo puedan encomendarse a determinadas personas naturales","PRESTACION DE SERVICIOS PROFESIONALES AL FONDO DE DESARROLLO LOCAL DE LOS MARTIRES EN MATERIA DE CONTRATACION ESTATAL, EN CUMPLIMIENTO DEL PLAN DE DESARROLLO LOCAL VIGENTE","Inversión","Un nuevo contrato social y ambiental para la Bogotá del Siglo XXI",3,{"$f":"IF(ISERROR(VLOOKUP(K122,Proposito_programa!$C$2:$E$59,2,FALSE)),\" \",VLOOKUP(K122,Proposito_programa!$C$2:$E$59,2,FALSE))","v":"Movilidad social integral"},{"$f":"IF(ISERROR(VLOOKUP(K122,Proposito_programa!$C$2:$E$59,3,FALSE)),\" \",VLOOKUP(K122,Proposito_programa!$C$2:$E$59,3,FALSE))","v":"Propósito 1: Hacer un nuevo contrato social para incrementar la inclusión social, productiva y política"},"O23011605570000002099",0,1022944283,"JORGE LUIS LOMBANA SANCHEZ","Persona Natural","N/A","N/A","N/A",2022,46800000,null,null,null,46800000,{"$f":"+X122+Y122+AA122","v":46800000},"2022-01-28","2022-02-02","2022-11-01","9 Meses",null,null,null,null,null,null,"Terminado",1]
["112-2022",2022,"FDLM-112-2022 (71466)","https://community.secop.gov.co/Public/Tendering/OpportunityDetail/Index?noticeUID=CO1.NTC.2796609&isFromPublicArea=True&isModal=False ","Contratos de prestación de servicios profesionales y de apoyo a la gestión","Contratación directa","Prestación de servicios profesionales y de apoyo a la gestión, o para la ejecución de trabajos artísticos que sólo puedan encomendarse a determinadas personas naturales","APOYAR ADMINISTRATIVA Y ASISTENCIALMENTE AL DESPACHO DEL ALCALDE LOCAL DE LOS MARTIRES","Inversión","Un nuevo contrato social y ambiental para la Bogotá del Siglo XXI",3,{"$f":"IF(ISERROR(VLOOKUP(K123,Proposito_programa!$C$2:$E$59,2,FALSE)),\" \",VLOOKUP(K123,Proposito_programa!$C$2:$E$59,2,FALSE))","v":"Movilidad social integral"},{"$f":"IF(ISERROR(VLOOKUP(K123,Proposito_programa!$C$2:$E$59,3,FALSE)),\" \",VLOOKUP(K123,Proposito_programa!$C$2:$E$59,3,FALSE))","v":"Propósito 1: Hacer un nuevo contrato social para incrementar la inclusión social, productiva y política"},"O23011605570000002099",0,1010198750,"GLADYS MARYURI ORTEGA MARIN","Persona Natural","N/A","N/A","N/A",2022,29700000,null,1,19500000,49200000,{"$f":"+X123+Y123+AA123","v":49200001},"2022-01-28","2022-02-02","2022-11-01","9 Meses",null,null,null,null,null,null,"Terminado",1.0000000203252033]
["113-2022",2022,"FDLM-113-2022 (70065)","https://community.secop.gov.co/Public/Tendering/OpportunityDetail/Index?noticeUID=CO1.NTC.2795023&isFromPublicArea=True&isModal=False.","Contratos de prestación de servicios profesionales y de apoyo a la gestión","Contratación directa","Prestación de servicios profesionales y de apoyo a la gestión, o para la ejecución de trabajos artísticos que sólo puedan encomendarse a determinadas personas naturales","APOYAR LA FORMULACIÓN, GESTIÓN Y SEGUIMIENTO DE ACTIVIDADES ENFOCADAS A LA GESTIÓN AMBIENTAL EXTERNA, ENCAMINADAS A LA MITIGACIÓN DE LOS DIFERENTES IMPACTOS AMBIENTALES Y LA CONSERVACIÓN DE LOS RECURSOS NATURALES DE LA LOCALIDAD.","Inversión","Un nuevo contrato social y ambiental para la Bogotá del Siglo XXI",3,{"$f":"IF(ISERROR(VLOOKUP(K124,Proposito_programa!$C$2:$E$59,2,FALSE)),\" \",VLOOKUP(K124,Proposito_programa!$C$2:$E$59,2,FALSE))","v":"Movilidad social integral"},{"$f":"IF(ISERROR(VLOOKUP(K124,Proposito_programa!$C$2:$E$59,3,FALSE)),\" \",VLOOKUP(K124,Proposito_programa!$C$2:$E$59,3,FALSE))","v":"Propósito 1: Hacer un nuevo contrato social para incrementar la inclusión social, productiva y política"},"O23011605570000002099",0,52796567,"YENIFER ZORAIDA VALDERRAMA VILLALOBOS","Persona Natural","N/A","N/A","N/A",2022,44100000,null,null,null,44100000,{"$f":"+X124+Y124+AA124","v":44100000},"2022-01-28","2022-02-01","2022-10-31","9 Meses",null,null,null,null,null,null,"Terminado",1]
["114-2022",2022,"FDLM-SABMC-001-2022","https://community.secop.gov.co/Public/Tendering/OpportunityDetail/Index?noticeUID=CO1.NTC.2843953&isFromPublicArea=True&isModal=False","Contratos de prestación de servicios","Contratación directa","Prestación de servicios profesionales y de apoyo a la gestión, o para la ejecución de trabajos artísticos que sólo puedan encomendarse a determinadas personas naturales","LA PRESTACIÓN DEL SERVICIO DE VIGILANCIA Y SEGURIDAD PRIVADA INCLUIDO MEDIOS TECNOLOGICOS, PARA LOS PREDIOS DE PROPIEDAD Y/O TENENCIA DE LA ALCALDÍA LOCAL DE LOS MÁRTIRES, DE CONFORMIDAD CON LAS ESPECIFICACIONES ESTABLECIDAS EN EL DOCUMENTO DE CONDICIONES ESPECIALES, SEGÚN EL PROCEDIMIENTO ESTABLECIDO EN EL REGLAMENTO DE FUNCIONAMIENTO Y OPERACIÓN DE LA BOLSA PARA EL MERCADO DE COMPRAS PÚBLICAS - MCP- DE LA BOLSA MERCANTIL DE COLOMBIA S.A.","Inversión","Un nuevo contrato social y ambiental para la Bogotá del Siglo XXI",3,{"$f":"IF(ISERROR(VLOOKUP(K125,Proposito_programa!$C$2:$E$59,2,FALSE)),\" \",VLOOKUP(K125,Proposito_programa!$C$2:$E$59,2,FALSE))","v":"Movilidad social integral"},{"$f":"IF(ISERROR(VLOOKUP(K125,Proposito_programa!$C$2:$E$59,3,FALSE)),\" \",VLOOKUP(K125,Proposito_programa!$C$2:$E$59,3,FALSE))","v":"Propósito 1: Hacer un nuevo contrato social para incrementar la inclusión social, productiva y política"},"O21202020080585250",0,8050008679,"CORREAGRO S.A","Persona Jurídica","N/A","N/A","N/A",2022,258491623,null,1,99955648,358447271,258491623,"2022-03-09","2022-03-10","2022-11-24","8 meses y 15 dias",1,"01 mes y 10 dias",null,null,null,null,"En ejecución",0.72114267261362408]
["115-2022",2022,"FDLM-MC-001-2022 ","https://community.secop.gov.co/Public/Tendering/OpportunityDetail/Index?noticeUID=CO1.NTC.2931702&isFromPublicArea=True&isModal=False","Contratos de prestación de servicios","Selección abreviada","Selección abreviada por menor cuantía ","Contratar los servicios logísticos para la realización de la audiencia pública de rendición de cuentas de la vigencia 2021 para la localidad de Los Mártires","Inversión","Un nuevo contrato social y ambiental para la Bogotá del Siglo XXI",3,{"$f":"IF(ISERROR(VLOOKUP(K126,Proposito_programa!$C$2:$E$59,2,FALSE)),\" \",VLOOKUP(K126,Proposito_programa!$C$2:$E$59,2,FALSE))","v":"Movilidad social integral"},{"$f":"IF(ISERROR(VLOOKUP(K126,Proposito_programa!$C$2:$E$59,3,FALSE)),\" \",VLOOKUP(K126,Proposito_programa!$C$2:$E$59,3,FALSE))","v":"Propósito 1: Hacer un nuevo contrato social para incrementar la inclusión social, productiva y política"},"O23011605570000002099",0,"900300970-1","INDUHOTEL","Persona Jurídica","N/A","N/A","N/A",2022,9478360,null,null,null,9478360,null,"2022-05-12","2022-05-13","2022-06-12","30 dias",null,null,null,null,null,null,"En ejecución",0]
["116-2022",2022,"FDLM-MC-002-2022"," https://community.secop.gov.co/Public/Tendering/OpportunityDetail/Index?noticeUID=CO1.NTC.2962216&isFromPublicArea=True&isModal=False","Contratos de prestación de servicios","Contratación directa","Selección abreviada por menor cuantía ","CONTRATAR EL SEGURO DE VIDA PARA LOS EDILES DEL FONDO DE DESARROLLO LOCAL DE MÁRTIRES","Inversión","Un nuevo contrato social y ambiental para la Bogotá del Siglo XXI",3,{"$f":"IF(ISERROR(VLOOKUP(K127,Proposito_programa!$C$2:$E$59,2,FALSE)),\" \",VLOOKUP(K127,Proposito_programa!$C$2:$E$59,2,FALSE))","v":"Movilidad social integral"},{"$f":"IF(ISERROR(VLOOKUP(K127,Proposito_programa!$C$2:$E$59,3,FALSE)),\" \",VLOOKUP(K127,Proposito_programa!$C$2:$E$59,3,FALSE))","v":"Propósito 1: Hacer un nuevo contrato social para incrementar la inclusión social, productiva y política"},"O212020200701030571358",0,860037013,"COMPAÑIA MUNDIAL DE SEGUROS S.A.\n\n","Persona Jurídica","N/A","N/A","N/A",2022,5019000,null,null,null,5019000,null,"2022-06-16","2022-06-17","2023-06-17","365 dias",null,null,null,null,null,null,"En ejecución",0]
["117-2022",2022,"FDLM-MC-003-2022","https://community.secop.gov.co/Public/Tendering/OpportunityDetail/Index?noticeUID=CO1.NTC.2989329&isFromPublicArea=True&isModal=False\n","Contratos de prestación de servicios","Selección abreviada","Selección abreviada por menor cuantía ","CONTRATAR LOS SERVICIOS DE COPIA Y REPRODUCCIÓN DE DOCUMENTOS, FOTOGRAMAS Y PIEZAS QUE SE REQUIERAN PARA EL MANTENIMIENTO DEL ARCHIVO DE LA ENTIDAD ","Inversión","Un nuevo contrato social y ambiental para la Bogotá del Siglo XXI",3,{"$f":"IF(ISERROR(VLOOKUP(K128,Proposito_programa!$C$2:$E$59,2,FALSE)),\" \",VLOOKUP(K128,Proposito_programa!$C$2:$E$59,2,FALSE))","v":"Movilidad social integral"},{"$f":"IF(ISERROR(VLOOKUP(K128,Proposito_programa!$C$2:$E$59,3,FALSE)),\" \",VLOOKUP(K128,Proposito_programa!$C$2:$E$59,3,FALSE))","v":"Propósito 1: Hacer un nuevo contrato social para incrementar la inclusión social, productiva y política"},"O21202020080585951 ",0," 830031976-7","COPIERS MARKET EU  ","Persona Jurídica","N/A","N/A","N/A",2022,16993200,null,null,null,16993200,null,"2022-07-12","2022-07-15","2023-02-14","7 Meses",null,null,null,null,null,null,"En ejecución",0]
["118-2022",2022,"FDLM-114-2022 (73766)","https://community.secop.gov.co/Public/Tendering/OpportunityDetail/Index?noticeUID=CO1.NTC.3049308&isFromPublicArea=True&isModal=False\n","Contratos de prestación de servicios profesionales y de apoyo a la gestión","Contratación directa","Prestación de servicios profesionales y de apoyo a la gestión, o para la ejecución de trabajos artísticos que sólo puedan encomendarse a determinadas personas naturales","PRESTAR LOS SERVICIOS PROFESIONALES ADMINISTRATIVOS AL FONDO DE DESARROLLO LOCAL EN EL FORTALECIMIENTO DE LAS ETAPAS DE LA GESTION PUBLICA CONTRACTUAL, EN CUMPLIMIENTO DEL PLAN DE DESARROLLO LOCAL VIGENTE","Inversión","Un nuevo contrato social y ambiental para la Bogotá del Siglo XXI",3,{"$f":"IF(ISERROR(VLOOKUP(K129,Proposito_programa!$C$2:$E$59,2,FALSE)),\" \",VLOOKUP(K129,Proposito_programa!$C$2:$E$59,2,FALSE))","v":"Movilidad social integral"},{"$f":"IF(ISERROR(VLOOKUP(K129,Proposito_programa!$C$2:$E$59,3,FALSE)),\" \",VLOOKUP(K129,Proposito_programa!$C$2:$E$59,3,FALSE))","v":"Propósito 1: Hacer un nuevo contrato social para incrementar la inclusión social, productiva y política"},"O23011605570000002099",0,9147584,"JORGE ALBEIRO CONTRERAS ROJAS","Persona Natural","N/A","N/A","N/A",2022,29700000,null,null,null,29700000,null,"2022-07-18","2022-07-19","2022-12-30","5 meses y 12 Dias",null,null,null,null,null,null,"En ejecución",0]
["119-2022",2022,"FDLM-MC-005-2022 (73464)","https://community.secop.gov.co/Public/Tendering/OpportunityDetail/Index?noticeUID=CO1.NTC.2962216&isFromPublicArea=True&isModal=False","Contratos de prestación de servicios","Selección abreviada","Selección abreviada por menor cuantía ","SUMINISTRO DE ELEMENTOS DE PAPELERÍA Y ÚTILES DE OFICINA PARA ATENDER LAS NECESIDADES DE LOS DIFERENTES GRUPOS DE TRABAJO QUE CONFORMAN LA ALCALDÍA LOCAL DE LOS MARTIRES, A MONTO AGOTABLE Y PRECIOS UNITARIOS CONFORME LA PROPUESTA PRESENTADA Y LAS CARACTERÍSTICAS Y ESPECIFICACIONES SEÑALADAS EN LOS ESTUDIOS PREVIOS Y ANEXO TECNICO”.","Inversión","Un nuevo contrato social y ambiental para la Bogotá del Siglo XXI",3,{"$f":"IF(ISERROR(VLOOKUP(K130,Proposito_programa!$C$2:$E$59,2,FALSE)),\" \",VLOOKUP(K130,Proposito_programa!$C$2:$E$59,2,FALSE))","v":"Movilidad social integral"},{"$f":"IF(ISERROR(VLOOKUP(K130,Proposito_programa!$C$2:$E$59,3,FALSE)),\" \",VLOOKUP(K130,Proposito_programa!$C$2:$E$59,3,FALSE))","v":"Propósito 1: Hacer un nuevo contrato social para incrementar la inclusión social, productiva y política"},"O212020200701030571358",0,901472025,"DISTRIBUCIONES ANDAQUI SAS","Persona Jurídica","N/A","N/A","N/A",2022,20000000,null,null,null,20000000,{"$f":"+X130+Y130+AA130","v":20000000},"2022-07-26","2022-07-27","2022-12-31","157 dias",null,null,null,null,null,null,"Terminado",1]
["120-2022",2022,"FDLM-120-2022 (74626)","https://community.secop.gov.co/Public/Tendering/OpportunityDetail/Index?noticeUID=CO1.NTC.3083732&isFromPublicArea=True&isModal=False\n","Contratos de prestación de servicios profesionales y de apoyo a la gestión","Contratación directa","Prestación de servicios profesionales y de apoyo a la gestión, o para la ejecución de trabajos artísticos que sólo puedan encomendarse a determinadas personas naturales","“ENTREGAR AL FONDO DE DESARROLLO LOCAL DE LOS MÁRTIRES A TUTULO DE ARRENDAMIENTO, EL USO Y GOCE DEL INMUEBLE UBICADO EN EL PISO 6 TORRE PARQUEADEROS DEL CENTRO COMERCIAL MALL PLAZA, PARA EL FUNCIONAMIENTO DE LA SEDE ADMINISTRATIVA DE LA ALCALDÍA LOCAL.” ","Inversión","Un nuevo contrato social y ambiental para la Bogotá del Siglo XXI",3,{"$f":"IF(ISERROR(VLOOKUP(K131,Proposito_programa!$C$2:$E$59,2,FALSE)),\" \",VLOOKUP(K131,Proposito_programa!$C$2:$E$59,2,FALSE))","v":"Movilidad social integral"},{"$f":"IF(ISERROR(VLOOKUP(K131,Proposito_programa!$C$2:$E$59,3,FALSE)),\" \",VLOOKUP(K131,Proposito_programa!$C$2:$E$59,3,FALSE))","v":"Propósito 1: Hacer un nuevo contrato social para incrementar la inclusión social, productiva y política"},"O21202020070272112 ",0,"901120943-3","MALLPLAZA SERVICIOS SAS","Persona Jurídica","N/A","N/A","N/A",2022,228386901,null,null,null,228386901,null,"2022-07-29","2022-08-02","2023-02-14","6 Meses y 14 dias",null,null,null,null,null,null,"En ejecución",0]
["121-2022",2022,"FDLM-CD-004-2022 (75511)","https://community.secop.gov.co/Public/Tendering/OpportunityDetail/Index?noticeUID=CO1.NTC.3166289&isFromPublicArea=True&isModal=False\n","Contratos de prestación de servicios profesionales y de apoyo a la gestión","Contratación directa","Prestación de servicios profesionales y de apoyo a la gestión, o para la ejecución de trabajos artísticos que sólo puedan encomendarse a determinadas personas naturales","REALIZAR EL MANTENIMIENTO PREVENTIVO Y CORRECTIVO DEL ASCENSOR No.11023110 MARCA SCHINDLER 3300, LOCALIZADO EN LA EDIFICACIÓN DEL SALÓN COMUNAL SANTAFÉ, EN LA CARRERA 18 BIS N 23 -30 DE PROPIEDAD DEL FDLM","Funcionamiento","Un nuevo contrato social y ambiental para la Bogotá del Siglo XXI","No aplica",{"$f":"IF(ISERROR(VLOOKUP(K132,Proposito_programa!$C$2:$E$59,2,FALSE)),\" \",VLOOKUP(K132,Proposito_programa!$C$2:$E$59,2,FALSE))","v":" "},{"$f":"IF(ISERROR(VLOOKUP(K132,Proposito_programa!$C$2:$E$59,3,FALSE)),\" \",VLOOKUP(K132,Proposito_programa!$C$2:$E$59,3,FALSE))","v":" "},"O2120202008078715701",0,860005289,"ASCENSORES SCHINDLER DE COLOMBIA SAS","Persona Jurídica","N/A","N/A","N/A",2022,8000000,null,null,null,8000000,null,"2022-08-18","2022-08-30","2023-09-01","1 AÑO",null,null,null,null,null,null,"En ejecución",0]
["122-2022",2022,"FDLM-CD-005-2022 (76318)","https://community.secop.gov.co/Public/Tendering/OpportunityDetail/Index?noticeUID=CO1.NTC.3224894&isFromPublicArea=True&isModal=False\n","Contratos de prestación de servicios profesionales y de apoyo a la gestión","Contratación directa","Prestación de servicios profesionales y de apoyo a la gestión, o para la ejecución de trabajos artísticos que sólo puedan encomendarse a determinadas personas naturales","CONTRATAR EL ARRENDAMIENTO DE UN BIEN INMUEBLE (BODEGA) PARA EL ALMACENAMIENTO Y SALVAGUARDA DE LOS BIENES DE PROPIEDAD DEL FONDO DE DESARROLLO LOCAL DE LOS MÁRTIRES; Y AQUELLOS QUE LLEGASE A SER LEGALMENTE RESPONSABLE.","Funcionamiento","Un nuevo contrato social y ambiental para la Bogotá del Siglo XXI","No aplica",{"$f":"IF(ISERROR(VLOOKUP(K133,Proposito_programa!$C$2:$E$59,2,FALSE)),\" \",VLOOKUP(K133,Proposito_programa!$C$2:$E$59,2,FALSE))","v":" "},{"$f":"IF(ISERROR(VLOOKUP(K133,Proposito_programa!$C$2:$E$59,3,FALSE)),\" \",VLOOKUP(K133,Proposito_programa!$C$2:$E$59,3,FALSE))","v":" "},"O21202020070272112",0,21527954,"JULIANA ZAPATA ZULUETA","Persona Jurídica","N/A","N/A","N/A",2022,47031000,null,null,null,47031000,null,"2022-08-30","2022-09-02","2023-03-04","183 dias",null,null,null,null,null,null,"En ejecución",0]
["123-2022",2022,"FDLM-LP-001-2022","https://community.secop.gov.co/Public/Tendering/OpportunityDetail/Index?noticeUID=CO1.NTC.3020873&isFromPublicArea=True&isModal=False\n","Obra pública","Licitación pública","No aplica","CONTRATAR A PRECIOS UNITARIOS FIJOS POR LA MODALIDAD DE MONTO AGOTABLE, LAS OBRAS Y ACTIVIDADES PARA LA CONSERVACIÓN DE LA MALLA VIAL, ESPACIO PUBLICO Y CICLO-INFRAESTRUCTURA DE LA LOCALIDAD DE LOS MARTIRES","Funcionamiento","Un nuevo contrato social y ambiental para la Bogotá del Siglo XXI","No aplica",{"$f":"IF(ISERROR(VLOOKUP(K134,Proposito_programa!$C$2:$E$59,2,FALSE)),\" \",VLOOKUP(K134,Proposito_programa!$C$2:$E$59,2,FALSE))","v":" "},{"$f":"IF(ISERROR(VLOOKUP(K134,Proposito_programa!$C$2:$E$59,3,FALSE)),\" \",VLOOKUP(K134,Proposito_programa!$C$2:$E$59,3,FALSE))","v":" "},"O23011604490000002097",0,"901154986-6","CONSORCIO VIAS 2022","Consorcio","N/A","CONSORCIO VIAS 2022",0.3,2022,3759254100,null,null,null,3759254100,null,"2022-08-29","2022-08-30","2023-05-31","8 Meses",null,null,null,null,null,null,"En ejecución",0]
["124-2022",2022,"FDLM-115-2022 (75588)","https://community.secop.gov.co/Public/Tendering/OpportunityDetail/Index?noticeUID=CO1.NTC.3271228&isFromPublicArea=True&isModal=False","Contratos de prestación de servicios profesionales y de apoyo a la gestión","Contratación directa","Prestación de servicios profesionales y de apoyo a la gestión, o para la ejecución de trabajos artísticos que sólo puedan encomendarse a determinadas personas naturales","PRESTAR LOS SERVICIOS PROFESIONALES PARA LA FORMULACIÓN PRE CONTRACTUAL PARTICIPATIVA, APOYO A LA SUPERVISIÓN, SEGUIMIENTO, ACOMPAÑAMIENTO, ATENCIÓN Y EVALUACIÓN DE LOS PROYECTOS E INSTANCIAS DE ARTICULACIÓN INTERINSTITUCIONAL Y PARTICIPACIÓN LOCAL QUE SE REQUIERAN EN EL PROYECTO 2077 TERRITORIOS DIVERSOS Y LIBRES DE VIOLENCI","Inversión","Un nuevo contrato social y ambiental para la Bogotá del Siglo XXI",3,{"$f":"IF(ISERROR(VLOOKUP(K135,Proposito_programa!$C$2:$E$59,2,FALSE)),\" \",VLOOKUP(K135,Proposito_programa!$C$2:$E$59,2,FALSE))","v":"Movilidad social integral"},{"$f":"IF(ISERROR(VLOOKUP(K135,Proposito_programa!$C$2:$E$59,3,FALSE)),\" \",VLOOKUP(K135,Proposito_programa!$C$2:$E$59,3,FALSE))","v":"Propósito 1: Hacer un nuevo contrato social para incrementar la inclusión social, productiva y política"},"O23011601060000002077",0,52543513,"CAROL BEATRIZ RODRIGUEZ CANO","Persona Natural","N/A","N/A","N/A",2022,18200000,null,null,null,18200000,null,"2022-09-13","2022-09-14","2023-01-12","4 meses",null,null,null,null,null,null,"En ejecución",0]
["125-2022",2022,"FDLM-CD-006-2022 (77403)","https://community.secop.gov.co/Public/Tendering/OpportunityDetail/Index?noticeUID=CO1.NTC.3284738&isFromPublicArea=True&isModal=False","Contratos de prestación de servicios profesionales y de apoyo a la gestión","Contratación directa","Prestación de servicios profesionales y de apoyo a la gestión, o para la ejecución de trabajos artísticos que sólo puedan encomendarse a determinadas personas naturales","AUNAR ESFUERZOS TÉCNICOS, ADMINISTRATIVOS, JURÍDICOS Y FINANCIEROS ENTRE LA AGENCIA DISTRITAL PARA LA EDUCACIÓN SUPERIOR, LA CIENCIA Y LA TECNOLOGÍA - ATENEA Y EL FONDO DE DESARROLLO LOCAL DE LOS MÁRTIRES PARA LA IMPLEMENTACIÓN DE UN NUEVO MODELO INCLUSIVO, EFICIENTE Y FLEXIBLE PARA EL ACCESO Y LA PERMANENCIA DE LAS Y LOS JÓVENES EGRESADOS DE INSTITUCIONES DE EDUCACIÓN MEDIA A PROGRAMAS DE EDUCACIÓN SUPERIOR Y POSMEDIA","Funcionamiento","Un nuevo contrato social y ambiental para la Bogotá del Siglo XXI","No aplica",{"$f":"IF(ISERROR(VLOOKUP(K136,Proposito_programa!$C$2:$E$59,2,FALSE)),\" \",VLOOKUP(K136,Proposito_programa!$C$2:$E$59,2,FALSE))","v":" "},{"$f":"IF(ISERROR(VLOOKUP(K136,Proposito_programa!$C$2:$E$59,3,FALSE)),\" \",VLOOKUP(K136,Proposito_programa!$C$2:$E$59,3,FALSE))","v":" "}," O23011601170000002056 ",0,"901508361-4 ","AGENCIA DE EDUCACIÓN SUPERIOR, CIENCIA Y TECNOLOGÍA – ATENEA","Persona Jurídica","N/A","N/A","N/A",2022,1320513000,null,null,null,1320513000,null,"2022-09-15","2022-09-20","2029-12-31","7 años",null,null,null,null,null,null,"En ejecución",0]
["126-2022",2022,"FDLM-MC-006-2022 (75170)","https://community.secop.gov.co/Public/Tendering/OpportunityDetail/Index?noticeUID=CO1.NTC.3220248&isFromPublicArea=True&isModal=False","Contratos de prestación de servicios","Selección abreviada","Selección abreviada por menor cuantía ","CONTRATAR A PRECIOS UNITARIOS FIJOS POR LA MODALIDAD DE MONTO AGOTABLE LOS SERVICIOS PARA LA CONSTRUCCIÓN DE ACCIONES DE PREVENCIÓN DE VIOLENCIA INTRAFAMILIAR Y/O VIOLENCIA SEXUAL, PROYECTO 2077, VIGENCIA 2022","Funcionamiento","Un nuevo contrato social y ambiental para la Bogotá del Siglo XXI","No aplica",{"$f":"IF(ISERROR(VLOOKUP(K137,Proposito_programa!$C$2:$E$59,2,FALSE)),\" \",VLOOKUP(K137,Proposito_programa!$C$2:$E$59,2,FALSE))","v":" "},{"$f":"IF(ISERROR(VLOOKUP(K137,Proposito_programa!$C$2:$E$59,3,FALSE)),\" \",VLOOKUP(K137,Proposito_programa!$C$2:$E$59,3,FALSE))","v":" "},"O23011601060000002077",0,901610739,"AVANZA LOGISTICA Y SERVICIOS SAS","Persona Jurídica","N/A","N/A","N/A",2022,21562965,null,null,null,21562965,null,"2022-09-15","2022-09-26","2023-02-15","5 meses",null,null,null,null,null,null,"En ejecución",0]
["127-2022",2022,"FDLM-116-2022 (76825)","https://community.secop.gov.co/Public/Tendering/OpportunityDetail/Index?noticeUID=CO1.NTC.3330828&isFromPublicArea=True&isModal=False\n","Contratos de prestación de servicios profesionales y de apoyo a la gestión","Contratación directa","Prestación de servicios profesionales y de apoyo a la gestión, o para la ejecución de trabajos artísticos que sólo puedan encomendarse a determinadas personas naturales","CONTRATAR LA PRESTACIÓN DE SERVICIOS PROFESIONALES PARA\nLIDERAR LA EJECUCIÓN DEL PROYECTO 2077 DE PREVENCIÓN DE\nVIOLENCIA INTRAFAMILIAR, VIOLENCIA SEXUAL EN EL CONTEXTO\nFAMILIAR Y PROMOCIÓN DEL BUEN TRATO Y ENTORNO PROTECTORES PARA POBLACIONES EN SITUACIÓN DE RIESGO EN CUMPLIMIENTO DEL PLAN DE DESARROLLO LOCAL","Inversión","Un nuevo contrato social y ambiental para la Bogotá del Siglo XXI",3,{"$f":"IF(ISERROR(VLOOKUP(K138,Proposito_programa!$C$2:$E$59,2,FALSE)),\" \",VLOOKUP(K138,Proposito_programa!$C$2:$E$59,2,FALSE))","v":"Movilidad social integral"},{"$f":"IF(ISERROR(VLOOKUP(K138,Proposito_programa!$C$2:$E$59,3,FALSE)),\" \",VLOOKUP(K138,Proposito_programa!$C$2:$E$59,3,FALSE))","v":"Propósito 1: Hacer un nuevo contrato social para incrementar la inclusión social, productiva y política"},"O23011601060000002077",0,1026283969,"LEIDY CAROLINA MORENO HURTADO","Persona Natural","N/A","N/A","N/A",2022,24860000,null,null,null,24860000,null," 27/09/2022","2022-09-28","2023-01-20","3 meses y 23 dias",null,null,null,null,null,null,"En ejecución",0]
["128-2022",2022,"FDLM-117-2022 (77098)","https://community.secop.gov.co/Public/Tendering/OpportunityDetail/Index?noticeUID=CO1.NTC.3340746&isFromPublicArea=True&isModal=False\n","Contratos de prestación de servicios profesionales y de apoyo a la gestión","Contratación directa","Prestación de servicios profesionales y de apoyo a la gestión, o para la ejecución de trabajos artísticos que sólo puedan encomendarse a determinadas personas naturales","PRESTAR SUS SERVICIOS PROFESIONALES PARA APOYAR JURÍDICAMENTE LA EJECUCIÓN DE LAS ACCIONES REQUERIDAS PARA LA DEPURACIÓN DE LAS ACTUACIONES ADMINISTRATIVAS QUE CURSAN EN LA ALCALDÍA LOCAL DE LOS MÁRTIRES","Inversión","Un nuevo contrato social y ambiental para la Bogotá del Siglo XXI",3,{"$f":"IF(ISERROR(VLOOKUP(K139,Proposito_programa!$C$2:$E$59,2,FALSE)),\" \",VLOOKUP(K139,Proposito_programa!$C$2:$E$59,2,FALSE))","v":"Movilidad social integral"},{"$f":"IF(ISERROR(VLOOKUP(K139,Proposito_programa!$C$2:$E$59,3,FALSE)),\" \",VLOOKUP(K139,Proposito_programa!$C$2:$E$59,3,FALSE))","v":"Propósito 1: Hacer un nuevo contrato social para incrementar la inclusión social, productiva y política"},"O23011605570000002099 ",0,1007539578,"JUAN PABLO TORRES ALVAREZ","Persona Natural","N/A","N/A","N/A",2022,13650000,null,null,null,{"$f":"+W139+X139+Z139","v":13650000},null," 29/09/2022 ","2022-09-30","2022-12-29","3 meses ",null,null,null,null,null,null,"En ejecución",0]
["129-2022",2022,"FDLM-CD-007-2022 (78620)","https://community.secop.gov.co/Public/Tendering/OpportunityDetail/Index?noticeUID=CO1.NTC.3373947&isFromPublicArea=True&isModal=False\n","Contratos de prestación de servicios profesionales y de apoyo a la gestión","Contratación directa","Prestación de servicios profesionales y de apoyo a la gestión, o para la ejecución de trabajos artísticos que sólo puedan encomendarse a determinadas personas naturales","PRESTAR LOS SERVICIOS DE CORREO CERTIFICADO Y APOYO A LA OPOERACION DEL CENTRO DE DOCUMENTACION E INFORMACION (CDI) DE LA ALCALDIA LOCAL DE LOS MARTIRES EN SU SEDE PRINCIPAL, INSPECCIONES DE POLICIA Y DEMAS QUE LLEGUEN A REQUERIR DURAN CON LA EJECUCION, QUECION CURSO Y ENTREGA DE CORRESPONDENCIA TANTO INTERNA COMO EXTERNA.","Funcionamiento","Un nuevo contrato social y ambiental para la Bogotá del Siglo XXI","No aplica",{"$f":"IF(ISERROR(VLOOKUP(K140,Proposito_programa!$C$2:$E$59,2,FALSE)),\" \",VLOOKUP(K140,Proposito_programa!$C$2:$E$59,2,FALSE))","v":" "},{"$f":"IF(ISERROR(VLOOKUP(K140,Proposito_programa!$C$2:$E$59,3,FALSE)),\" \",VLOOKUP(K140,Proposito_programa!$C$2:$E$59,3,FALSE))","v":" "},"O21202020060868030 ",0,"900062917-9","SERVICIOS POSTALES NACIONALES S.A.S","Persona Jurídica","N/A","N/A","N/A",2022,45194866,null,null,null,45194866,null,"2022-10-19","2023-01-24","2023-01-24","3 meses ",null,null,null,null,null,null,"En ejecución",0]
["130-2022",2022,"FDLM-SAMC-002-2022 (74622)","https://community.secop.gov.co/Public/Tendering/OpportunityDetail/Index?noticeUID=CO1.NTC.3252081&isFromPublicArea=True&isModal=False\n","Contratos de prestación de servicios","Selección abreviada","Selección abreviada por menor cuantía ","PRESTAR LOS SERVICIOS PARA REALIZAR EL LEVANTAMIENTO TOPOGRÁFICO, ARQUITECTÓNICO Y LOS ENSAYOS DE LABORATORIO A LA EDIFICACIÓN UBICADA EN CARRERA 26 #1F - 05, CONFORME LA NORMATIVA VIGENTE, EN CUMPLIMIENTO DEL PLAN DE DESARROLLO VIGENTE.","Inversión","Un nuevo contrato social y ambiental para la Bogotá del Siglo XXI",3,{"$f":"IF(ISERROR(VLOOKUP(K141,Proposito_programa!$C$2:$E$59,2,FALSE)),\" \",VLOOKUP(K141,Proposito_programa!$C$2:$E$59,2,FALSE))","v":"Movilidad social integral"},{"$f":"IF(ISERROR(VLOOKUP(K141,Proposito_programa!$C$2:$E$59,3,FALSE)),\" \",VLOOKUP(K141,Proposito_programa!$C$2:$E$59,3,FALSE))","v":"Propósito 1: Hacer un nuevo contrato social para incrementar la inclusión social, productiva y política"},"O23011601210000002070 ",0,9273808,"RAFAEL ARÍSTIDES DÍAZ PIÑERES","Persona Natural","N/A","N/A","N/A",2022,59362732,null,null,null,59362732,null,"2022-10-05","2022-10-09","2023-12-12","2 meses ",null,null,null,null,null,null,"En ejecución",0]
["131-2022",2022,"FDLM-118-2022 (76056)","https://community.secop.gov.co/Public/Tendering/OpportunityDetail/Index?noticeUID=CO1.NTC.3377800&isFromPublicArea=True&isModal=False","Contratos de prestación de servicios profesionales y de apoyo a la gestión","Contratación directa","Prestación de servicios profesionales y de apoyo a la gestión, o para la ejecución de trabajos artísticos que sólo puedan encomendarse a determinadas personas naturales","PRESTAR LOS SERVICIOS DE APOYO A LA GESTIÓN AL GRUPO DE PRENSA Y COMUNICACIONES DEL FONDO DE DESARROLLO LOCAL DE LOS MARTIRES.","Inversión","Un nuevo contrato social y ambiental para la Bogotá del Siglo XXI",3,{"$f":"IF(ISERROR(VLOOKUP(K142,Proposito_programa!$C$2:$E$59,2,FALSE)),\" \",VLOOKUP(K142,Proposito_programa!$C$2:$E$59,2,FALSE))","v":"Movilidad social integral"},{"$f":"IF(ISERROR(VLOOKUP(K142,Proposito_programa!$C$2:$E$59,3,FALSE)),\" \",VLOOKUP(K142,Proposito_programa!$C$2:$E$59,3,FALSE))","v":"Propósito 1: Hacer un nuevo contrato social para incrementar la inclusión social, productiva y política"},"O23011605570000002099",0,1052096060,"MARIA JOSE DONADO NAVAS","Persona Natural","N/A","N/A","N/A",2022,10127000,null,null,null,10127000,null,"2022-10-07","2022-10-13","2023-01-17","95 dias",null,null,null,null,null,null,"En ejecución",{"$f":"IF(ISERROR(AB142/AA142),\"-\",(AB142/AA142))","v":0}]
["132-2022",2022,"FDLM-119-2022 (76040)","https://community.secop.gov.co/Public/Tendering/OpportunityDetail/Index?noticeUID=CO1.NTC.3415841&isFromPublicArea=True&isModal=False\n","Contratos de prestación de servicios profesionales y de apoyo a la gestión","Contratación directa","Prestación de servicios profesionales y de apoyo a la gestión, o para la ejecución de trabajos artísticos que sólo puedan encomendarse a determinadas personas naturales","PRESTACIÓN DE SERVICIOS PROFESIONALES PARA LA REALIZACIÓN DE ACTIVIDADES Y ESTRATEGIAS RELACIONADAS CON EL PROYECTO 2060.","Inversión","Un nuevo contrato social y ambiental para la Bogotá del Siglo XXI",3,{"$f":"IF(ISERROR(VLOOKUP(K143,Proposito_programa!$C$2:$E$59,2,FALSE)),\" \",VLOOKUP(K143,Proposito_programa!$C$2:$E$59,2,FALSE))","v":"Movilidad social integral"},{"$f":"IF(ISERROR(VLOOKUP(K143,Proposito_programa!$C$2:$E$59,3,FALSE)),\" \",VLOOKUP(K143,Proposito_programa!$C$2:$E$59,3,FALSE))","v":"Propósito 1: Hacer un nuevo contrato social para incrementar la inclusión social, productiva y política"},"O23011605570000002099",0,1006793928,"ZULAY ELIANA HERRERA MARTINEZ","Persona Natural","N/A","N/A","N/A",2022,15300000,null,null,null,15300000,null,"2022-10-18","2022-10-19","2023-01-18","3 meses ",null,null,null,null,null,null,"En ejecución",0]
["133-2022",2022,"FDLM-MC-007-2022 (75462)","https://community.secop.gov.co/Public/Tendering/OpportunityDetail/Index?noticeUID=CO1.NTC.3325215&isFromPublicArea=True&isModal=False\n","Contratos de prestación de servicios","Selección abreviada","Selección abreviada por menor cuantía ","Realizar el mantenimiento preventivo y correctivo con repuestos de las plantas eléctricas incluida capacitación para el manejo de las plantas propiedad del Fondo de Desarrollo Local de Los Mártires.","Inversión","Un nuevo contrato social y ambiental para la Bogotá del Siglo XXI",3,{"$f":"IF(ISERROR(VLOOKUP(K144,Proposito_programa!$C$2:$E$59,2,FALSE)),\" \",VLOOKUP(K144,Proposito_programa!$C$2:$E$59,2,FALSE))","v":"Movilidad social integral"},{"$f":"IF(ISERROR(VLOOKUP(K144,Proposito_programa!$C$2:$E$59,3,FALSE)),\" \",VLOOKUP(K144,Proposito_programa!$C$2:$E$59,3,FALSE))","v":"Propósito 1: Hacer un nuevo contrato social para incrementar la inclusión social, productiva y política"},"O2-12-02-020-08078715999",0,900556510,"M&M ENERGY SOLUTIONS SAS","Persona Jurídica","N/A","N/A","N/A",2022,2356200,null,1,1170109,3526309,null," 12/10/2022","2022-10-16","2022-11-18","1 mes",1,"01 mes y 10 dias",null,null,null,null,"En ejecución",0]
["134-2022",2022,"FDLM-120-2022 (79223)","https://community.secop.gov.co/Public/Tendering/OpportunityDetail/Index?noticeUID=CO1.NTC.3452941&isFromPublicArea=True&isModal=False\n","Contratos de prestación de servicios profesionales y de apoyo a la gestión","Contratación directa","Prestación de servicios profesionales y de apoyo a la gestión, o para la ejecución de trabajos artísticos que sólo puedan encomendarse a determinadas personas naturales","PRESTAR LOS SERVICIOS PROFESIONALES PARA APOYAR AL DESPACHO DEL ALCALDE LOCAL DE LOS MÁRTIRES CON EL SEGUIMIENTO A REQUERIMIENTOS DE ENTES DE CONTROL, CIUDADANÍA, ENTIDADES, DERECHOS DE PETICIÓN, PLAN DE GESTIÓN INSTITUCIONAL, PLANES DE MEJORA Y CONEXOS","Inversión","Un nuevo contrato social y ambiental para la Bogotá del Siglo XXI",3,{"$f":"IF(ISERROR(VLOOKUP(K145,Proposito_programa!$C$2:$E$59,2,FALSE)),\" \",VLOOKUP(K145,Proposito_programa!$C$2:$E$59,2,FALSE))","v":"Movilidad social integral"},{"$f":"IF(ISERROR(VLOOKUP(K145,Proposito_programa!$C$2:$E$59,3,FALSE)),\" \",VLOOKUP(K145,Proposito_programa!$C$2:$E$59,3,FALSE))","v":"Propósito 1: Hacer un nuevo contrato social para incrementar la inclusión social, productiva y política"},"O23011605570000002099",0,53168170,"MARIA ANGELICA DEL PILAR ANGULO PAEZ","Persona Natural","N/A","N/A","N/A",2022,14790000,null,null,null,14790000,null,"2022-10-27","2022-10-28","2023-01-24","87 dias",null,null,null,null,null,null,"En ejecución",0]
["135-2022",2022,"FDLM-121-2022 (79139)","https://community.secop.gov.co/Public/Tendering/OpportunityDetail/Index?noticeUID=CO1.NTC.3453131&isFromPublicArea=True&isModal=False\n","Contratos de prestación de servicios profesionales y de apoyo a la gestión","Contratación directa","Prestación de servicios profesionales y de apoyo a la gestión, o para la ejecución de trabajos artísticos que sólo puedan encomendarse a determinadas personas naturales","PRESTACION DE SERVICIOS PROFESIONALES ESPECIALIZADOS AL FONDO DE DESARROLLO LOCAL DE LOS MARTIRES EN APOYO AL DESARROLLO Y SEGUIMIENTO DE LA LÍNEA ESTRATÉGICA Y EL ACOMPAÑAMIENTO PARA EL CUMPLIMIENTO DE LAS FUNCIONES DEL ALCALDE LOCAL ","Inversión","Un nuevo contrato social y ambiental para la Bogotá del Siglo XXI",3,{"$f":"IF(ISERROR(VLOOKUP(K146,Proposito_programa!$C$2:$E$59,2,FALSE)),\" \",VLOOKUP(K146,Proposito_programa!$C$2:$E$59,2,FALSE))","v":"Movilidad social integral"},{"$f":"IF(ISERROR(VLOOKUP(K146,Proposito_programa!$C$2:$E$59,3,FALSE)),\" \",VLOOKUP(K146,Proposito_programa!$C$2:$E$59,3,FALSE))","v":"Propósito 1: Hacer un nuevo contrato social para incrementar la inclusión social, productiva y política"},"O23011605570000002099",0,1047413222,"CARLOS ANDRES ESQUIAQUI RANGEL","Persona Natural","N/A","N/A","N/A",2022,16566667,null,null,null,16566667,null,"2022-10-27","2022-11-01","2023-01-10","70 dias",null,null,null,null,null,null,"En ejecución",0]
["136-2022",2022,"FDLM-122-2022 (79298)","https://community.secop.gov.co/Public/Tendering/OpportunityDetail/Index?noticeUID=CO1.NTC.3466160&isFromPublicArea=True&isModal=False\n","Contratos de prestación de servicios profesionales y de apoyo a la gestión","Contratación directa","Prestación de servicios profesionales y de apoyo a la gestión, o para la ejecución de trabajos artísticos que sólo puedan encomendarse a determinadas personas naturales","APOYAR TÉCNICAMENTE LA REALIZACIÓN DE ACUERDOS QUE PROMUEVAN LA CONVIVENCIA ARMÓNICA ENTRE LA CIUDADANÍA Y LOS VENDEDORES INFORMALES Y ESTACIONARIOS, ORIENTADOS A LA SOLUCIÓN DE LOS CONFLICTOS DEL ESPACIO PÚBLICO IDENTIFICADOS POR LAS ALCALDÍAS LOCALES, ASI COMO APOYAR TÉCNICAMENTE LAS DISTINTAS ETAPAS DE LOS PROCESOS DE COMPETENCIA DE LA ALCALDÍA LOCAL Y/O INSPECCIONES DE POLICÍA PARA LA DEPURACIÓN DE ACTUACIONES ADMINISTRATIVAS Y/O QUERELLAS","Inversión","Un nuevo contrato social y ambiental para la Bogotá del Siglo XXI",3,{"$f":"IF(ISERROR(VLOOKUP(K147,Proposito_programa!$C$2:$E$59,2,FALSE)),\" \",VLOOKUP(K147,Proposito_programa!$C$2:$E$59,2,FALSE))","v":"Movilidad social integral"},{"$f":"IF(ISERROR(VLOOKUP(K147,Proposito_programa!$C$2:$E$59,3,FALSE)),\" \",VLOOKUP(K147,Proposito_programa!$C$2:$E$59,3,FALSE))","v":"Propósito 1: Hacer un nuevo contrato social para incrementar la inclusión social, productiva y política"},"O23011603450000002080",0,1007027883,"MAIKEL JOSE DOMINGUEZ ARRIETA","Persona Natural","N/A","N/A","N/A",2022,15000000,null,null,null,15000000,null,"2022-10-31","2022-11-02","2023-02-01","3 meses ",null,null,null,null,null,null,"En ejecución",0]
["137-2022",2022,"FDLM-123-2022 (79188)","https://community.secop.gov.co/Public/Tendering/OpportunityDetail/Index?noticeUID=CO1.NTC.3466162&isFromPublicArea=True&isModal=False\n","Contratos de prestación de servicios profesionales y de apoyo a la gestión","Contratación directa","Prestación de servicios profesionales y de apoyo a la gestión, o para la ejecución de trabajos artísticos que sólo puedan encomendarse a determinadas personas naturales","PRESTACION DE SERVICIOS PROFESIONALES AL FONDO DE DESARROLLO LOCAL EN EL FORTALECIMIENTO DE LAS ETAPAS DE LA GESTION PUBLICA CONTRACTUAL, EN CUMPLIMIENTO DEL PLAN DE DESARROLLO LOCAL VIGENTE","Inversión","Un nuevo contrato social y ambiental para la Bogotá del Siglo XXI",3,{"$f":"IF(ISERROR(VLOOKUP(K148,Proposito_programa!$C$2:$E$59,2,FALSE)),\" \",VLOOKUP(K148,Proposito_programa!$C$2:$E$59,2,FALSE))","v":"Movilidad social integral"},{"$f":"IF(ISERROR(VLOOKUP(K148,Proposito_programa!$C$2:$E$59,3,FALSE)),\" \",VLOOKUP(K148,Proposito_programa!$C$2:$E$59,3,FALSE))","v":"Propósito 1: Hacer un nuevo contrato social para incrementar la inclusión social, productiva y política"},"O23011605570000002099",0,1032463668,"MARIA ANGÉLICA NARANJO HERRERA","Persona Natural","N/A","N/A","N/A",2022,12833333,null,null,null,12833333,null,"2022-10-31","2022-11-01","2023-01-10","70 dias",null,null,null,null,null,null,"En ejecución",0]
["138-2022",2022,"FDLM-124-2022 (79185)","https://community.secop.gov.co/Public/Tendering/OpportunityDetail/Index?noticeUID=CO1.NTC.3475661&isFromPublicArea=True&isModal=False\n","Contratos de prestación de servicios profesionales y de apoyo a la gestión","Contratación directa","Prestación de servicios profesionales y de apoyo a la gestión, o para la ejecución de trabajos artísticos que sólo puedan encomendarse a determinadas personas naturales","PRESTACIÓN DE SERVICIOS COMO APOYO PROFESIONAL ESPECIALIZADO EN LA GESTIÓN PÚBLICA PRECONTRACTUAL, CONTRACTUAL Y POST CONTRACTUAL QUE SE REQUIERA EN CUMPLIMIENTO DEL PLAN DE DESARROLLO LOCAL","Inversión","Un nuevo contrato social y ambiental para la Bogotá del Siglo XXI",3,{"$f":"IF(ISERROR(VLOOKUP(K149,Proposito_programa!$C$2:$E$59,2,FALSE)),\" \",VLOOKUP(K149,Proposito_programa!$C$2:$E$59,2,FALSE))","v":"Movilidad social integral"},{"$f":"IF(ISERROR(VLOOKUP(K149,Proposito_programa!$C$2:$E$59,3,FALSE)),\" \",VLOOKUP(K149,Proposito_programa!$C$2:$E$59,3,FALSE))","v":"Propósito 1: Hacer un nuevo contrato social para incrementar la inclusión social, productiva y política"},"O23011605570000002099",0,1032372023,"JESUS DAVID DIAZ CAMPOS","Persona Natural","N/A","N/A","N/A",2022,16566667,null,null,null,16566667,null,"2022-11-02","2022-11-03","2023-01-12","70 dias",null,null,null,null,null,null,"En ejecución",0]
["139-2022",2022,"FDLM-125-2022 (79435)","https://community.secop.gov.co/Public/Tendering/OpportunityDetail/Index?noticeUID=CO1.NTC.3484598&isFromPublicArea=True&isModal=False\n","Contratos de prestación de servicios profesionales y de apoyo a la gestión","Contratación directa","Prestación de servicios profesionales y de apoyo a la gestión, o para la ejecución de trabajos artísticos que sólo puedan encomendarse a determinadas personas naturales","PRESTACIÓN DE SERVICIOS DE APOYO A LA GESTIÓN CON EL FIN DE REALIZAR ACTIVIDADES PROPIAS DEL ÁREA DE GESTIÓN POLICIVA Y JURÍDICA","Inversión","Un nuevo contrato social y ambiental para la Bogotá del Siglo XXI",3,{"$f":"IF(ISERROR(VLOOKUP(K150,Proposito_programa!$C$2:$E$59,2,FALSE)),\" \",VLOOKUP(K150,Proposito_programa!$C$2:$E$59,2,FALSE))","v":"Movilidad social integral"},{"$f":"IF(ISERROR(VLOOKUP(K150,Proposito_programa!$C$2:$E$59,3,FALSE)),\" \",VLOOKUP(K150,Proposito_programa!$C$2:$E$59,3,FALSE))","v":"Propósito 1: Hacer un nuevo contrato social para incrementar la inclusión social, productiva y política"},"O23011605570000002099",0,1014291719,"JESSICA LORENA GÓMEZ PARDO","Persona Natural","N/A","N/A","N/A",2022,5200000,null,null,null,5200000,{"$f":"+X150+Y150+AA150","v":5200000},"2022-11-03","2022-11-09","2023-01-07","2 meses ",null,null,null,null,null,null,"Terminado",1]
["140-2022",2022,"FDLM-126-2022 (79311)","https://community.secop.gov.co/Public/Tendering/OpportunityDetail/Index?noticeUID=CO1.NTC.3485023&isFromPublicArea=True&isModal=False\n\n","Contratos de prestación de servicios profesionales y de apoyo a la gestión","Contratación directa","Prestación de servicios profesionales y de apoyo a la gestión, o para la ejecución de trabajos artísticos que sólo puedan encomendarse a determinadas personas naturales","Prestar los servicios profesionales para la operación, prestación, seguimiento y cumplimiento de los procedimientos administrativos, operativos y programáticos del servicio social apoyo económico tipo C, que contribuyan a la garantía de los derechos de la población mayor en el marco de la política pública social para el envejecimiento y la vejez en el distrito capital a cargo de la alcaldía local.","Inversión","Un nuevo contrato social y ambiental para la Bogotá del Siglo XXI",3,{"$f":"IF(ISERROR(VLOOKUP(K151,Proposito_programa!$C$2:$E$59,2,FALSE)),\" \",VLOOKUP(K151,Proposito_programa!$C$2:$E$59,2,FALSE))","v":"Movilidad social integral"},{"$f":"IF(ISERROR(VLOOKUP(K151,Proposito_programa!$C$2:$E$59,3,FALSE)),\" \",VLOOKUP(K151,Proposito_programa!$C$2:$E$59,3,FALSE))","v":"Propósito 1: Hacer un nuevo contrato social para incrementar la inclusión social, productiva y política"},"O23011601010000002068",0,1070611652,"LUIS CAMILO GOMEZ GUEVARA","Persona Natural","N/A","N/A","N/A",2022,9315000,null,null,null,9315000,{"$f":"+X151+Y151+AA151","v":9315000},"2022-11-03","2022-11-08","2023-01-07","2 meses ",null,null,null,null,null,null,"Terminado",1]
["141-2022",2022,"FDLM-127-2022 (79316)","https://community.secop.gov.co/Public/Tendering/OpportunityDetail/Index?noticeUID=CO1.NTC.3484789&isFromPublicArea=True&isModal=False","Contratos de prestación de servicios profesionales y de apoyo a la gestión","Contratación directa","Prestación de servicios profesionales y de apoyo a la gestión, o para la ejecución de trabajos artísticos que sólo puedan encomendarse a determinadas personas naturales","Prestar los servicios profesionales para la operación, prestación, seguimiento y cumplimiento de los procedimientos administrativos, operativos y programáticos del servicio social apoyo económico tipo C, que contribuyan a la garantía de los derechos de la población mayor en el marco de la política pública social para el envejecimiento y la vejez en el distrito capital a cargo de la alcaldía local.","Inversión","Un nuevo contrato social y ambiental para la Bogotá del Siglo XXI",3,{"$f":"IF(ISERROR(VLOOKUP(K152,Proposito_programa!$C$2:$E$59,2,FALSE)),\" \",VLOOKUP(K152,Proposito_programa!$C$2:$E$59,2,FALSE))","v":"Movilidad social integral"},{"$f":"IF(ISERROR(VLOOKUP(K152,Proposito_programa!$C$2:$E$59,3,FALSE)),\" \",VLOOKUP(K152,Proposito_programa!$C$2:$E$59,3,FALSE))","v":"Propósito 1: Hacer un nuevo contrato social para incrementar la inclusión social, productiva y política"},"O23011601010000002068",0,59805916,"MARCELA MARTINEZ","Persona Natural","N/A","N/A","N/A",2022,9315000,null,null,null,9315000,{"$f":"+X152+Y152+AA152","v":9315000},"2022-11-03","2022-11-08","2023-01-07","2 meses ",null,null,null,null,null,null,"Terminado",1]
["142-2022",2022,"FDLM-128-2022 (79708)","https://community.secop.gov.co/Public/Tendering/OpportunityDetail/Index?noticeUID=CO1.NTC.3512644&isFromPublicArea=True&isModal=False\n","Contratos de prestación de servicios profesionales y de apoyo a la gestión","Contratación directa","Prestación de servicios profesionales y de apoyo a la gestión, o para la ejecución de trabajos artísticos que sólo puedan encomendarse a determinadas personas naturales","PRESTAR LOS SERVICIOS PROFESIONALES COMO APOYO AL ÁREA DE GESTIÓN DEL DESARROLLO, PARA EL FORTALECIMIENTO PRESUPUESTAL Y CONTABLE, EN EL CUMPLIMIENTO DEL PLAN DE DESARROLLO LOCAL VIGENTE.","Inversión","Un nuevo contrato social y ambiental para la Bogotá del Siglo XXI",3,{"$f":"IF(ISERROR(VLOOKUP(K153,Proposito_programa!$C$2:$E$59,2,FALSE)),\" \",VLOOKUP(K153,Proposito_programa!$C$2:$E$59,2,FALSE))","v":"Movilidad social integral"},{"$f":"IF(ISERROR(VLOOKUP(K153,Proposito_programa!$C$2:$E$59,3,FALSE)),\" \",VLOOKUP(K153,Proposito_programa!$C$2:$E$59,3,FALSE))","v":"Propósito 1: Hacer un nuevo contrato social para incrementar la inclusión social, productiva y política"},"O23011605570000002099",0,1013603935,"CATHERINE DÍAZ LOZANO","Persona Natural","N/A","N/A","N/A",2022,9040000,null,null,null,9040000,null,"2022-11-10","2022-11-13","2023-01-14","2 meses ",null,null,null,null,null,null,"En ejecución",0]
["143-2022",2022,"FDLM-129-2022 (79306)","https://community.secop.gov.co/Public/Tendering/OpportunityDetail/Index?noticeUID=CO1.NTC.3518110&isFromPublicArea=True&isModal=False","Contratos de prestación de servicios profesionales y de apoyo a la gestión","Contratación directa","Prestación de servicios profesionales y de apoyo a la gestión, o para la ejecución de trabajos artísticos que sólo puedan encomendarse a determinadas personas naturales","Apoyar el cubrimiento de las actividades, cronogramas y agenda de la alcaldía local a nivel interno y externo, así como la generación de contenidos periodísticos","Inversión","Un nuevo contrato social y ambiental para la Bogotá del Siglo XXI",3,{"$f":"IF(ISERROR(VLOOKUP(K154,Proposito_programa!$C$2:$E$59,2,FALSE)),\" \",VLOOKUP(K154,Proposito_programa!$C$2:$E$59,2,FALSE))","v":"Movilidad social integral"},{"$f":"IF(ISERROR(VLOOKUP(K154,Proposito_programa!$C$2:$E$59,3,FALSE)),\" \",VLOOKUP(K154,Proposito_programa!$C$2:$E$59,3,FALSE))","v":"Propósito 1: Hacer un nuevo contrato social para incrementar la inclusión social, productiva y política"},"O23011605570000002099",0,1015450203,"JUAN SEBASTIAN VITERI","Persona Natural","N/A","N/A","N/A",2022,9100000,null,null,null,9100000,null,"2022-11-10","2022-11-11","2023-01-14","2 meses ",null,null,null,null,null,null,"En ejecución",0]
["144-2022",2022,"FDLM-130-2022 (79737)","https://community.secop.gov.co/Public/Tendering/OpportunityDetail/Index?noticeUID=CO1.NTC.3528578&isFromPublicArea=True&isModal=False\n","Contratos de prestación de servicios profesionales y de apoyo a la gestión","Contratación directa","Prestación de servicios profesionales y de apoyo a la gestión, o para la ejecución de trabajos artísticos que sólo puedan encomendarse a determinadas personas naturales","PRESTACIÓN DE SERVICIOS DE APOYO A LA GESTIÓN AL ÁREA DE GESTIÓN POLICIVA Y JURÍDICA CON EL FIN DE REALIZAR LAS ACTIVIDADES PROPIAS DEL ÁREA","Inversión","Un nuevo contrato social y ambiental para la Bogotá del Siglo XXI",3,{"$f":"IF(ISERROR(VLOOKUP(K155,Proposito_programa!$C$2:$E$59,2,FALSE)),\" \",VLOOKUP(K155,Proposito_programa!$C$2:$E$59,2,FALSE))","v":"Movilidad social integral"},{"$f":"IF(ISERROR(VLOOKUP(K155,Proposito_programa!$C$2:$E$59,3,FALSE)),\" \",VLOOKUP(K155,Proposito_programa!$C$2:$E$59,3,FALSE))","v":"Propósito 1: Hacer un nuevo contrato social para incrementar la inclusión social, productiva y política"},"O23011603450000002080",0,1000930688,"ALVARO DARIO GOMEZ GOMEZ","Persona Natural","N/A","N/A","N/A",2022,6000000,null,null,null,6000000,null,"2022-11-14","2022-11-15","2023-01-16","2 meses ",null,null,null,null,null,null,"En ejecución",0]
["145-2022",2022,"FDLM-LP-02-2022 (77109)","https://community.secop.gov.co/Public/Tendering/OpportunityDetail/Index?noticeUID=CO1.NTC.3343829&isFromPublicArea=True&isModal=False\n","Obra pública","Concurso de méritos","No aplica","PRESTAR LOS SERVICIOS COMO OPERADOR LOGISTICO PARA LA REALIZACIÓN DE 5 EVENTOS DE PROMOCION ARTISTICA CULTURAL EN EL DESARROLLO DEL PLAN DE DESARROLLO LOCAL VIGENTE","Funcionamiento","Un nuevo contrato social y ambiental para la Bogotá del Siglo XXI","No aplica",{"$f":"IF(ISERROR(VLOOKUP(K156,Proposito_programa!$C$2:$E$59,2,FALSE)),\" \",VLOOKUP(K156,Proposito_programa!$C$2:$E$59,2,FALSE))","v":" "},{"$f":"IF(ISERROR(VLOOKUP(K156,Proposito_programa!$C$2:$E$59,3,FALSE)),\" \",VLOOKUP(K156,Proposito_programa!$C$2:$E$59,3,FALSE))","v":" "},"O23011601210000002070 ",0,"901654401-5","UNION TEMPORAL MARTIRES ARTISTICA Y CULTURAL","Unión Temporal","N/A","UNION TEMPORAL MARTIRES ARTISTICA Y CULTURAL",0.3,2022,315334553,null,null,null,315334553,null,"2022-11-15","2022-11-16","2023-04-16","5 meses ",null,null,null,null,null,null,"En ejecución",0]
["146-2022",2022,"FDLM-CMA-001-2022","https://community.secop.gov.co/Public/Tendering/OpportunityDetail/Index?noticeUID=CO1.NTC.3173812&isFromPublicArea=True&isModal=False","Consultoría","Concurso de méritos","No aplica","REALIZAR LA CONSULTORIA, CUYO OBJETO ES LA INTERVENTORIA TÉCNICA, ADMINISTRATIVA, FINANCIERA, JURÍDICA, SOCIAL, AMBIENTAL Y SISO AL CONTRATO DE OBRA PUBLICA QUE TENDRÁ POR OBJETO CONTRATAR A PRECIOS UNITARIOS FIJOS POR LA MODALIDAD DE MONTO AGOTABLE, LAS OBRAS Y ACTIVIDADES PARA LA CONSERVACION DE LA MALLA VIAL, ESPACIO PUBLICO Y CICLOINFRAESTRUCTURA DE LA LOCALIDAD DE LOS MARTIRES","Funcionamiento","Un nuevo contrato social y ambiental para la Bogotá del Siglo XXI","No aplica",{"$f":"IF(ISERROR(VLOOKUP(K157,Proposito_programa!$C$2:$E$59,2,FALSE)),\" \",VLOOKUP(K157,Proposito_programa!$C$2:$E$59,2,FALSE))","v":" "},{"$f":"IF(ISERROR(VLOOKUP(K157,Proposito_programa!$C$2:$E$59,3,FALSE)),\" \",VLOOKUP(K157,Proposito_programa!$C$2:$E$59,3,FALSE))","v":" "},"O23011604490000002097",0,"900.241.875-6/72005623","CONSORCIO INTERARES/NICK RANDY ALMEIDA GAMARRA","Consorcio","N/A","CONSORCIO INTERARES/NICK RANDY ALMEIDA GAMARRA",0.3,2022,417421900,null,null,null,417421900,null,"2022-11-08","2022-07-07","2023-07-15","8 meses ",null,null,null,null,null,null,"En ejecución",0]
["147-2022",2022,"FDLM-131-2022 (79800)","https://community.secop.gov.co/Public/Tendering/OpportunityDetail/Index?noticeUID=CO1.NTC.3544129&isFromPublicArea=True&isModal=False\n","Contratos de prestación de servicios profesionales y de apoyo a la gestión","Contratación directa","Prestación de servicios profesionales y de apoyo a la gestión, o para la ejecución de trabajos artísticos que sólo puedan encomendarse a determinadas personas naturales","PRESTAR LOS SERVICIOS DE APOYO A LA GESTIÓN TERRITORIAL PARA LA IMPLEMENTACIÓN DE ACUERDOS QUE PROMUEVAN LA CONVIVENCIA ARMÓNICA ENTRE LA CIUDADANÍA Y LOS VENDEDORES INFORMALES Y ESTACIONARIOS, ORIENTADOS A LA SOLUCIÓN DE LOS CONFLICTOS DEL ESPACIO PÚBLICO IDENTIFICADOS POR LAS ALCALDÍAS LOCALES, ASÍ COMO EL APOYO AL ÁREA DE GESTIÓN POLICIVA Y JURÍDICA DE LA ALCALDÍA LOCAL DE LOS MÁRTIRES EN TEMAS DE ESPACIO PÚBLICO EN GENERA","Inversión","Un nuevo contrato social y ambiental para la Bogotá del Siglo XXI",3,{"$f":"IF(ISERROR(VLOOKUP(K158,Proposito_programa!$C$2:$E$59,2,FALSE)),\" \",VLOOKUP(K158,Proposito_programa!$C$2:$E$59,2,FALSE))","v":"Movilidad social integral"},{"$f":"IF(ISERROR(VLOOKUP(K158,Proposito_programa!$C$2:$E$59,3,FALSE)),\" \",VLOOKUP(K158,Proposito_programa!$C$2:$E$59,3,FALSE))","v":"Propósito 1: Hacer un nuevo contrato social para incrementar la inclusión social, productiva y política"},"O23011603450000002080",0,79461481,"CARLOS JULIO LOPEZ ALFONSO","Persona Natural","N/A","N/A","N/A",2022,5130000,null,null,null,5130000,null,"2022-11-18","2022-11-19","2023-01-20","2 meses ",null,null,null,null,null,null,"En ejecución",0]
["148-2022",2022,"FDLM-MC-008-2022 (78771)","https://community.secop.gov.co/Public/Tendering/OpportunityDetail/Index?noticeUID=CO1.NTC.3478642&isFromPublicArea=True&isModal=False\n","Contratos de prestación de servicios","Selección abreviada","Selección abreviada por menor cuantía ","SUMINISTRO DE KITS DE ALIMENTACIÓN Y MEDICAMENTOS ESENCIALES PARA REALIZAR ATENCIÓN DE ANIMALES","Inversión","Un nuevo contrato social y ambiental para la Bogotá del Siglo XXI",3,{"$f":"IF(ISERROR(VLOOKUP(K159,Proposito_programa!$C$2:$E$59,2,FALSE)),\" \",VLOOKUP(K159,Proposito_programa!$C$2:$E$59,2,FALSE))","v":"Movilidad social integral"},{"$f":"IF(ISERROR(VLOOKUP(K159,Proposito_programa!$C$2:$E$59,3,FALSE)),\" \",VLOOKUP(K159,Proposito_programa!$C$2:$E$59,3,FALSE))","v":"Propósito 1: Hacer un nuevo contrato social para incrementar la inclusión social, productiva y política"},"O23011602340000002085 ",0,900359095,"FUNDACION ECODES","Persona Jurídica","N/A","N/A","N/A",2022,28000000,null,null,null,28000000,null,"2022-11-18","2022-11-19","2023-03-12","4 meses ",null,null,null,null,null,null,"En ejecución",0]
["149-2022",2022,"FDLM-132-2022 (80043)","https://community.secop.gov.co/Public/Tendering/OpportunityDetail/Index?noticeUID=CO1.NTC.3558791&isFromPublicArea=True&isModal=False\n","Contratos de prestación de servicios profesionales y de apoyo a la gestión","Contratación directa","Prestación de servicios profesionales y de apoyo a la gestión, o para la ejecución de trabajos artísticos que sólo puedan encomendarse a determinadas personas naturales","PRESTACIÓN DE SERVICIOS PROFESIONALES AL FONDO DE DESARROLLO LOCAL EN EL FORTALECIMIENTO DE LAS ETAPAS DE LA GESTIÓN PUBLICA CONTRACTUAL, EN CUMPLIMIENTO DEL PLAN DE DESARROLLO LOCAL VIGENT","Inversión","Un nuevo contrato social y ambiental para la Bogotá del Siglo XXI",3,{"$f":"IF(ISERROR(VLOOKUP(K160,Proposito_programa!$C$2:$E$59,2,FALSE)),\" \",VLOOKUP(K160,Proposito_programa!$C$2:$E$59,2,FALSE))","v":"Movilidad social integral"},{"$f":"IF(ISERROR(VLOOKUP(K160,Proposito_programa!$C$2:$E$59,3,FALSE)),\" \",VLOOKUP(K160,Proposito_programa!$C$2:$E$59,3,FALSE))","v":"Propósito 1: Hacer un nuevo contrato social para incrementar la inclusión social, productiva y política"},"O23011605570000002099",0,1010215026,"ANDRES FELIPE CAPERA SANCHEZ","Persona Natural","N/A","N/A","N/A",2022,7333333,null,null,null,7333333,{"$f":"+X160+Y160+AA160","v":7333333},"2022-11-22","2022-11-23","2023-01-06","44 dias",null,null,null,null,null,null,"Terminado",1]
["150-2022",2022,"FDLM-133-2022 (79734 )","https://community.secop.gov.co/Public/Tendering/OpportunityDetail/Index?noticeUID=CO1.NTC.3570523&isFromPublicArea=True&isModal=False\n","Contratos de prestación de servicios profesionales y de apoyo a la gestión","Contratación directa","Prestación de servicios profesionales y de apoyo a la gestión, o para la ejecución de trabajos artísticos que sólo puedan encomendarse a determinadas personas naturales","EL CONTRATISTA SE OBLIGA CON EL FONDO DE DESARROLLO LOCAL DE LOS MÁRTIRES A PRESTAR SUS SERVICIOS DE APOYO A LA GESTIÓN TERRITORIAL EN LOS TEMAS DE SEGURIDAD Y CONVIVENCIA CIUDADANA; EN EL MARCO DEL PROYECTO 2083.","Inversión","Un nuevo contrato social y ambiental para la Bogotá del Siglo XXI",3,{"$f":"IF(ISERROR(VLOOKUP(K161,Proposito_programa!$C$2:$E$59,2,FALSE)),\" \",VLOOKUP(K161,Proposito_programa!$C$2:$E$59,2,FALSE))","v":"Movilidad social integral"},{"$f":"IF(ISERROR(VLOOKUP(K161,Proposito_programa!$C$2:$E$59,3,FALSE)),\" \",VLOOKUP(K161,Proposito_programa!$C$2:$E$59,3,FALSE))","v":"Propósito 1: Hacer un nuevo contrato social para incrementar la inclusión social, productiva y política"},"O23011603430000002083",0,1032490091,"PAULA ANGELICA JIMENEZ TAMARA","Persona Natural","N/A","N/A","N/A",2022,5200000,null,null,null,5200000,null,"2022-11-15","2022-11-16","2023-01-15","2 meses ",null,null,null,null,null,null,"En ejecución",0]
["151-2022",2022,"FDLM-134-2022 ( 79801)","https://community.secop.gov.co/Public/Tendering/OpportunityDetail/Index?noticeUID=CO1.NTC.3581728&isFromPublicArea=True&isModal=False","Contratos de prestación de servicios profesionales y de apoyo a la gestión","Contratación directa","Prestación de servicios profesionales y de apoyo a la gestión, o para la ejecución de trabajos artísticos que sólo puedan encomendarse a determinadas personas naturales","PRESTAR LOS SERVICIOS DE APOYO A LA GESTIÓN TERRITORIAL PARA LA IMPLEMENTACIÓN DE ACUERDOS QUE PROMUEVAN LA CONVIVENCIA ARMÓNICA ENTRE LA CIUDADANÍA Y LOS VENDEDORES INFORMALES Y ESTACIONARIOS, ORIENTADOS A LA SOLUCIÓN DE LOS CONFLICTOS DEL ESPACIO PÚBLICO IDENTIFICADOS POR LAS ALCALDÍAS LOCALES, ASÍ COMO EL APOYO AL ÁREA DE GESTIÓN POLICIVA Y JURÍDICA DE LA ALCALDÍA LOCAL DE LOS MÁRTIRES EN TEMAS DE ESPACIO PÚBLICO EN GENERAL","Inversión","Un nuevo contrato social y ambiental para la Bogotá del Siglo XXI",3,{"$f":"IF(ISERROR(VLOOKUP(K162,Proposito_programa!$C$2:$E$59,2,FALSE)),\" \",VLOOKUP(K162,Proposito_programa!$C$2:$E$59,2,FALSE))","v":"Movilidad social integral"},{"$f":"IF(ISERROR(VLOOKUP(K162,Proposito_programa!$C$2:$E$59,3,FALSE)),\" \",VLOOKUP(K162,Proposito_programa!$C$2:$E$59,3,FALSE))","v":"Propósito 1: Hacer un nuevo contrato social para incrementar la inclusión social, productiva y política"},"O23011603450000002080",0,39722169,"NANCY JANNETH LEIVA HERNANDEZ","Persona Natural","N/A","N/A","N/A",2022,5130000,null,null,null,5130000,null,"2022-11-15","2022-11-16","2023-01-15","2 meses ",null,null,null,null,null,null,"En ejecución",0]
["152-2022",2022,"FDLM-135-2022 ( 79733)","https://community.secop.gov.co/Public/Tendering/OpportunityDetail/Index?noticeUID=CO1.NTC.3582107&isFromPublicArea=True&isModal=False\n","Contratos de prestación de servicios profesionales y de apoyo a la gestión","Contratación directa","Prestación de servicios profesionales y de apoyo a la gestión, o para la ejecución de trabajos artísticos que sólo puedan encomendarse a determinadas personas naturales"," EL CONTRATISTA SE OBLIGA CON EL FONDO DE DESARROLLO LOCAL DE LOS MÁRTIRES A PRESTAR SUS SERVICIOS DE APOYO A LA GESTIÓN TERRITORIAL EN LOS TEMAS DE SEGURIDAD Y CONVIVENCIA CIUDADANA; EN EL MARCO DEL PROYECTO 2083","Inversión","Un nuevo contrato social y ambiental para la Bogotá del Siglo XXI",3,{"$f":"IF(ISERROR(VLOOKUP(K163,Proposito_programa!$C$2:$E$59,2,FALSE)),\" \",VLOOKUP(K163,Proposito_programa!$C$2:$E$59,2,FALSE))","v":"Movilidad social integral"},{"$f":"IF(ISERROR(VLOOKUP(K163,Proposito_programa!$C$2:$E$59,3,FALSE)),\" \",VLOOKUP(K163,Proposito_programa!$C$2:$E$59,3,FALSE))","v":"Propósito 1: Hacer un nuevo contrato social para incrementar la inclusión social, productiva y política"},"O23011603430000002083",0,1013634077,"MICHAEL ALEXANDER MEDRANO NAVARRETE","Persona Natural","N/A","N/A","N/A",2022,5200000,null,null,null,5200000,null,"2022-11-15","2022-11-16","2023-01-15","2 meses ",null,null,null,null,null,null,"En ejecución",0]
["153-2022",2022,"FDLM-136-2022 ( 79732)","https://community.secop.gov.co/Public/Tendering/OpportunityDetail/Index?noticeUID=CO1.NTC.3594311&isFromPublicArea=True&isModal=False\n","Contratos de prestación de servicios profesionales y de apoyo a la gestión","Contratación directa","Prestación de servicios profesionales y de apoyo a la gestión, o para la ejecución de trabajos artísticos que sólo puedan encomendarse a determinadas personas naturales","PRESTAR SUS SERVICIOS DE APOYO A LA GESTIÓN TERRITORIAL EN LOS TEMAS DE SEGURIDAD Y CONVIVENCIA CIUDADANA; EN EL MARCO DEL PROYECTO 2083","Inversión","Un nuevo contrato social y ambiental para la Bogotá del Siglo XXI",3,{"$f":"IF(ISERROR(VLOOKUP(K164,Proposito_programa!$C$2:$E$59,2,FALSE)),\" \",VLOOKUP(K164,Proposito_programa!$C$2:$E$59,2,FALSE))","v":"Movilidad social integral"},{"$f":"IF(ISERROR(VLOOKUP(K164,Proposito_programa!$C$2:$E$59,3,FALSE)),\" \",VLOOKUP(K164,Proposito_programa!$C$2:$E$59,3,FALSE))","v":"Propósito 1: Hacer un nuevo contrato social para incrementar la inclusión social, productiva y política"},"O23011603430000002083",0,1023921919,"JOSE VICENTE SANCHEZ DOMINGUEZ","Persona Natural","N/A","N/A","N/A",2022,5200000,null,null,null,5200000,null,"2022-11-15","2022-11-16","2023-01-15","2 meses ",null,null,null,null,null,null,"En ejecución",0]
["154-2022",2022,"FDLM-137-2022 ( 80129)","https://community.secop.gov.co/Public/Tendering/OpportunityDetail/Index?noticeUID=CO1.NTC.3598704&isFromPublicArea=True&isModal=False\n","Contratos de prestación de servicios profesionales y de apoyo a la gestión","Contratación directa","Prestación de servicios profesionales y de apoyo a la gestión, o para la ejecución de trabajos artísticos que sólo puedan encomendarse a determinadas personas naturales","PRESTAR LOS SERVICIOS PROFESIONALES COMO ADMINISTRADOR DE RED BRINDANDO ASISTENCIA Y SOPORTE TÉCNICO DE LA INFRAESTRUCTURA TECNOLÓGICA (SOFTWARE Y HARDWARE DE LOS EQUIPOS TECNOLÓGICOS QUE MANEJA LA ENTIDAD), ASÍ COMO A LOS USUARIOS QUE DESARROLLEN SUS ACTIVIDADES EN TODAS LAS ÁREAS DE LA ALCALDÍA LOCAL Y JUNTA ADMINISTRADORA LOCAL","Inversión","Un nuevo contrato social y ambiental para la Bogotá del Siglo XXI",3,{"$f":"IF(ISERROR(VLOOKUP(K165,Proposito_programa!$C$2:$E$59,2,FALSE)),\" \",VLOOKUP(K165,Proposito_programa!$C$2:$E$59,2,FALSE))","v":"Movilidad social integral"},{"$f":"IF(ISERROR(VLOOKUP(K165,Proposito_programa!$C$2:$E$59,3,FALSE)),\" \",VLOOKUP(K165,Proposito_programa!$C$2:$E$59,3,FALSE))","v":"Propósito 1: Hacer un nuevo contrato social para incrementar la inclusión social, productiva y política"},"O23011605570000002099",0,80166441,"LUIS MIGUEL LOPEZ RODRIGUEZ","Persona Natural","N/A","N/A","N/A",2022,5000000,null,null,null,5000000,null,"2022-11-15","2022-11-16","2023-01-15","1 mes",null,null,null,null,null,null,"En ejecución",0]
["155-2022",2022,"FDLM-138-2022 (79803)","https://community.secop.gov.co/Public/Tendering/OpportunityDetail/Index?noticeUID=CO1.NTC.3606556&isFromPublicArea=True&isModal=False","Contratos de prestación de servicios profesionales y de apoyo a la gestión","Contratación directa","Prestación de servicios profesionales y de apoyo a la gestión, o para la ejecución de trabajos artísticos que sólo puedan encomendarse a determinadas personas naturales","EL CONTRATISTA SE OBLIGA CON EL FONDO DE DESARROLLO LOCAL DE LOS MÁRTIRES A PRESTAR SUS SERVICIOS DE APOYO TERRITORIAL PARA LA IMPLEMENTACIÓN DE ACUERDOS QUE PROMUEVAN LA CONVIVENCIA ARMÓNICA ENTRE LA CIUDADANÍA Y LOS VENDEDORES INFORMALES Y ESTACIONARIOS, ORIENTADOS A LA SOLUCIÓN DE LOS CONFLICTOS DEL ESPACIO PÚBLICO IDENTIFICADOS POR LAS ALCALDÍAS LOCALES, ASÍ COMO EL APOYO AL ÁREA DE GESTIÓN POLICIVA Y JURÍDICA DE LA ALCALDÍA LOCAL DE LOS MÁRTIRES EN TEMAS DE ESPACIO PÚBLICO EN GENERAL.\"","Inversión","Un nuevo contrato social y ambiental para la Bogotá del Siglo XXI",3,{"$f":"IF(ISERROR(VLOOKUP(K166,Proposito_programa!$C$2:$E$59,2,FALSE)),\" \",VLOOKUP(K166,Proposito_programa!$C$2:$E$59,2,FALSE))","v":"Movilidad social integral"},{"$f":"IF(ISERROR(VLOOKUP(K166,Proposito_programa!$C$2:$E$59,3,FALSE)),\" \",VLOOKUP(K166,Proposito_programa!$C$2:$E$59,3,FALSE))","v":"Propósito 1: Hacer un nuevo contrato social para incrementar la inclusión social, productiva y política"},"O23011603450000002080",0,80163928,"OSCAR MAURICIO LOPEZ MARROQUIN","Persona Natural","N/A","N/A","N/A",2022,5130000,null,null,null,5130000,null,"2022-11-15","2022-11-16","2023-01-15","2 meses ",null,null,null,null,null,null,"En ejecución",0]
["156-2022",2022,"FDLM-SASI-004-2022 (78531)","https://community.secop.gov.co/Public/Tendering/OpportunityDetail/Index?noticeUID=CO1.NTC.3444407&isFromPublicArea=True&isModal=False\n","Arrendamiento de bienes inmuebles","Selección abreviada","Subasta inversa ","ADQUISICIÓN DE ELEMENTOS PARA DOTACIÓN DE 6 SEDES EDUCATIVAS DE LA LOCALIDAD DE LOS MÁRTIRES, DE CONFORMIDAD CON LA ESPECIFICACIONES Y CANTIDADES ESTABLECIDAS EN LAS FICHAS TÉCNICO","Funcionamiento","Un nuevo contrato social y ambiental para la Bogotá del Siglo XXI","No aplica",{"$f":"IF(ISERROR(VLOOKUP(K167,Proposito_programa!$C$2:$E$59,2,FALSE)),\" \",VLOOKUP(K167,Proposito_programa!$C$2:$E$59,2,FALSE))","v":" "},{"$f":"IF(ISERROR(VLOOKUP(K167,Proposito_programa!$C$2:$E$59,3,FALSE)),\" \",VLOOKUP(K167,Proposito_programa!$C$2:$E$59,3,FALSE))","v":" "},"O23011601140000002052",0,830005066,"SECURITY VIDEO EQUIPMENT S.A.S.","Persona Jurídica","N/A","N/A","N/A",2022,502419000,null,null,null,502419000,null,"2022-10-03","2022-10-04","2022-04-06","4 meses ",null,null,null,null,null,null,"En ejecución",0]
["157-2022",2022,"FDLM-SASI-003-2022 (78536)","https://community.secop.gov.co/Public/Tendering/OpportunityDetail/Index?noticeUID=CO1.NTC.3444407&isFromPublicArea=True&isModal=False\n","Arrendamiento de bienes inmuebles","Selección abreviada","Subasta inversa ","ADQUISICIÓN DE ELEMENTOS PARA LA DOTACIÓN LÚDICA, PEDAGÓGICA Y TECNOLÓGICA DE JARDINES INFANTILES Y CENTROS AMAR DE LA LOCALIDAD DE LOS MÁRTIRES, DE CONFORMIDAD CON LAS ESPECIFICACIONES Y CANTIDADES ESTABLECIDAS EN LAS FICHAS TÉCNICAS","Funcionamiento","Un nuevo contrato social y ambiental para la Bogotá del Siglo XXI","No aplica",{"$f":"IF(ISERROR(VLOOKUP(K168,Proposito_programa!$C$2:$E$59,2,FALSE)),\" \",VLOOKUP(K168,Proposito_programa!$C$2:$E$59,2,FALSE))","v":" "},{"$f":"IF(ISERROR(VLOOKUP(K168,Proposito_programa!$C$2:$E$59,3,FALSE)),\" \",VLOOKUP(K168,Proposito_programa!$C$2:$E$59,3,FALSE))","v":" "},"O23011601060000002065",0,"900916649-6.","CI WARRIORS COMPANY SAS","Persona Jurídica","N/A","N/A","N/A",2022,392701305,null,null,null,392701305,null,"2022-10-02","2022-10-03","2022-04-06","4 meses ",null,null,null,null,null,null,"En ejecución",0]
["158-2022",2022,"FDLM-139-2022 (81257)","https://community.secop.gov.co/Public/Tendering/OpportunityDetail/Index?noticeUID=CO1.NTC.3626919&isFromPublicArea=True&isModal=False","Contratos de prestación de servicios profesionales y de apoyo a la gestión","Contratación directa","Prestación de servicios profesionales y de apoyo a la gestión, o para la ejecución de trabajos artísticos que sólo puedan encomendarse a determinadas personas naturales","PRESTAR LOS SERVICIOS PROFESIONALES PARA LA FORMULACIÓN PRE CONTRACTUAL PARTICIPATIVA, APOYO A LA SUPERVISIÓN, SEGUIMIENTO, ACOMPAÑAMIENTO, ATENCIÓN Y EVALUACIÓN DE LOS PROYECTOS E INSTANCIAS DE ARTICULACIÓN INTERINSTITUCIONAL Y PARTICIPACIÓN LOCAL QUE SE REQUIERAN EN EL PROYECTO 2077 TERRITORIOS DIVERSOS Y LIBRES DE VIOLENCIA","Inversión","Un nuevo contrato social y ambiental para la Bogotá del Siglo XXI",3,{"$f":"IF(ISERROR(VLOOKUP(K169,Proposito_programa!$C$2:$E$59,2,FALSE)),\" \",VLOOKUP(K169,Proposito_programa!$C$2:$E$59,2,FALSE))","v":"Movilidad social integral"},{"$f":"IF(ISERROR(VLOOKUP(K169,Proposito_programa!$C$2:$E$59,3,FALSE)),\" \",VLOOKUP(K169,Proposito_programa!$C$2:$E$59,3,FALSE))","v":"Propósito 1: Hacer un nuevo contrato social para incrementar la inclusión social, productiva y política"},"O23011601060000002077",0,1032383222,"JESUS MAURICIO ROA OME","Persona Natural","N/A","N/A","N/A",2022,5100000,null,null,null,5100000,null,"2022-12-07","2022-12-08","2023-01-11","1 mes",null,null,null,null,null,null,"En ejecución",0]
["159-2022",2022,"FDLM-140-2022 (81021)","https://community.secop.gov.co/Public/Tendering/OpportunityDetail/Index?noticeUID=CO1.NTC.3628845&isFromPublicArea=True&isModal=False\n","Contratos de prestación de servicios profesionales y de apoyo a la gestión","Contratación directa","Prestación de servicios profesionales y de apoyo a la gestión, o para la ejecución de trabajos artísticos que sólo puedan encomendarse a determinadas personas naturales"," APOYAR LAS COMUNICACIONES DE LA ALCALDÍA LOCAL EN LA REALIZACIÓN DE PRODUCTOS Y PIEZAS DIGITALES, PUBLICITARIAS, EDICION Y ANIMACION GRAFICA EN SUS DIFERENTES FORMATOS, ASÍ COMO APOYAR LA PRODUCCIÓN Y MONTAJE DE EVENTOS DE CONFORMIDAD A LA NECESIDADES DEL FONDO DE DESARROLLO LOCAL","Inversión","Un nuevo contrato social y ambiental para la Bogotá del Siglo XXI",3,{"$f":"IF(ISERROR(VLOOKUP(K170,Proposito_programa!$C$2:$E$59,2,FALSE)),\" \",VLOOKUP(K170,Proposito_programa!$C$2:$E$59,2,FALSE))","v":"Movilidad social integral"},{"$f":"IF(ISERROR(VLOOKUP(K170,Proposito_programa!$C$2:$E$59,3,FALSE)),\" \",VLOOKUP(K170,Proposito_programa!$C$2:$E$59,3,FALSE))","v":"Propósito 1: Hacer un nuevo contrato social para incrementar la inclusión social, productiva y política"},"O23011605570000002099",0,1118292807,"ANDRES MAURICIO ROMERO CASTILLO","Persona Natural","N/A","N/A","N/A",2022,3198000,null,null,null,3198000,null,"2022-12-16","2022-12-21","2022-12-20","1 mes",null,null,null,null,null,null,"En ejecución",0]
["160-2022",2022,"FDLM-141-2022 (80548)","https://community.secop.gov.co/Public/Tendering/OpportunityDetail/Index?noticeUID=CO1.NTC.3636143&isFromPublicArea=True&isModal=False\n","Contratos de prestación de servicios profesionales y de apoyo a la gestión","Contratación directa","Prestación de servicios profesionales y de apoyo a la gestión, o para la ejecución de trabajos artísticos que sólo puedan encomendarse a determinadas personas naturales","PRESTACION DE SERVICIOS PROFESIONALES AL FONDO DE DESARROLLO LOCAL EN EL FORTALECIMIENTO DE LAS ETAPAS DE LA GESTION PUBLICA CONTRACTUAL, EN CUMPLIMIENTO DEL PLAN DE DESARROLLO LOCAL VIGENTE","Inversión","Un nuevo contrato social y ambiental para la Bogotá del Siglo XXI",3,{"$f":"IF(ISERROR(VLOOKUP(K171,Proposito_programa!$C$2:$E$59,2,FALSE)),\" \",VLOOKUP(K171,Proposito_programa!$C$2:$E$59,2,FALSE))","v":"Movilidad social integral"},{"$f":"IF(ISERROR(VLOOKUP(K171,Proposito_programa!$C$2:$E$59,3,FALSE)),\" \",VLOOKUP(K171,Proposito_programa!$C$2:$E$59,3,FALSE))","v":"Propósito 1: Hacer un nuevo contrato social para incrementar la inclusión social, productiva y política"},"O23011605570000002099",0,1010188451,"KARENT ELIANA GUTIERREZ VARON","Persona Natural","N/A","N/A","N/A",2022,5833333,null,null,null,{"$f":"+W171+X171+Z171","v":5833333},null,"2022-12-16","2022-12-17","2022-12-20","1 mes",null,null,null,null,null,null,"En ejecución",0]
["161-2022",2022,"FDLM-SAMC-005-2022 (79487)","https://community.secop.gov.co/Public/Tendering/OpportunityDetail/Index?noticeUID=CO1.NTC.3559063&isFromPublicArea=True&isModal=False\n","Contratos de prestación de servicios","Selección abreviada","Selección abreviada por menor cuantía ","PRESTAR LOS SERVICIOS EN LA FORMACIÓN Y VINCULACIÓN A PROCESOS DE CONSTRUCCIÓN DE MEMORIA, VERDAD, REPARACIÓN INTEGRAL A VÍCTIMAS, PAZ Y RECONCILIACIÓN, EN CUMPLIMIENTO DEL PLAN DE DESARROLLO LOCAL VIGENTE DE LA LOCALIDAD DE LOS MÁRTIRES","Inversión","Un nuevo contrato social y ambiental para la Bogotá del Siglo XXI",3,{"$f":"IF(ISERROR(VLOOKUP(K172,Proposito_programa!$C$2:$E$59,2,FALSE)),\" \",VLOOKUP(K172,Proposito_programa!$C$2:$E$59,2,FALSE))","v":"Movilidad social integral"},{"$f":"IF(ISERROR(VLOOKUP(K172,Proposito_programa!$C$2:$E$59,3,FALSE)),\" \",VLOOKUP(K172,Proposito_programa!$C$2:$E$59,3,FALSE))","v":"Propósito 1: Hacer un nuevo contrato social para incrementar la inclusión social, productiva y política"},"O23011603390000002042 ",0,"79867234-5","CARLOS ALBERTO PINZÓN MOLINA","Persona Natural","N/A","N/A","N/A",2022,130767276,null,null,null,130767276,null,"2022-11-01","2022-11-02","2023-03-15","3 meses ",null,null,null,null,null,null,"En ejecución",0]
["162-2022",2022,"FDLM-SAMC-007-2022 (79905)","https://community.secop.gov.co/Public/Tendering/OpportunityDetail/Index?noticeUID=CO1.NTC.3588924&isFromPublicArea=True&isModal=False\n","Contratos de prestación de servicios","Selección abreviada","Selección abreviada por menor cuantía ","PRESTAR LOS SERVICIOS PARA IMPLEMENTAR LAS \"ESTRATEGIAS DEL CUIDADO\" EN LA LOCALIDAD DE LOS MÁRTIRES EN EL MARCO DEL PROYECTO 2065 MÁRTIRES CUIDADORA, VINCULANDO A 205 CUIDADORAS","Inversión","Un nuevo contrato social y ambiental para la Bogotá del Siglo XXI",3,{"$f":"IF(ISERROR(VLOOKUP(K173,Proposito_programa!$C$2:$E$59,2,FALSE)),\" \",VLOOKUP(K173,Proposito_programa!$C$2:$E$59,2,FALSE))","v":"Movilidad social integral"},{"$f":"IF(ISERROR(VLOOKUP(K173,Proposito_programa!$C$2:$E$59,3,FALSE)),\" \",VLOOKUP(K173,Proposito_programa!$C$2:$E$59,3,FALSE))","v":"Propósito 1: Hacer un nuevo contrato social para incrementar la inclusión social, productiva y política"},"O23011601060000002065",0,800131690,"AVANCE ORGANIZACIONAL CONSULTORES S.A.S. BIC","Persona Jurídica","N/A","N/A","N/A",2022,211123254,null,null,null,211123254,null,"2022-11-24","2022-11-25","2023-04-18","4 meses ",null,null,null,null,null,null,"En ejecución",0]
["163-2022",2022,"FDLM-SAMC-008-2022 (79742)","https://community.secop.gov.co/Public/Tendering/OpportunityDetail/Index?noticeUID=CO1.NTC.3568207&isFromPublicArea=True&isModal=False\n","Contratos de prestación de servicios","Selección abreviada","Selección abreviada por menor cuantía ","CONTRATAR A SISTEMA MONTO AGOTABLE CON PRECIOS UNITARIOS FIJOS LA INTERVENCION Y/O ADECACION DE 4 SALONES COMUNALES DE LA LOCALIDAD DE LOS MARTIRES EN EL CUMPLIMIENTO DEL PLAN DE DESARROLLO LOCAL VIGENTE","Inversión","Un nuevo contrato social y ambiental para la Bogotá del Siglo XXI",3,{"$f":"IF(ISERROR(VLOOKUP(K174,Proposito_programa!$C$2:$E$59,2,FALSE)),\" \",VLOOKUP(K174,Proposito_programa!$C$2:$E$59,2,FALSE))","v":"Movilidad social integral"},{"$f":"IF(ISERROR(VLOOKUP(K174,Proposito_programa!$C$2:$E$59,3,FALSE)),\" \",VLOOKUP(K174,Proposito_programa!$C$2:$E$59,3,FALSE))","v":"Propósito 1: Hacer un nuevo contrato social para incrementar la inclusión social, productiva y política"},"O2-30-11-605-55000000-2096",0,"900.557.017-0 ","DICOIN INGENIEROS S.A.S","Persona Jurídica","N/A","N/A","N/A",2022,261258000,null,null,null,261258000,null,"2022-11-02","2022-11-19","2023-03-18","3 meses ",null,null,null,null,null,null,"En ejecución",{"$f":"IF(ISERROR(AB174/AA174),\"-\",(AB174/AA174))","v":0}]
["164-2022",2022,"FDLM-SAMC-010-2022 (79795)","https://community.secop.gov.co/Public/Tendering/OpportunityDetail/Index?noticeUID=CO1.NTC.3595018&isFromPublicArea=True&isModal=False\n","Contratos de prestación de servicios","Selección abreviada","Selección abreviada por menor cuantía ","PRESTAR LOS SERVICIOS DE FORMACIÓN EN ACCIONES QUE PROMUEVAN DE CAMBIOS EN CULTURA CIUDADANA EN SEPARACIÓN EN LA FUENTE Y RECICLAJE, EN LA LOCALIDAD DE LOS MÁRTIRES","Inversión","Un nuevo contrato social y ambiental para la Bogotá del Siglo XXI",3,{"$f":"IF(ISERROR(VLOOKUP(K175,Proposito_programa!$C$2:$E$59,2,FALSE)),\" \",VLOOKUP(K175,Proposito_programa!$C$2:$E$59,2,FALSE))","v":"Movilidad social integral"},{"$f":"IF(ISERROR(VLOOKUP(K175,Proposito_programa!$C$2:$E$59,3,FALSE)),\" \",VLOOKUP(K175,Proposito_programa!$C$2:$E$59,3,FALSE))","v":"Propósito 1: Hacer un nuevo contrato social para incrementar la inclusión social, productiva y política"},"O2-30-11-605-55000000-2096",0,900018217,"FUNDACIÓN OTRO ROLLO SOCIAL","Persona Jurídica","N/A","N/A","N/A",2022,230716194,null,null,null,230716194,null,"2022-12-21","2022-12-22","2023-06-25","6 Meses",null,null,null,null,null,null,"En ejecución",0]
["165-2022",2022,"FDLM-142-2022 (81259)","https://community.secop.gov.co/Public/Tendering/ContractNoticePhases/View?PPI=CO1.PPI.22224195&isFromPublicArea=True&isModal=False","Contratos de prestación de servicios profesionales y de apoyo a la gestión","Contratación directa","Prestación de servicios profesionales y de apoyo a la gestión, o para la ejecución de trabajos artísticos que sólo puedan encomendarse a determinadas personas naturales","PRESTAR SUS SERVICIOS COMO PERSONAL DE APOYO EN LA CONDUCCIÓN DEL VEHÍCULO DE PROPIEDAD DEL FONDO DE DESARROLLO LOCAL DE LOS MÁRTIRES, ASIGNADO A DESPACHO.","Inversión","Un nuevo contrato social y ambiental para la Bogotá del Siglo XXI",3,{"$f":"IF(ISERROR(VLOOKUP(K176,Proposito_programa!$C$2:$E$59,2,FALSE)),\" \",VLOOKUP(K176,Proposito_programa!$C$2:$E$59,2,FALSE))","v":"Movilidad social integral"},{"$f":"IF(ISERROR(VLOOKUP(K176,Proposito_programa!$C$2:$E$59,3,FALSE)),\" \",VLOOKUP(K176,Proposito_programa!$C$2:$E$59,3,FALSE))","v":"Propósito 1: Hacer un nuevo contrato social para incrementar la inclusión social, productiva y política"},"O2-73-01-1605570000002099",0,9140998,"JHONY ENRIQUE RAMOS ALVAREZ","Persona Natural","N/A","N/A","N/A",2022,3190000,null,null,null,3190000,null,"2022-12-26","2022-12-27","PEN","1 mes",null,null,null,null,null,null,"En ejecución",0]
["166-2022",2022,"FDLM-143-2022 ( 82637 )","https://community.secop.gov.co/Public/Tendering/OpportunityDetail/Index?noticeUID=CO1.NTC.3670616&isFromPublicArea=True&isModal=False\n","Contratos de prestación de servicios profesionales y de apoyo a la gestión","Contratación directa","Prestación de servicios profesionales y de apoyo a la gestión, o para la ejecución de trabajos artísticos que sólo puedan encomendarse a determinadas personas naturales"," PRESTAR SUS SERVICIOS PROFESIONALES PARA FORTALECER TÉCNICAMENTE EL ÁREA DE GESTIÓN DEL DESARROLLO LOCAL DE LA LOCALIDAD DE LOS MÁRTIRES, EN CUMPLIMIENTO DEL PLAN DE DESARROLLO LOCAL VIGENTE","Inversión","Un nuevo contrato social y ambiental para la Bogotá del Siglo XXI",3,{"$f":"IF(ISERROR(VLOOKUP(K177,Proposito_programa!$C$2:$E$59,2,FALSE)),\" \",VLOOKUP(K177,Proposito_programa!$C$2:$E$59,2,FALSE))","v":"Movilidad social integral"},{"$f":"IF(ISERROR(VLOOKUP(K177,Proposito_programa!$C$2:$E$59,3,FALSE)),\" \",VLOOKUP(K177,Proposito_programa!$C$2:$E$59,3,FALSE))","v":"Propósito 1: Hacer un nuevo contrato social para incrementar la inclusión social, productiva y política"},"O2-73-01-1605570000002099",0,942661897,"OSVALDO EMILIO MARIN MORA","Persona Natural","N/A","N/A","N/A",2022,7744500,null,null,null,7744500,null,"2022-12-28","29/12/222","PEN","95 dias",null,null,null,null,null,null,"En ejecución",0]
["167-2022",2022,"FDLM-CMA-003-2022 (79740)","https://community.secop.gov.co/Public/Tendering/OpportunityDetail/Index?noticeUID=CO1.NTC.3614565&isFromPublicArea=True&isModal=False\n","Consultoría","Concurso de méritos","No aplica","Realizar los estudios y diseños de la malla vial de la localidad de los Mártires\", en adelante el \"Contrato\"","Funcionamiento","Un nuevo contrato social y ambiental para la Bogotá del Siglo XXI","No aplica",{"$f":"IF(ISERROR(VLOOKUP(K178,Proposito_programa!$C$2:$E$59,2,FALSE)),\" \",VLOOKUP(K178,Proposito_programa!$C$2:$E$59,2,FALSE))","v":" "},{"$f":"IF(ISERROR(VLOOKUP(K178,Proposito_programa!$C$2:$E$59,3,FALSE)),\" \",VLOOKUP(K178,Proposito_programa!$C$2:$E$59,3,FALSE))","v":" "},"00-00-00-2097",0,822006689,"CONSORCIO DISEÑOS VIALES MARTIRES","Consorcio","N/A","CONSORCIO DISEÑOS VIALES MARTIRES",0.3,2022,877120339,null,null,null,877120339,null,"2022-12-28","29/12/222","PEN","PEN",null,null,null,null,null,null,"En ejecución",0]
["168-2022",2022,"FDLM-144-2022 ( 80287 )","https://community.secop.gov.co/Public/Tendering/OpportunityDetail/Index?noticeUID=CO1.NTC.3675843&isFromPublicArea=True&isModal=False\n","Contratos de prestación de servicios profesionales y de apoyo a la gestión","Contratación directa","Prestación de servicios profesionales y de apoyo a la gestión, o para la ejecución de trabajos artísticos que sólo puedan encomendarse a determinadas personas naturales","APOYAR JURIDICAMENTE AL FONDO DE DESARROLLO LOCAL DE LOS MARTIRES EN LA IMPLEMENTACION DE ACUERDOS, PLANES Y PROGRAMAS QUE PROMUEVAN LA CONVIVENCIA ARMÓNICA ENTRE LA CIUDADANÍA Y LOS VENDEDORES INFORMALES Y ESTACIONARIOS, ORIENTADOS A LA SOLUCIÓN DE LOS CONFLICTOS DEL ESPACIO PÚBLICO IDENTIFICADOS POR LAS ALCALDÍAS LOCALES, ASI COMO LAS DEMAS ACCIONES REQUERIDAS QUE PERMITAN GARANTIZAR EL CUMPLIMIENTO DE LAS METAS ESTABLECIDAS EN EL PLAN DE DESARROLLO LOCAL VIGENTE.\"","Inversión","Un nuevo contrato social y ambiental para la Bogotá del Siglo XXI",3,{"$f":"IF(ISERROR(VLOOKUP(K179,Proposito_programa!$C$2:$E$59,2,FALSE)),\" \",VLOOKUP(K179,Proposito_programa!$C$2:$E$59,2,FALSE))","v":"Movilidad social integral"},{"$f":"IF(ISERROR(VLOOKUP(K179,Proposito_programa!$C$2:$E$59,3,FALSE)),\" \",VLOOKUP(K179,Proposito_programa!$C$2:$E$59,3,FALSE))","v":"Propósito 1: Hacer un nuevo contrato social para incrementar la inclusión social, productiva y política"},"O2-73-01-1605570000002099",0,14326392,"RAFAEL EDUARDO PEREZ ENCISO","Persona Natural","N/A","N/A","N/A",2022,6018666,null,null,null,6018666,null,"2022-12-28","29/12/222","PEN","PEN",null,null,null,null,null,null,"En ejecución",0]
["169-2022",2022,"FDLM-SAMC-009-2022 (79818)","https://community.secop.gov.co/Public/Tendering/OpportunityDetail/Index?noticeUID=CO1.NTC.3629464&isFromPublicArea=True&isModal=False\n","Contratos de prestación de servicios","Selección abreviada","Selección abreviada por menor cuantía ","Contratar los servicios para la realización, coordinación y ejecución de los eventos recreo deportivos y juegos de la localidad de los mártires en el marco del proyecto 2075 recreación y deporte para una vida más sana, según anexo técnico y demás documentos que hacen parte integral del presente proceso","Inversión","Un nuevo contrato social y ambiental para la Bogotá del Siglo XXI",3,{"$f":"IF(ISERROR(VLOOKUP(K180,Proposito_programa!$C$2:$E$59,2,FALSE)),\" \",VLOOKUP(K180,Proposito_programa!$C$2:$E$59,2,FALSE))","v":"Movilidad social integral"},{"$f":"IF(ISERROR(VLOOKUP(K180,Proposito_programa!$C$2:$E$59,3,FALSE)),\" \",VLOOKUP(K180,Proposito_programa!$C$2:$E$59,3,FALSE))","v":"Propósito 1: Hacer un nuevo contrato social para incrementar la inclusión social, productiva y política"},"O2-73-01-1605570000002099",0,830089058,"FUNDACIÓN DE CIENCIAS Y TECNOLOGÍA GLOBAL","Persona Jurídica","N/A","N/A","N/A",2022,258189030,null,null,null,258189030,null,"2022-12-28","29/12/222","PEN","PEN",null,null,null,null,null,null,"En ejecución",0]
["170-2022",2022,"FDLM-SAMC-006-2022 (79084)","https://community.secop.gov.co/Public/Tendering/OpportunityDetail/Index?noticeUID=CO1.NTC.3613043&isFromPublicArea=True&isModal=False\n","Contratos de prestación de servicios","Selección abreviada","Selección abreviada por menor cuantía ","CONTRATAR A PRECIOS UNITARIOS FIJOS POR LA MODALIDAD DE MONTO AGOTABLE EL SUMINISTRO DE DOTACIÓN LOGÍSTICA Y DE EQUIPOS ESPECIALES DE PROTECCIÓN A ORGANISMOS DE SEGURIDAD DE LA LOCALIDAD DE LOS MÁRTIRE","Inversión","Un nuevo contrato social y ambiental para la Bogotá del Siglo XXI",3,{"$f":"IF(ISERROR(VLOOKUP(K181,Proposito_programa!$C$2:$E$59,2,FALSE)),\" \",VLOOKUP(K181,Proposito_programa!$C$2:$E$59,2,FALSE))","v":"Movilidad social integral"},{"$f":"IF(ISERROR(VLOOKUP(K181,Proposito_programa!$C$2:$E$59,3,FALSE)),\" \",VLOOKUP(K181,Proposito_programa!$C$2:$E$59,3,FALSE))","v":"Propósito 1: Hacer un nuevo contrato social para incrementar la inclusión social, productiva y política"},"O23011601060000002098",0,"900778568-5 ","INVERSIONES MPX SAS ","Persona Jurídica","N/A","N/A","N/A",2022,247296000,null,null,null,247296000,null,"2022-12-28","29/12/222","PEN","PEN",null,null,null,null,null,null,"En ejecución",0]
["171-2022",2022,"FDLM-SAMC-012-2022 (81200)","https://community.secop.gov.co/Public/Tendering/OpportunityDetail/Index?noticeUID=CO1.NTC.3636529&isFromPublicArea=True&isModal=False\n","Contratos de prestación de servicios","Selección abreviada","Selección abreviada por menor cuantía "," Contratar a precios unitarios fijos por la modalidad de monto agotable, las obras y actividades para la construcción y/o adecuación y/o conservación de jardinerías, coberturas verdes, muros verdes y techos verdes de la localidad de Los Mártires.","Inversión","Un nuevo contrato social y ambiental para la Bogotá del Siglo XXI",3,{"$f":"IF(ISERROR(VLOOKUP(K182,Proposito_programa!$C$2:$E$59,2,FALSE)),\" \",VLOOKUP(K182,Proposito_programa!$C$2:$E$59,2,FALSE))","v":"Movilidad social integral"},{"$f":"IF(ISERROR(VLOOKUP(K182,Proposito_programa!$C$2:$E$59,3,FALSE)),\" \",VLOOKUP(K182,Proposito_programa!$C$2:$E$59,3,FALSE))","v":"Propósito 1: Hacer un nuevo contrato social para incrementar la inclusión social, productiva y política"},"O2-73-01-1605570000002099",0,900164390,"IMPULSAR FUNDACION SOCIAL","Persona Natural","N/A","N/A","N/A",2022,232027000,null,null,null,232027000,null,"2022-12-28","29/12/222","PEN","PEN",null,null,null,null,null,null,"En ejecución",0]
["172-2022",2022,"FDLM-145-2022 (79791)","https://community.secop.gov.co/Public/Tendering/OpportunityDetail/Index?noticeUID=CO1.NTC.3682123&isFromPublicArea=True&isModal=False\n","Contratos de prestación de servicios profesionales y de apoyo a la gestión","Contratación directa","Prestación de servicios profesionales y de apoyo a la gestión, o para la ejecución de trabajos artísticos que sólo puedan encomendarse a determinadas personas naturales","APOYAR LA FORMULACIÓN, GESTIÓN Y SEGUIMIENTO DE ACTIVIDADES ENFOCADAS A LA GESTIÓN AMBIENTAL EXTERNA, ENCAMINADAS A LA MITIGACIÓN DE LOS DIFERENTES IMPACTOS AMBIENTALES Y LA CONSERVACIÓN DE LOS RECURSOS NATURALES DE LA LOCALIDAD.\"","Inversión","Un nuevo contrato social y ambiental para la Bogotá del Siglo XXI",3,{"$f":"IF(ISERROR(VLOOKUP(K183,Proposito_programa!$C$2:$E$59,2,FALSE)),\" \",VLOOKUP(K183,Proposito_programa!$C$2:$E$59,2,FALSE))","v":"Movilidad social integral"},{"$f":"IF(ISERROR(VLOOKUP(K183,Proposito_programa!$C$2:$E$59,3,FALSE)),\" \",VLOOKUP(K183,Proposito_programa!$C$2:$E$59,3,FALSE))","v":"Propósito 1: Hacer un nuevo contrato social para incrementar la inclusión social, productiva y política"},"O2-73-01-1605570000002099",0,1070611402,"LEIDY VIVIANA MARTINEZ RAMIREZ","Persona Natural","N/A","N/A","N/A",2022,6018666,null,null,null,6018666,null,"2022-12-28","29/12/222","PEN","PEN",null,null,null,null,null,null,"En ejecución",0]
["173-2022",2022,"FDLM-146-2022 (81984)","https://community.secop.gov.co/Public/Tendering/OpportunityDetail/Index?noticeUID=CO1.NTC.3682311&isFromPublicArea=True&isModal=False","Contratos de prestación de servicios profesionales y de apoyo a la gestión","Contratación directa","Prestación de servicios profesionales y de apoyo a la gestión, o para la ejecución de trabajos artísticos que sólo puedan encomendarse a determinadas personas naturales","PRESTAR LOS SERVICIOS PROFESIONALES ADMINISTRATIVOS AL FONDO DE DESARROLLO LOCAL EN EL FORTALECIMIENTO DE LAS ETAPAS DE LA GESTION PUBLICA CONTRACTUAL, EN CUMPLIMIENTO DEL PLAN DE DESARROLLO LOCAL VIGENTE","Inversión","Un nuevo contrato social y ambiental para la Bogotá del Siglo XXI",3,{"$f":"IF(ISERROR(VLOOKUP(K184,Proposito_programa!$C$2:$E$59,2,FALSE)),\" \",VLOOKUP(K184,Proposito_programa!$C$2:$E$59,2,FALSE))","v":"Movilidad social integral"},{"$f":"IF(ISERROR(VLOOKUP(K184,Proposito_programa!$C$2:$E$59,3,FALSE)),\" \",VLOOKUP(K184,Proposito_programa!$C$2:$E$59,3,FALSE))","v":"Propósito 1: Hacer un nuevo contrato social para incrementar la inclusión social, productiva y política"},"O2-73-01-1605570000002099",0,1013596018,"JAIR ARMANDO MORA DIAZ","Persona Natural","N/A","N/A","N/A",2022,4700000,null,null,null,4700000,null,"2022-12-26","2022-12-27","PEN","PEN",null,null,null,null,null,null,"En ejecución",0]
["174-2022",2022,"FDLM-SASI-013-2022 (81274)","https://community.secop.gov.co/Public/Tendering/OpportunityDetail/Index?noticeUID=CO1.NTC.3620271&isFromPublicArea=True&isModal=False\n","Arrendamiento de bienes inmuebles","Selección abreviada","Subasta inversa ","CONTRATAR A PRECIOS UNITARIOS FIJOS POR LA MODALIDAD DE MONTO AGOTABLE LOS BIENES PARA LA IMPLEMENTACIÓN Y EJECUCIÓN DE LOS PROYECTOS PEDAGÓGICOS DE LA LÍNEA DESARROLLO INTEGRAL DE LA PRIMERA INFANCIA Y LA RELACIÓN ESCUELA, FAMILIA Y COMUNIDAD, DENTRO DEL MARCO DEL DESARROLLO DEL PROYECTO DE INVERSION No 2047 DE LA VIGENCIA 2022","Funcionamiento","Un nuevo contrato social y ambiental para la Bogotá del Siglo XXI","No aplica",{"$f":"IF(ISERROR(VLOOKUP(K185,Proposito_programa!$C$2:$E$59,2,FALSE)),\" \",VLOOKUP(K185,Proposito_programa!$C$2:$E$59,2,FALSE))","v":" "},{"$f":"IF(ISERROR(VLOOKUP(K185,Proposito_programa!$C$2:$E$59,3,FALSE)),\" \",VLOOKUP(K185,Proposito_programa!$C$2:$E$59,3,FALSE))","v":" "},"O2-30-11-601-120000002047",0,900916649,"C I WARRIORS COMPANY SAS","Persona Jurídica","N/A","N/A","N/A",2022,548093000,null,null,null,548093000,null,"2022-12-28","2022-12-29","PEN","PEN",null,null,null,null,null,null,"En ejecución",0]
["175-2022",2022,"FDLM-MC-011-2022 ( 84065 )","https://community.secop.gov.co/Public/Tendering/OpportunityDetail/Index?noticeUID=CO1.NTC.3659060&isFromPublicArea=True&isModal=False\n","Contratos de prestación de servicios","Selección abreviada","Selección abreviada por menor cuantía ","CONTRATAR EL SERVICIO PARA LA TOMA FÍSICA, VERIFICACIÓN, CLASIFICACIÓN, Y ACTUALIZACIÓN DE LA INFORMACIÓN DE BIENES MUEBLES E INMUEBLES DE PROPIEDAD Y/O A CARGO DEL FONDO DE DESARROLLO LOCAL DE MÁRTIRES Y LA MEDICIÓN POSTERIOR, DETERIORO DE LOS BIENES CLASIFICADOS COMO PROPIEDAD, PLANTA Y EQUIPO, DE CONFORMIDAD CON LAS DISPOSICIONES LEGALES VIGENTES","Inversión","Un nuevo contrato social y ambiental para la Bogotá del Siglo XXI",3,{"$f":"IF(ISERROR(VLOOKUP(K186,Proposito_programa!$C$2:$E$59,2,FALSE)),\" \",VLOOKUP(K186,Proposito_programa!$C$2:$E$59,2,FALSE))","v":"Movilidad social integral"},{"$f":"IF(ISERROR(VLOOKUP(K186,Proposito_programa!$C$2:$E$59,3,FALSE)),\" \",VLOOKUP(K186,Proposito_programa!$C$2:$E$59,3,FALSE))","v":"Propósito 1: Hacer un nuevo contrato social para incrementar la inclusión social, productiva y política"},"O2-30-11-60-5570000002099",0,900354279,"L&Q AUDITORES EXTERNOS S.A.S","Persona Jurídica","N/A","N/A","N/A",2022,15155779,null,null,null,15155779,null,"2022-12-19","2022-12-20","PEN","PEN",null,null,null,null,null,null,"En ejecución",0]
["176-2022",2022,"FDLM-LP-003-2022 (79766)","https://community.secop.gov.co/Public/Tendering/OpportunityDetail/Index?noticeUID=CO1.NTC.3609321&isFromPublicArea=True&isModal=False\n","Obra pública","Licitación pública","No aplica"," Contratar los servicios para la construcción de ciudadanía y desarrollo de capacidades para el ejercicio de derechos de las mujeres así como en acciones para la prevención del feminicidio y la violencia contra la mujer.","Funcionamiento","Un nuevo contrato social y ambiental para la Bogotá del Siglo XXI","No aplica",{"$f":"IF(ISERROR(VLOOKUP(K187,Proposito_programa!$C$2:$E$59,2,FALSE)),\" \",VLOOKUP(K187,Proposito_programa!$C$2:$E$59,2,FALSE))","v":" "},{"$f":"IF(ISERROR(VLOOKUP(K187,Proposito_programa!$C$2:$E$59,3,FALSE)),\" \",VLOOKUP(K187,Proposito_programa!$C$2:$E$59,3,FALSE))","v":" "},"00-00-00-2089",0,8300956140,"FUNVIVE 2.0","Persona Jurídica","N/A","N/A","N/A",2022,593768000,null,null,null,593768000,null,"2022-12-28","2022-12-29","PEN","PEN",null,null,null,null,null,null,"En ejecución",0]
["177-2022",2022,"FDLM-CD-008-2022 (85246)","https://community.secop.gov.co/Public/Tendering/OpportunityDetail/Index?noticeUID=CO1.NTC.3681621&isFromPublicArea=True&isModal=False\n","Contratos de prestación de servicios profesionales y de apoyo a la gestión","Contratación directa","Prestación de servicios profesionales y de apoyo a la gestión, o para la ejecución de trabajos artísticos que sólo puedan encomendarse a determinadas personas naturales","REALIZAR LOS ESTUDIOS Y DISEÑOS PARA EL EDIFICIO DE LA CASA DE LA CULTURA DE LA LOCALIDAD DE LOS MÁRTIRES. ","Funcionamiento","Un nuevo contrato social y ambiental para la Bogotá del Siglo XXI","No aplica",{"$f":"IF(ISERROR(VLOOKUP(K188,Proposito_programa!$C$2:$E$59,2,FALSE)),\" \",VLOOKUP(K188,Proposito_programa!$C$2:$E$59,2,FALSE))","v":" "},{"$f":"IF(ISERROR(VLOOKUP(K188,Proposito_programa!$C$2:$E$59,3,FALSE)),\" \",VLOOKUP(K188,Proposito_programa!$C$2:$E$59,3,FALSE))","v":" "},"00-00-00-2089",0,899999230,"UNIVERSIDAD DISTRITAL FRANCISCO JOSE DE CALDAS","Persona Jurídica","N/A","N/A","N/A",2022,390823000,null,null,null,390823000,null,"2021-12-29","PEN","PEN","PEN",null,null,null,null,null,null,"En ejecución",0]
["178-2022",2022,"FDLM-CMA-002-2022 (79741)","https://community.secop.gov.co/Public/Tendering/OpportunityDetail/Index?noticeUID=CO1.NTC.3630422&isFromPublicArea=True&isModal=False\n","Consultoría","Concurso de méritos","No aplica","Realizar la interventoría técnica, administrativa, financiera, jurídica, social, ambiental y siso al contrato de obra pública que tendrá por objeto contratar los estudios y diseños de la malla vial de la localidad de los mártires","Funcionamiento","Un nuevo contrato social y ambiental para la Bogotá del Siglo XXI","No aplica",{"$f":"IF(ISERROR(VLOOKUP(K189,Proposito_programa!$C$2:$E$59,2,FALSE)),\" \",VLOOKUP(K189,Proposito_programa!$C$2:$E$59,2,FALSE))","v":" "},{"$f":"IF(ISERROR(VLOOKUP(K189,Proposito_programa!$C$2:$E$59,3,FALSE)),\" \",VLOOKUP(K189,Proposito_programa!$C$2:$E$59,3,FALSE))","v":" "},"00-00-00-2097",0,830515396,"PROYECTOS URBANOS Y CONSTRUCCIONES DEL CARIBE S.A.S.","Persona Jurídica","N/A","N/A","N/A",2022,95588000,null,null,null,95588000,null,"2021-12-29","PEN","PEN","PEN",null,null,null,null,null,null,"Celebrado o por iniciar",0]
["179-2022",2022,"FDLM-CD-009-2022 (85523)","https://community.secop.gov.co/Public/Tendering/OpportunityDetail/Index?noticeUID=CO1.NTC.3684947&isFromPublicArea=True&isModal=False\n","Contratos de prestación de servicios profesionales y de apoyo a la gestión","Contratación directa","Prestación de servicios profesionales y de apoyo a la gestión, o para la ejecución de trabajos artísticos que sólo puedan encomendarse a determinadas personas naturales","RESTAR LOS SERVICIOS PARA VINCULAR MINIMO 150 PERSONAS CON DISCAPACIDAD, CUIDADORES Y CUIDADORAS, EN ACTIVIDADES ALTERNATIVAS DE SALUD Y 124 PERSONAS A LAS ACCIONES DESARROLLADAS DESDE LOS DISPOSITIVOS DE BASE COMUNITARIA EN RESPUESTA AL CONSUMO DE SPA, EN LA LOCALIDAD DE LOS MARTIRES, EN CUMPLIMIENTO DEL PLAN DE  DESARROLLO VIGENTE","Funcionamiento","Un nuevo contrato social y ambiental para la Bogotá del Siglo XXI","No aplica",{"$f":"IF(ISERROR(VLOOKUP(K190,Proposito_programa!$C$2:$E$59,2,FALSE)),\" \",VLOOKUP(K190,Proposito_programa!$C$2:$E$59,2,FALSE))","v":" "},{"$f":"IF(ISERROR(VLOOKUP(K190,Proposito_programa!$C$2:$E$59,3,FALSE)),\" \",VLOOKUP(K190,Proposito_programa!$C$2:$E$59,3,FALSE))","v":" "},"00-00-00-2089",0,901417108,"ALIANZA COLOMBIANA DE INSTITUCIONES PUBLICAS DE EDUCACION SUPERIOR RED SUMMA - CONSUMA SPA ","Persona Jurídica","N/A","N/A","N/A",2022,576058000,null,null,null,576058000,null,"2021-12-29","PEN","PEN","PEN",null,null,null,null,null,null,"Celebrado o por iniciar",0]
["180-2022",2022,"FDLM-CD-CCI-010-2022","https://community.secop.gov.co/Public/Tendering/OpportunityDetail/Index?noticeUID=CO1.NTC.3685669&isFromPublicArea=True&isModal=False\n","Contratos de prestación de servicios profesionales y de apoyo a la gestión","Contratación directa","Prestación de servicios profesionales y de apoyo a la gestión, o para la ejecución de trabajos artísticos que sólo puedan encomendarse a determinadas personas naturales","AUNAR ESFUERZOS PARA REALIZAR LA PLANEACIÓN,\nORGANIZACIÓN, COORDINACIÓN Y EJECUCIÓN DE LAS\nACCIONES DE FORTALECIMIENTO, REACTIVACIÓN,\nTRANSFORMACIÓN PRODUCTIVA DE MIPYMES Y\nEMPRENDIMIENTOS DE LA LOCALIDAD DE MÁRTIRES EN\nEL MARCO DEL PROYECTO 2060 LOCALIDAD\nEMPRENDEDORA Y SOSTENIBLE, SEGUN LOS ANEXOS\nTECNICOS Y DEMAS DOCUMENTOS QUE HACEN PARTE\nINTEGRAL DEL PRESENTE PROCESO","Funcionamiento","Un nuevo contrato social y ambiental para la Bogotá del Siglo XXI","No aplica",{"$f":"IF(ISERROR(VLOOKUP(K191,Proposito_programa!$C$2:$E$59,2,FALSE)),\" \",VLOOKUP(K191,Proposito_programa!$C$2:$E$59,2,FALSE))","v":" "},{"$f":"IF(ISERROR(VLOOKUP(K191,Proposito_programa!$C$2:$E$59,3,FALSE)),\" \",VLOOKUP(K191,Proposito_programa!$C$2:$E$59,3,FALSE))","v":" "},"00-00-00-2089",0,860403137,"ORGANIZACION DE ESTADOS IBEROAMERICANOS OEI","Persona Jurídica","N/A","N/A","N/A",2022,1412120497,null,null,null,1412120497,null,"2021-12-29","PEN","PEN","PEN",null,null,null,null,null,null,"Celebrado o por iniciar",0]
["181-2022",2022,"FDLM-CD-011-2022 (85525)","https://community.secop.gov.co/Public/Tendering/OpportunityDetail/Index?noticeUID=CO1.NTC.3689636&isFromPublicArea=True&isModal=False\n","Contratos de prestación de servicios profesionales y de apoyo a la gestión","Contratación directa","Prestación de servicios profesionales y de apoyo a la gestión, o para la ejecución de trabajos artísticos que sólo puedan encomendarse a determinadas personas naturales","VINCULAR PERSONAS DE LA LOCALIDAD DE LOS MÁRTIRES A LAS ACCIONES Y ESTRATEGIAS DE RECONOCIMIENTO DE LOS SABERES ANCESTRALES, EN MARCO DEL PROYECTO 2043- AYUDAS TECNICAS Y MEDICINA ANCESTRAL","Funcionamiento","Un nuevo contrato social y ambiental para la Bogotá del Siglo XXI","No aplica",{"$f":"IF(ISERROR(VLOOKUP(K192,Proposito_programa!$C$2:$E$59,2,FALSE)),\" \",VLOOKUP(K192,Proposito_programa!$C$2:$E$59,2,FALSE))","v":" "},{"$f":"IF(ISERROR(VLOOKUP(K192,Proposito_programa!$C$2:$E$59,3,FALSE)),\" \",VLOOKUP(K192,Proposito_programa!$C$2:$E$59,3,FALSE))","v":" "},"O2-30-11-601-06-000000-2043",0,9003803030,"ASOCIACIÓN AFROCULTURAL NEFTALÍ MOSQUERA","Persona Jurídica","N/A","N/A","N/A",2022,59000000,null,null,null,59000000,null,"2021-12-29","PEN","PEN","PEN",null,null,null,null,null,null,"Celebrado o por iniciar",0]
["182-2022",2022,"FDLM-CD-012-2022 (85526)","https://community.secop.gov.co/Public/Tendering/OpportunityDetail/Index?noticeUID=CO1.NTC.3689635&isFromPublicArea=True&isModal=False\n","Contratos de prestación de servicios profesionales y de apoyo a la gestión","Contratación directa","Prestación de servicios profesionales y de apoyo a la gestión, o para la ejecución de trabajos artísticos que sólo puedan encomendarse a determinadas personas naturales","VINCULAR PERSONAS DE LA LOCALIDAD DE LOS MÁRTIRES A LAS ACCIONES Y ESTRATEGIAS DE RECONOCIMIENTO DE LOS SABERES ANCESTRALES, EN MARCO DEL PROYECTO 2043- AYUDAS TECNICAS Y MEDICINA ANCESTRAL","Funcionamiento","Un nuevo contrato social y ambiental para la Bogotá del Siglo XXI","No aplica",{"$f":"IF(ISERROR(VLOOKUP(K193,Proposito_programa!$C$2:$E$59,2,FALSE)),\" \",VLOOKUP(K193,Proposito_programa!$C$2:$E$59,2,FALSE))","v":" "},{"$f":"IF(ISERROR(VLOOKUP(K193,Proposito_programa!$C$2:$E$59,3,FALSE)),\" \",VLOOKUP(K193,Proposito_programa!$C$2:$E$59,3,FALSE))","v":" "},"O2-30-11-601-06-000000-2043",0,830032429,"CABILDO INDIGENA INGA DE BOGOTA, D.C.","Persona Jurídica","N/A","N/A","N/A",2022,59000000,null,null,null,59000000,null,"2021-12-29","PEN","PEN","PEN",null,null,null,null,null,null,"Celebrado o por iniciar",0]
["183-2022",2022,"FDLM-SAMC-011-2022 (79797)","https://community.secop.gov.co/Public/Tendering/OpportunityDetail/Index?noticeUID=CO1.NTC.3650046&isFromPublicArea=True&isModal=False","Contratos de prestación de servicios","Selección abreviada","Selección abreviada por menor cuantía ","PRESTAR LOS SERVICIOS PARA FORMULAR TRES (3) PROCESOS COMUNITARIOS DE EDUCACIÓN AMBIENTAL PROCEDA, EN LA LOCALIDAD DE LOS MÁRTIRES.","Inversión","Un nuevo contrato social y ambiental para la Bogotá del Siglo XXI",3,{"$f":"IF(ISERROR(VLOOKUP(K194,Proposito_programa!$C$2:$E$59,2,FALSE)),\" \",VLOOKUP(K194,Proposito_programa!$C$2:$E$59,2,FALSE))","v":"Movilidad social integral"},{"$f":"IF(ISERROR(VLOOKUP(K194,Proposito_programa!$C$2:$E$59,3,FALSE)),\" \",VLOOKUP(K194,Proposito_programa!$C$2:$E$59,3,FALSE))","v":"Propósito 1: Hacer un nuevo contrato social para incrementar la inclusión social, productiva y política"},"O2-30-11-60-5570000002099",0,830089058," FUNCITEG","Persona Jurídica","N/A","N/A","N/A",2022,204999574,null,null,null,204999574,null,"2021-12-29","PEN","PEN","PEN",null,null,null,null,null,null,"Celebrado o por iniciar",0]
["184-2022",2022,"FDLM-SAMC-014-2022 (81235)","https://community.secop.gov.co/Public/Tendering/OpportunityDetail/Index?noticeUID=CO1.NTC.3650046&isFromPublicArea=True&isModal=False\n","Contratos de prestación de servicios","Selección abreviada","Selección abreviada por menor cuantía ","PRESTAR LOS SERVICIOS PARA LA IMPLEMENTACIÓN DE 3 ACCIONES DE FOMENTO PARA LA AGRICULTURA URBANA EN CUMPLIMIENTO DEL PLAN DE DESARROLLO LOCAL VIGENTE DE LA LOCALIDAD DE LOS MÁRTIRES","Inversión","Un nuevo contrato social y ambiental para la Bogotá del Siglo XXI",3,{"$f":"IF(ISERROR(VLOOKUP(K195,Proposito_programa!$C$2:$E$59,2,FALSE)),\" \",VLOOKUP(K195,Proposito_programa!$C$2:$E$59,2,FALSE))","v":"Movilidad social integral"},{"$f":"IF(ISERROR(VLOOKUP(K195,Proposito_programa!$C$2:$E$59,3,FALSE)),\" \",VLOOKUP(K195,Proposito_programa!$C$2:$E$59,3,FALSE))","v":"Propósito 1: Hacer un nuevo contrato social para incrementar la inclusión social, productiva y política"},"O2-30-11-60-5570000002099",0,830133329,"FUNDESCO","Persona Jurídica","N/A","N/A","N/A",2022,204999574,null,null,null,204999574,null,"2021-12-29","PEN","PEN","PEN",null,null,null,null,null,null,"Celebrado o por iniciar",0]
["185-2022",2022,"FDLM-CD-013-2022.","https://community.secop.gov.co/Public/Tendering/OpportunityDetail/Index?noticeUID=CO1.NTC.3689683&isFromPublicArea=True&isModal=False","Contratos de prestación de servicios profesionales y de apoyo a la gestión","Contratación directa","Prestación de servicios profesionales y de apoyo a la gestión, o para la ejecución de trabajos artísticos que sólo puedan encomendarse a determinadas personas naturales","ANUAR ESFUERZOS PARA REALIZAR LA PLANEACIÓN, ORGANIZACIÓN, COORDINACIÓN Y EJECUCIÓN DE LAS ACCIONES DE FORTALECIMIENTO, REACTIVACIÓN, TRANSFORMACIÓN PRODUCTIVA Y REVITALIZACIÓN DE MIPYMES Y EMPRENDIMIENTOS DE LA LOCALIDAD DE MÁRTIRES EN EL MARCO DEL PROYECTO 2060 LOCALIDAD EMPRENDEDORA Y SOSTENIBLE, SEGUN LOS ANEXOS TECNICOS Y DEMAS DOCUMENTOS QUE HACEN PARTE INTEGRAL DEL PRESENTE PROCESO.","Funcionamiento","Un nuevo contrato social y ambiental para la Bogotá del Siglo XXI","No aplica",{"$f":"IF(ISERROR(VLOOKUP(K196,Proposito_programa!$C$2:$E$59,2,FALSE)),\" \",VLOOKUP(K196,Proposito_programa!$C$2:$E$59,2,FALSE))","v":" "},{"$f":"IF(ISERROR(VLOOKUP(K196,Proposito_programa!$C$2:$E$59,3,FALSE)),\" \",VLOOKUP(K196,Proposito_programa!$C$2:$E$59,3,FALSE))","v":" "},"00-00-00-2089",0,901100455,"ALDESARROLLO","Persona Jurídica","N/A","N/A","N/A",2022,1412120497,null,null,null,1412120497,null,"2021-12-29","PEN","PEN","PEN",null,null,null,null,null,null,"Celebrado o por iniciar",0]
["OC 86551",2022,"OC 86551","https://colombiacompra.gov.co/tienda-virtual-del-estado-colombiano/ordenes-compra/86551","Compraventa de bienes muebles","Selección abreviada","Acuerdo marco de precios ","ORDEN DE COMPRA POR ACUERDO MARCO DE PRECIOS PARA ADQUIRIR LOS SERVICIOS DE ASEO Y CAFETERIA FDLM.","Funcionamiento","Un nuevo contrato social y ambiental para la Bogotá del Siglo XXI","No aplica",{"$f":"IF(ISERROR(VLOOKUP(K197,Proposito_programa!$C$2:$E$59,2,FALSE)),\" \",VLOOKUP(K197,Proposito_programa!$C$2:$E$59,2,FALSE))","v":" "},{"$f":"IF(ISERROR(VLOOKUP(K197,Proposito_programa!$C$2:$E$59,3,FALSE)),\" \",VLOOKUP(K197,Proposito_programa!$C$2:$E$59,3,FALSE))","v":" "},"13-1020202030502",0,9002295032,"OUTSOURCING SEASIN LTDA","Persona Jurídica","N/A","N/A","N/A",2022,72507494,null,1,17344880,89852374,72507494,"2022-08-10","2022-08-11","2022-12-22","12 Meses",1,"TRES MESES",null,null,null,null,"En ejecución",0.80696247380174957]
["OC 93938",2022,"OC 93938","https://colombiacompra.gov.co/tienda-virtual-del-estado-colombiano/ordenes-compra/93938","Compraventa de bienes muebles","Selección abreviada","Acuerdo marco de precios ","La compraventa de licencias atraves de la plataforma de la tienda virtual del estado colombiano por instrumento de agregación de demanda para la adquisición de software por catalogo que requieren las entidades estatales CCE139-IAD-2020","Funcionamiento","Un nuevo contrato social y ambiental para la Bogotá del Siglo XXI","No aplica",{"$f":"IF(ISERROR(VLOOKUP(K198,Proposito_programa!$C$2:$E$59,2,FALSE)),\" \",VLOOKUP(K198,Proposito_programa!$C$2:$E$59,2,FALSE))","v":" "},{"$f":"IF(ISERROR(VLOOKUP(K198,Proposito_programa!$C$2:$E$59,3,FALSE)),\" \",VLOOKUP(K198,Proposito_programa!$C$2:$E$59,3,FALSE))","v":" "},"21201010050203/0101",0,901399373,"UNION TEMPORAL DELL EMC","Unión Temporal","N/A","UNION TEMPORAL DELL EMC",0.5,2022,69022800,null,null,null,69022800,null,"2022-07-26","2022-07-27","2022-09-30","2 Meses",null,null,null,null,null,null,"En ejecución",0]
["OC 94581",2022,"OC 94581","https://colombiacompra.gov.co/tienda-virtual-del-estado-colombiano/ordenes-compra/94581","Compraventa de bienes muebles","Selección abreviada","Acuerdo marco de precios ","SUMINISTRO DE COMBUSTIBLE PARA LAS PLANTAS ELECTRICAS Y LOS VEHICULOS PERTENECIENTES AL PARQUE AUTOMOTOR DEL FONDO DE DESARROLLO LOCAL DE LOS MARTIRES","Funcionamiento","Un nuevo contrato social y ambiental para la Bogotá del Siglo XXI","No aplica",{"$f":"IF(ISERROR(VLOOKUP(K199,Proposito_programa!$C$2:$E$59,2,FALSE)),\" \",VLOOKUP(K199,Proposito_programa!$C$2:$E$59,2,FALSE))","v":" "},{"$f":"IF(ISERROR(VLOOKUP(K199,Proposito_programa!$C$2:$E$59,3,FALSE)),\" \",VLOOKUP(K199,Proposito_programa!$C$2:$E$59,3,FALSE))","v":" "},"0212020100303333/1101",0,811009788,"DISTRACOM","Persona Jurídica","N/A","CONSORCIO INTERARES/NICK RANDY ALMEIDA GAMARRA",0.3,2022,13000000,null,null,null,13000000,null,"2022-08-10","2022-08-11","2023-02-16","7 Meses",null,null,null,null,null,null,"En ejecución",0]
["OC 94996",2022,"OC 94996","https://colombiacompra.gov.co/tienda-virtual-del-estado-colombiano/ordenes-compra/94996","Compraventa de bienes muebles","Selección abreviada","Acuerdo marco de precios ","Seguros Generales (Servicios de\nseguros de vehículos automotores, Servicios de\nseguros contra incendio, terremoto o sustracción,\nServicios de seguros generales de responsabilidad\ncivil)\n","Funcionamiento","Un nuevo contrato social y ambiental para la Bogotá del Siglo XXI","No aplica",{"$f":"IF(ISERROR(VLOOKUP(K200,Proposito_programa!$C$2:$E$59,2,FALSE)),\" \",VLOOKUP(K200,Proposito_programa!$C$2:$E$59,2,FALSE))","v":" "},{"$f":"IF(ISERROR(VLOOKUP(K200,Proposito_programa!$C$2:$E$59,3,FALSE)),\" \",VLOOKUP(K200,Proposito_programa!$C$2:$E$59,3,FALSE))","v":" "},"O212020200701030571351",0,860524654,"ASEGURADORA SOLIDARIA DE COLOMBIA LTD","Persona Jurídica","N/A","CONSORCIO DISEÑOS VIALES MARTIRES",0.3,2022,23937455,null,null,null,23937455,null,"2022-08-23","2022-08-24","2023-08-05","331 Dias",null,null,null,null,null,null,"En ejecución",0]
["OC103287",2022,"OC 103287 ","https://colombiacompra.gov.co/tienda-virtual-del-estado-colombiano/ordenes-compra/103287","Compraventa de bienes muebles","Selección abreviada","Acuerdo marco de precios ","CONTRATAR A PRECIOS UNITARIOS FIJOS Y A MONTO AGOTABLE EL SUMINISTRO DE ELEMENTOS Y SERVICIOS PARA LAS INTERVENCIONES EN EL MARCO DE LA ESTRATEGIA JUNTOS CUIDAMOS BOGOTÁ “CONSERVACION DEL ESPACIO PUBLICO” DEL PROYECTO 2097  DEL PLAN DE DESARROLLO LOCAL DE LOS MÁRTIRES 2021-2022","Funcionamiento","Un nuevo contrato social y ambiental para la Bogotá del Siglo XXI","No aplica",{"$f":"IF(ISERROR(VLOOKUP(K201,Proposito_programa!$C$2:$E$59,2,FALSE)),\" \",VLOOKUP(K201,Proposito_programa!$C$2:$E$59,2,FALSE))","v":" "},{"$f":"IF(ISERROR(VLOOKUP(K201,Proposito_programa!$C$2:$E$59,3,FALSE)),\" \",VLOOKUP(K201,Proposito_programa!$C$2:$E$59,3,FALSE))","v":" "},"N/A",0,900117244,"ARINTIA GROUP S.A.S","Persona Jurídica","N/A","N/A","N/A",2022,28000000,null,null,null,28000000,null,"2021-12-29","PEN","PEN","PEN",null,null,null,null,null,null,"Celebrado o por iniciar",0]
["OC103387",2022,"OC103387","https://colombiacompra.gov.co/tienda-virtual-del-estado-colombiano/ordenes-compra/103387","Compraventa de bienes muebles","Selección abreviada","Acuerdo marco de precios ","Adquirir una (1) impresora para la elaboración de carnet de identificación para funcionarios y contratistas","Funcionamiento","Un nuevo contrato social y ambiental para la Bogotá del Siglo XXI","No aplica",{"$f":"IF(ISERROR(VLOOKUP(K202,Proposito_programa!$C$2:$E$59,2,FALSE)),\" \",VLOOKUP(K202,Proposito_programa!$C$2:$E$59,2,FALSE))","v":" "},{"$f":"IF(ISERROR(VLOOKUP(K202,Proposito_programa!$C$2:$E$59,3,FALSE)),\" \",VLOOKUP(K202,Proposito_programa!$C$2:$E$59,3,FALSE))","v":" "},"N/A",0,"830037946\n","PANAMERICANA LIBRERIA Y PAPELERIA S.A. - ADQ MAQUINA DE CARNET","Persona Jurídica","N/A","N/A","N/A",2022,13090000,null,null,null,13090000,null,"2021-12-29","PEN","PEN","PEN",null,null,null,null,null,null,"Celebrado o por iniciar",0]
["OC103424",2022,"OC103424","https://colombiacompra.gov.co/tienda-virtual-del-estado-colombiano/ordenes-compra/103424","Compraventa de bienes muebles","Selección abreviada","Acuerdo marco de precios ","LA COMPRAVENTA DE LICENCIAS A TRAVÉS DE LA PLATAFORMA DE LA TIENDA VIRTUAL DEL ESTADO COLOMBIANO. ","Funcionamiento","Un nuevo contrato social y ambiental para la Bogotá del Siglo XXI","No aplica",{"$f":"IF(ISERROR(VLOOKUP(K203,Proposito_programa!$C$2:$E$59,2,FALSE)),\" \",VLOOKUP(K203,Proposito_programa!$C$2:$E$59,2,FALSE))","v":" "},{"$f":"IF(ISERROR(VLOOKUP(K203,Proposito_programa!$C$2:$E$59,3,FALSE)),\" \",VLOOKUP(K203,Proposito_programa!$C$2:$E$59,3,FALSE))","v":" "},"N/A",0,"830037946\n","PANAMERICANA LIBRERIA Y PAPELERIA S.A. - ADQ MAQUINA DE CARNET","Persona Jurídica","N/A","N/A","N/A",2022,87000000,null,null,null,{"$f":"+W203+X203+Z203","v":87000000},null,"2021-12-29","PEN","PEN","PEN",null,null,null,null,null,null,"Celebrado o por iniciar",0]
["OC103504",2022,"OC103504","https://colombiacompra.gov.co/tienda-virtual-del-estado-colombiano/ordenes-compra/103504","Compraventa de bienes muebles","Selección abreviada","Acuerdo marco de precios ","Adquirir a titulo de compraventa,\nradios de comunicación de dos vías con sus\naccesorios con destino al Fondo de Desarrollo\nLocal de Mártires\n","Funcionamiento","Un nuevo contrato social y ambiental para la Bogotá del Siglo XXI","No aplica",{"$f":"IF(ISERROR(VLOOKUP(K204,Proposito_programa!$C$2:$E$59,2,FALSE)),\" \",VLOOKUP(K204,Proposito_programa!$C$2:$E$59,2,FALSE))","v":" "},{"$f":"IF(ISERROR(VLOOKUP(K204,Proposito_programa!$C$2:$E$59,3,FALSE)),\" \",VLOOKUP(K204,Proposito_programa!$C$2:$E$59,3,FALSE))","v":" "},"N/A",0,"8002374121\n","FERRICENTROS - RADIOS DE COMUNICACIONES \n","Persona Jurídica","N/A","N/A","N/A",2022,26987952,null,null,null,26987952,null,"2021-12-29","PEN","PEN","PEN",null,null,null,null,null,null,"Celebrado o por iniciar",0]
["OC103509",2022,"OC103509","https://colombiacompra.gov.co/tienda-virtual-del-estado-colombiano/ordenes-compra/103509","Compraventa de bienes muebles","Selección abreviada","Acuerdo marco de precios ","COMPRAVENTA DE\nCOMPUTADORES A TRAVÉS DE LA PLATAFORMA\nDE LA TIENDA VIRTUAL DEL ESTADO\nCOLOMBIANO POR ACUERDO MARCO DE\nPRECIOS PARA LA ADQUISICIÓN DE\nCOMPUTADORES POR CATÁLOGO QUE\nREQUIERAN LAS ENTIDADES ESTATALES CCE280-AMP-2021”","Funcionamiento","Un nuevo contrato social y ambiental para la Bogotá del Siglo XXI","No aplica",{"$f":"IF(ISERROR(VLOOKUP(K205,Proposito_programa!$C$2:$E$59,2,FALSE)),\" \",VLOOKUP(K205,Proposito_programa!$C$2:$E$59,2,FALSE))","v":" "},{"$f":"IF(ISERROR(VLOOKUP(K205,Proposito_programa!$C$2:$E$59,3,FALSE)),\" \",VLOOKUP(K205,Proposito_programa!$C$2:$E$59,3,FALSE))","v":" "},"N/A",0,804000673,"HARDWARE ASESORIAS SOFTWARE LTDA ","Persona Jurídica","N/A","N/A","N/A",2022,33076193.079999998,null,null,null,33076193.079999998,null,"2021-12-29","PEN","PEN","PEN",null,null,null,null,null,null,"Celebrado o por iniciar",0]
["OC103510",2022,"OC103510","https://colombiacompra.gov.co/tienda-virtual-del-estado-colombiano/ordenes-compra/103510","Compraventa de bienes muebles","Selección abreviada","Acuerdo marco de precios ","COMPRAVENTA DE\nCOMPUTADORES A TRAVÉS DE LA PLATAFORMA\nDE LA TIENDA VIRTUAL DEL ESTADO\nCOLOMBIANO POR ACUERDO MARCO DE\nPRECIOS PARA LA ADQUISICIÓN DE\nCOMPUTADORES POR CATÁLOGO QUE\nREQUIERAN LAS ENTIDADES ESTATALES CCE280-AMP-2021.\n","Funcionamiento","Un nuevo contrato social y ambiental para la Bogotá del Siglo XXI","No aplica",{"$f":"IF(ISERROR(VLOOKUP(K206,Proposito_programa!$C$2:$E$59,2,FALSE)),\" \",VLOOKUP(K206,Proposito_programa!$C$2:$E$59,2,FALSE))","v":" "},{"$f":"IF(ISERROR(VLOOKUP(K206,Proposito_programa!$C$2:$E$59,3,FALSE)),\" \",VLOOKUP(K206,Proposito_programa!$C$2:$E$59,3,FALSE))","v":" "},"N/A",0,900032888,"DISCOMPUCOL S.A.S","Persona Jurídica","N/A","N/A","N/A",2022,33076193.079999998,null,null,null,33076193.079999998,null,"2021-12-29","PEN","PEN","PEN",null,null,null,null,null,null,"Celebrado o por iniciar",0]
["Total",null,null,null,null,null,null,null,null,null,null,null,null,null,null,null,null,null,null,null,null,null,{"$f":"SUM(W15:W206)","v":20493635771.160004},{"$f":"SUM(X15:X206)","v":23400000},{"$f":"SUM(Y15:Y206)","v":134375},{"$f":"SUM(Z15:Z206)","v":972757442},{"$f":"SUM(AA15:AA206)","v":21489793213.160004},null,null,null,null,null,null,null,null,null,null,null,null,{"$f":"SUM(AN15:AN206)","v":115.30926375227833}]
[]
[null,null,null,null,null,null,null,null,null,null,null,null,null,null,null,null,null,null,null,null,null,null,null,null,null,null,{"$f":"SUBTOTAL(9,AA14:AA206)","v":21536347213.160004},{"$f":"SUBTOTAL(9,AB14:AB206)","v":5539889286}]

{"sheet":"Proposito_programa","index":1,"n_rows":59,"n_cols":5,"rows_kept":59,"cut":false,"hidden":false,"merged":[]}
[]
[null,"PDD","No. Programa","Programa","Propósito"]
["Acuerdo 761 2020","Un Nuevo Contrato Social y Ambiental para la Bogotá del Siglo XXI",1,"Subsidios y transferencias para la equidad","Propósito 1: Hacer un nuevo contrato social para incrementar la inclusión social, productiva y política"]
["Pag. 51","Un Nuevo Contrato Social y Ambiental para la Bogotá del Siglo XXI",{"$f":"+C3+1","v":2},"Igualdad de oportunidades y desarrollo de capacidades para las mujeres","Propósito 1: Hacer un nuevo contrato social para incrementar la inclusión social, productiva y política"]
[null,"Un Nuevo Contrato Social y Ambiental para la Bogotá del Siglo XXI",{"$f":"+C4+1","v":3},"Movilidad social integral","Propósito 1: Hacer un nuevo contrato social para incrementar la inclusión social, productiva y política"]
[null,"Un Nuevo Contrato Social y Ambiental para la Bogotá del Siglo XXI",4,"Prevención de la exclusión por razones étnicas, religiosas, sociales, políticas y de orientación sexual","Propósito 1: Hacer un nuevo contrato social para incrementar la inclusión social, productiva y política"]
[null,"Un Nuevo Contrato Social y Ambiental para la Bogotá del Siglo XXI",5,"Promoción de la igualdad, el desarrollo de capacidades y el reconocimiento de las mujeres","Propósito 1: Hacer un nuevo contrato social para incrementar la inclusión social, productiva y política"]
[null,"Un Nuevo Contrato Social y Ambiental para la Bogotá del Siglo XXI",6,"Sistema Distrital de Cuidado","Propósito 1: Hacer un nuevo contrato social para incrementar la inclusión social, productiva y política"]
[null,"Un Nuevo Contrato Social y Ambiental para la Bogotá del Siglo XXI",7,"Mejora de la gestión de instituciones de salud","Propósito 1: Hacer un nuevo contrato social para incrementar la inclusión social, productiva y política"]
[null,"Un Nuevo Contrato Social y Ambiental para la Bogotá del Siglo XXI",8,"Prevención y atención de maternidad temprana","Propósito 1: Hacer un nuevo contrato social para incrementar la inclusión social, productiva y política"]
[null,"Un Nuevo Contrato Social y Ambiental para la Bogotá del Siglo XXI",9,"Prevención y cambios para mejorar la salud de la población","Propósito 1: Hacer un nuevo contrato social para incrementar la inclusión social, productiva y política"]
[null,"Un Nuevo Contrato Social y Ambiental para la Bogotá del Siglo XXI",10,"Salud para la vida y el bienestar","Propósito 1: Hacer un nuevo contrato social para incrementar la inclusión social, productiva y política"]
[null,"Un Nuevo Contrato Social y Ambiental para la Bogotá del Siglo XXI",11,"Salud y bienestar para niñas y niños","Propósito 1: Hacer un nuevo contrato social para incrementar la inclusión social, productiva y política"]
[null,"Un Nuevo Contrato Social y Ambiental para la Bogotá del Siglo XXI",12,"Educación inicial: Bases sólidas para la vida.","Propósito 1: Hacer un nuevo contrato social para incrementar la inclusión social, productiva y política"]
[null,"Un Nuevo Contrato Social y Ambiental para la Bogotá del Siglo XXI",13,"Educación para todos y todas: acceso y permanencia con equidad y énfasis en educación rural","Propósito 1: Hacer un nuevo contrato social para incrementar la inclusión social, productiva y política"]
[null,"Un Nuevo Contrato Social y Ambiental para la Bogotá del Siglo XXI",14,"Formación integral: más y mejor tiempo en los colegios","Propósito 1: Hacer un nuevo contrato social para incrementar la inclusión social, productiva y política"]
[null,"Un Nuevo Contrato Social y Ambiental para la Bogotá del Siglo XXI",15,"Plan Distrital de Lectura, Escritura y Oralidad: \"Leer para la vida\"","Propósito 1: Hacer un nuevo contrato social para incrementar la inclusión social, productiva y política"]
[null,"Un Nuevo Contrato Social y Ambiental para la Bogotá del Siglo XXI",16,"Transformación pedagógica y mejoramiento de la gestión educativa. Es con los maestros y maestras.","Propósito 1: Hacer un nuevo contrato social para incrementar la inclusión social, productiva y política"]
[null,"Un Nuevo Contrato Social y Ambiental para la Bogotá del Siglo XXI",17,"Jóvenes con capacidades: Proyecto de vida para la ciudadanía, la innovación y el trabajo del siglo XXI","Propósito 1: Hacer un nuevo contrato social para incrementar la inclusión social, productiva y política"]
[null,"Un Nuevo Contrato Social y Ambiental para la Bogotá del Siglo XXI",18,"Cierre de brechas para la inclusión productiva urbano rural","Propósito 1: Hacer un nuevo contrato social para incrementar la inclusión social, productiva y política"]
[null,"Un Nuevo Contrato Social y Ambiental para la Bogotá del Siglo XXI",19,"Vivienda y entornos dignos en el territorio urbano y rural","Propósito 1: Hacer un nuevo contrato social para incrementar la inclusión social, productiva y política"]
[null,"Un Nuevo Contrato Social y Ambiental para la Bogotá del Siglo XXI",20,"Bogotá, referente en cultura, deporte, recreación y actividad física, con parques para el desarrollo y la salud","Propósito 1: Hacer un nuevo contrato social para incrementar la inclusión social, productiva y política"]
[null,"Un Nuevo Contrato Social y Ambiental para la Bogotá del Siglo XXI",21,"Creación y vida cotidiana: Apropiación ciudadana del arte, la cultura y el patrimonio, para la democracia cultural","Propósito 1: Hacer un nuevo contrato social para incrementar la inclusión social, productiva y política"]
[null,"Un Nuevo Contrato Social y Ambiental para la Bogotá del Siglo XXI",22,"Transformación cultural para la conciencia ambiental y el cuidado de la fauna doméstica","Propósito 1: Hacer un nuevo contrato social para incrementar la inclusión social, productiva y política"]
[null,"Un Nuevo Contrato Social y Ambiental para la Bogotá del Siglo XXI",23,"Bogotá rural","Propósito 1: Hacer un nuevo contrato social para incrementar la inclusión social, productiva y política"]
[null,"Un Nuevo Contrato Social y Ambiental para la Bogotá del Siglo XXI",24,"Bogotá región emprendedora e innovadora","Propósito 1: Hacer un nuevo contrato social para incrementar la inclusión social, productiva y política"]
[null,"Un Nuevo Contrato Social y Ambiental para la Bogotá del Siglo XXI",25,"Bogotá región productiva y competitiva","Propósito 1: Hacer un nuevo contrato social para incrementar la inclusión social, productiva y política"]
[null,"Un Nuevo Contrato Social y Ambiental para la Bogotá del Siglo XXI",26,"Bogotá - región, el mejor destino para visitar","Propósito 1: Hacer un nuevo contrato social para incrementar la inclusión social, productiva y política"]
[null,"Un Nuevo Contrato Social y Ambiental para la Bogotá del Siglo XXI",27,"Cambio cultural para la gestión de la crisis climática","Propósito 2 : Cambiar Nuestros Hábitos de Vida para Reverdecer a Bogotá y Adaptarnos y Mitigar la Crisis Climática"]
[null,"Un Nuevo Contrato Social y Ambiental para la Bogotá del Siglo XXI",{"$f":"+C29+1","v":28},"Bogotá protectora de sus recursos naturales","Propósito 2 : Cambiar Nuestros Hábitos de Vida para Reverdecer a Bogotá y Adaptarnos y Mitigar la Crisis Climática"]
[null,"Un Nuevo Contrato Social y Ambiental para la Bogotá del Siglo XXI",{"$f":"+C30+1","v":29},"Asentamientos y entornos protectores","Propósito 2 : Cambiar Nuestros Hábitos de Vida para Reverdecer a Bogotá y Adaptarnos y Mitigar la Crisis Climática"]
[null,"Un Nuevo Contrato Social y Ambiental para la Bogotá del Siglo XXI",30,"Eficiencia en la atención de emergencias","Propósito 2 : Cambiar Nuestros Hábitos de Vida para Reverdecer a Bogotá y Adaptarnos y Mitigar la Crisis Climática"]
[null,"Un Nuevo Contrato Social y Ambiental para la Bogotá del Siglo XXI",31," Protección y valoración del patrimonio tangible e intangible en Bogotá y la región","Propósito 2 : Cambiar Nuestros Hábitos de Vida para Reverdecer a Bogotá y Adaptarnos y Mitigar la Crisis Climática"]
[null,"Un Nuevo Contrato Social y Ambiental para la Bogotá del Siglo XXI",32,"Revitalización urbana para la competitividad","Propósito 2 : Cambiar Nuestros Hábitos de Vida para Reverdecer a Bogotá y Adaptarnos y Mitigar la Crisis Climática"]
[null,"Un Nuevo Contrato Social y Ambiental para la Bogotá del Siglo XXI",33,"Más árboles y más y mejor espacio público","Propósito 2 : Cambiar Nuestros Hábitos de Vida para Reverdecer a Bogotá y Adaptarnos y Mitigar la Crisis Climática"]
[null,"Un Nuevo Contrato Social y Ambiental para la Bogotá del Siglo XXI",34,"Bogotá protectora de los animales","Propósito 2 : Cambiar Nuestros Hábitos de Vida para Reverdecer a Bogotá y Adaptarnos y Mitigar la Crisis Climática"]
[null,"Un Nuevo Contrato Social y Ambiental para la Bogotá del Siglo XXI",35,"Manejo y prevención de contaminación","Propósito 2 : Cambiar Nuestros Hábitos de Vida para Reverdecer a Bogotá y Adaptarnos y Mitigar la Crisis Climática"]
[null,"Un Nuevo Contrato Social y Ambiental para la Bogotá del Siglo XXI",36,"Manejo y saneamiento de los cuerpos de agua","Propósito 2 : Cambiar Nuestros Hábitos de Vida para Reverdecer a Bogotá y Adaptarnos y Mitigar la Crisis Climática"]
[null,"Un Nuevo Contrato Social y Ambiental para la Bogotá del Siglo XXI",37,"Provisión y mejoramiento de servicios públicos","Propósito 2 : Cambiar Nuestros Hábitos de Vida para Reverdecer a Bogotá y Adaptarnos y Mitigar la Crisis Climática"]
[null,"Un Nuevo Contrato Social y Ambiental para la Bogotá del Siglo XXI",38,"Ecoeficiencia, reciclaje, manejo de residuos e inclusión de la población recicladora","Propósito 2 : Cambiar Nuestros Hábitos de Vida para Reverdecer a Bogotá y Adaptarnos y Mitigar la Crisis Climática"]
[null,"Un Nuevo Contrato Social y Ambiental para la Bogotá del Siglo XXI",39,"Bogotá territorio de paz y atención integral a las víctimas del conflicto armado","Propósito 3: Inspirar confianza y legitimidad para vivir sin miedo y ser epicentro de cultura ciudadana, paz y reconciliación"]
[null,"Un Nuevo Contrato Social y Ambiental para la Bogotá del Siglo XXI",{"$f":"+C41+1","v":40},"Más mujeres viven una vida libre de violencias, se sienten seguras y acceden con confianza al sistema de justicia","Propósito 3: Inspirar confianza y legitimidad para vivir sin miedo y ser epicentro de cultura ciudadana, paz y reconciliación"]
[null,"Un Nuevo Contrato Social y Ambiental para la Bogotá del Siglo XXI",{"$f":"+C42+1","v":41},"Sin machismo ni violencias contra las mujeres, las niñas y los niños","Propósito 3: Inspirar confianza y legitimidad para vivir sin miedo y ser epicentro de cultura ciudadana, paz y reconciliación"]
[null,"Un Nuevo Contrato Social y Ambiental para la Bogotá del Siglo XXI",42,"Conciencia y cultura ciudadana para la seguridad, la convivencia y la construcción de confianza","Propósito 3: Inspirar confianza y legitimidad para vivir sin miedo y ser epicentro de cultura ciudadana, paz y reconciliación"]
[null,"Un Nuevo Contrato Social y Ambiental para la Bogotá del Siglo XXI",43,"Cultura ciudadana para la confianza, la convivencia y la participación desde la vida cotidiana","Propósito 3: Inspirar confianza y legitimidad para vivir sin miedo y ser epicentro de cultura ciudadana, paz y reconciliación"]
[null,"Un Nuevo Contrato Social y Ambiental para la Bogotá del Siglo XXI",44,"Autoconciencia, respeto y cuidado en el espacio público","Propósito 3: Inspirar confianza y legitimidad para vivir sin miedo y ser epicentro de cultura ciudadana, paz y reconciliación"]
[null,"Un Nuevo Contrato Social y Ambiental para la Bogotá del Siglo XXI",45,"Espacio público más seguro y construido colectivamente","Propósito 3: Inspirar confianza y legitimidad para vivir sin miedo y ser epicentro de cultura ciudadana, paz y reconciliación"]
[null,"Un Nuevo Contrato Social y Ambiental para la Bogotá del Siglo XXI",46,"Atención a jóvenes y adultos infractores con impacto en su proyecto de vida","Propósito 3: Inspirar confianza y legitimidad para vivir sin miedo y ser epicentro de cultura ciudadana, paz y reconciliación"]
[null,"Un Nuevo Contrato Social y Ambiental para la Bogotá del Siglo XXI",47,"Calidad de Vida y Derechos de la Población privada de la libertad","Propósito 3: Inspirar confianza y legitimidad para vivir sin miedo y ser epicentro de cultura ciudadana, paz y reconciliación"]
[null,"Un Nuevo Contrato Social y Ambiental para la Bogotá del Siglo XXI",48,"Plataforma institucional para la seguridad y justicia","Propósito 3: Inspirar confianza y legitimidad para vivir sin miedo y ser epicentro de cultura ciudadana, paz y reconciliación"]
[null,"Un Nuevo Contrato Social y Ambiental para la Bogotá del Siglo XXI",49,"Movilidad segura, sostenible y accesible","Propósito 4: Hacer de Bogotá Región un modelo de movilidad multimodal, incluyente y sostenible"]
[null,"Un Nuevo Contrato Social y Ambiental para la Bogotá del Siglo XXI",{"$f":"+C51+1","v":50},"Red de metros","Propósito 4: Hacer de Bogotá Región un modelo de movilidad multimodal, incluyente y sostenible"]
[null,"Un Nuevo Contrato Social y Ambiental para la Bogotá del Siglo XXI",51,"Gobierno Abierto","Propósito 5: Construir Bogotá - Región con gobierno abierto, transparente y ciudadanía consciente"]
[null,"Un Nuevo Contrato Social y Ambiental para la Bogotá del Siglo XXI",{"$f":"+C53+1","v":52},"Integración regional, distrital y local","Propósito 5: Construir Bogotá - Región con gobierno abierto, transparente y ciudadanía consciente"]
[null,"Un Nuevo Contrato Social y Ambiental para la Bogotá del Siglo XXI",53,"Información para la toma de decisiones","Propósito 5: Construir Bogotá - Región con gobierno abierto, transparente y ciudadanía consciente"]
[null,"Un Nuevo Contrato Social y Ambiental para la Bogotá del Siglo XXI",54,"Transformación digital y gestión de TIC para un territorio inteligente","Propósito 5: Construir Bogotá - Región con gobierno abierto, transparente y ciudadanía consciente"]
[null,"Un Nuevo Contrato Social y Ambiental para la Bogotá del Siglo XXI",55,"Fortalecimiento de cultura ciudadana y su institucionalidad","Propósito 5: Construir Bogotá - Región con gobierno abierto, transparente y ciudadanía consciente"]
[null,"Un Nuevo Contrato Social y Ambiental para la Bogotá del Siglo XXI",56,"Gestión pública efectiva","Propósito 5: Construir Bogotá - Región con gobierno abierto, transparente y ciudadanía consciente"]
[null,"Un Nuevo Contrato Social y Ambiental para la Bogotá del Siglo XXI",57,"Gestión pública local","Propósito 5: Construir Bogotá - Región con gobierno abierto, transparente y ciudadanía consciente"]

{"sheet":"Tipo","index":2,"n_rows":67,"n_cols":5,"rows_kept":67,"cut":false,"hidden":true,"merged":[]}
[null,null,"Modalidad de Selección","afectacion","Naturaleza Jurídica"]
[1,null,"Concurso de méritos","Funcionamiento","Persona Natural"]
[2,null,"Contratación directa","Inversión","Persona Jurídica"]
[3,null,"Contratación mínima cuantia","Operación","Unión Temporal"]
[4,null,"Selección abreviada",null,"Consorcio"]
[5,null,"Licitación pública",null,"Sociedad con objeto único"]
[6,null,"Otros",null,"Persona jurídica extranjera"]
[7,null,"Régimen especial",null,"Sin ánimo de lucro"]
[8,null,null,null,"Cabildo indígena"]
[9,null,null,null,"Consejo comunitario de las comunidades negras"]
[10,null,"Selección abreviada",null,"Organizaciones de segundo nivel"]
[11,null,"Subasta inversa ",null,"Formas o expresiones organizativas, afrocolombianas, raizales y palenqueras"]
[12,null,"Bolsas de productos",null,"Organizaciones de base de comunidades negras "]
[13,null,"Acuerdo marco de precios ",null,"Asociaciones de autoridades tradicionales indígenas"]
[14,null,"Selección abreviada por menor cuantía "]
[15]
[16,null,"contratacion directa"]
[17,null,"Urgencia manifiesta"]
[18,null,"Contratación de empréstitos"]
[19,null,"Contratos interadministrativos"]
[20,null,"Contratación de bienes y servicios en el sector Defensa "]
[null,"SECTOR","Contratos para el desarrollo de actividades científicas y tecnológicas"]
[1,"Gestión Pública","Contratos de encargo fiduciario que celebren las entidades territoriales cuando inician el Acuerdo de Reestructuración de Pasivos"]
[{"$f":"+A23+1","v":2},"Gobierno","Cuando no exista pluralidad de oferentes en el mercado"]
[{"$f":"+A24+1","v":3},"Hacienda","Prestación de servicios profesionales y de apoyo a la gestión, o para la ejecución de trabajos artísticos que sólo puedan encomendarse a determinadas personas naturales"]
[4,"Planeación","El arrendamiento o adquisición de inmuebles"]
[5,"Desarrollo Económico, Industria y Turismo","Contratación de bienes y servicios de la Dirección Nacional de Inteligencia (DNI)"]
[6,"Educación"]
[7,"Salud"]
[8,"Integración Social","Decreto 92 de 2017"]
[9,"Cultura, Recreación y Deporte","No aplica"]
[10,"Ambiente"]
[11,"Movilidad","SECOP I"]
[12,"Hábitat","SECOP II"]
[13,"Mujeres"]
[14,"Seguridad, Convivencia y Justicia","Bogotá Mejor para Todos"]
[15,"Gestión Juridíca","Un Nuevo Contrato Social y Ambiental para la Bogotá del Siglo XXI"]
[16,"descentralizado territorialmente"]
[]
[null,"16 - AL","Estado"]
[null,null,"Celebrado o por iniciar"]
[null,"Plan de desarrollo distrital","En ejecución"]
[null,"Un nuevo contrato social y ambiental para la Bogotá del Siglo XXI","Terminado"]
[null,null,"Liquidado"]
[]
[null,"Tipo"]
[null,"Obra pública"]
[null,"Consultoría"]
[null,"Interventoría"]
[null,"Contratos de prestación de servicios"]
[null,"Contratos de prestación de servicios profesionales y de apoyo a la gestión"]
[null,"Compraventa de bienes muebles"]
[null,"Compraventa de bienes inmuebles"]
[null,"Arrendamiento de bienes muebles"]
[null,"Arrendamiento de bienes inmuebles"]
[null,"Seguro"]
[null,"Suministro"]
[null,"Empréstitos"]
[null,"Fiducia mercantil o encargo fiduciario"]
[null,"Concesión "]
[null,"Convenios de cooperacion"]
[null,"Convenios/Contratos interadministrativos"]
[null,"Convenios de apoyo o convenios de asociación "]
[null,"Convenios solidarios"]
[null,"Asociaciones Público Privadas"]
[null,"Otros"]
[null,"Otros gastos"]